Workbook

Sheet INSTRUCTIONS
V1: Powered by KENJO
P2: Mehr Ressourcen für deine Personalabteilung:
I3: Die All-in-One HR-Plattform für die Rekrutierung, Verwaltung und Entwicklung deiner Mitarbeiter.
C4: www.kenjo.io | P4: Abwesenheitsmanagement Excel-Vorlage
P5: Ebook: Wie man eine Personalabteilung von Grund auf aufbaut
P6: Entdecke die All-in-One HR Management Software
C10: GEBRAUCHSANWEISUNG
C12: Aktiviere Makros, wenn du dieses Dokument öffnest.
C14: Dieses Dokument besteht aus drei Hauptregisterkarten (Set Up, Dashboard und Employee database)
C16: Beginne mit dem Einrichten der Struktur deines Unternehmens und der Fragebogenüberprüfung auf der Registerkarte "Set Up".
D17: 2.1 Richte Kategorien für Fragen und die Abteilungen deines Unternehmens ein. Auf der Registerkarte "Set Up" findest du weitere Anweisungen
C19: In der "Employee Database" kannst du bis zu 50 Mitarbeiter eingeben und ihre Informationen hinzufügen (Nummer, Name, Position, Manager, Abteilung, Beschäftigungsdatum). Außerdem gibt es eine Spalte, in der die Anzahl der Bewertungen für jeden Mitarbeiter in der Datenbank angezeigt wird. Auf dieser Registerkarte kannst du eine von drei Aktionen wählen:
D20: 3.1. Füge eine neue Mitarbeiterbeurteilung hinzu.
D21: 3.2. Überprüfe jedes Mitarbeiterprofil, indem du in der entsprechenden Zeile auf die Zelle "Zu den Mitarbeiterbewertungen gehen" klickst.
D22: 3.3. Lösche den gewünschten Mitarbeiter und seine Daten, indem du den Namen des Mitarbeiters auswählst und auf "Mitarbeiterdaten löschen" klickst.
C24: Wenn du auf die Schaltfläche "Neue Mitarbeiterbewertung hinzufügen" klickst, öffnet sich eine weitere Registerkarte, auf der der Manager den Mitarbeiter bewerten kann. Wenn du den vollständigen Namen des Mitarbeiters auswählst, werden automatisch alle Informationen über den Mitarbeiter angezeigt. Achte darauf, dass du das Beurteilungsdatum hinzufügst. Die Gesamtpunktzahl wird automatisch berechnet, ebenso wie die Leistung gemäß der Einstellungstabelle.
D25: 4.1 Sobald die Überprüfung abgeschlossen ist, klicke auf "Überprüfung speichern", um die Überprüfung in der Datenbank zu speichern. Die Registerkarte wird geschlossen und du wirst zur Registerkarte Mitarbeiterdatenbank weitergeleitet.
C27: Wenn du auf die entsprechende Zelle klickst, öffnet sich eine Registerkarte "Employee Review", in der du eine Tabelle mit einer Zusammenfassung der bisherigen Bewertungen jedes Mitarbeiters siehst.
D28: 5.1. Überprüfe jede Bewertung des ausgewählten Mitarbeiterprofils, indem du in der entsprechenden Zeile auf die Zelle "Prüfen" klickst.
D29: 5.2. Es öffnet sich eine neue Registerkarte "Review", in der die Details einer vergangenen Überprüfung eines Mitarbeiters angezeigt werden.
D30: 5.3. Wenn du auf "Zurück zum Mitarbeiterprofil" klickst, wird die Registerkarte "Review" geschlossen und du gelangst zurück zur Registerkarte "Employee Review".
D31: 5.4. Wenn du auf "Zurück zur Mitarbeiterdatenbank" klickst, wird die Registerkarte "Employee Review" geschlossen und du kehrst zur Registerkarte "Employee Database" zurück.
C33: Im Dashboard kannst du deine Unternehmensinformationen überprüfen, indem du nach dem Jahr (Unternehmensübersicht) oder der Abteilung (Abteilungsübersicht) filterst.
C35: HINWEIS: Alle Daten sind im Format TT.MM.JJ angegeben.

Sheet Set Up
N1: Powered by KENJO
C3: SCHRITT 1: Einrichten der Kategorien
C5: 1 | D5: Produktivität
C6: 2 | D6: Effizienz
C7: 3 | D7: Organisationsfähigkeiten
C8: 4 | D8: Lernen und Entwicklung
C9: 5 | D9: Kommunikation
C10: 6 | D10: Interne Beziehungen
C11: 7 | D11: Anwesenheit
C12: 8
C13: 9
C14: 10
C15: 11
C16: 12
C17: 13
C18: 14
C19: 15
C22: SCHRITT 2: Die Fragen erstellen
C24: # | D24: Fragen | E24: Kategorie
B25: ans1 | C25: 1 | D25: Erfüllt das erwartete Arbeitspensum und erzielt die angestrebten Ergebnisse | E25: Produktivität
B26: ans2 | C26: 2 | D26: Erledigt seine Aufgaben und Pflichten gründlich und zuverlässig | E26: Produktivität
B27: ans3 | C27: 3 | D27: Trägt zum Erreichen der Ziele und Prioritäten der Abteilung bei | E27: Produktivität
B28: ans4 | C28: 4 | D28: Bietet qualitativ hochwertige Produkte, Programme, Verfahren und Dienstleistungen an; zeigt Engagement für kontinuierliche Verbesserung | E28: Effizienz
B29: ans5 | C29: 5 | D29: Ist bei seiner/ihrer Arbeit einfallsreich und innovativ | E29: Effizienz
B30: ans6 | C30: 6 | D30: Trifft zeitnah und fundiert arbeitsbezogene Entscheidungen | E30: Effizienz
B31: ans7 | C31: 7 | D31: Plant, setzt Prioritäten und organisiert seine Arbeit in angemessener Weise | E31: Organisationstalent
B32: ans8 | C32: 8 | D32: Identifiziert und nutzt Ressourcen effektiv und verantwortungsbewusst | E32: Organisationstalent
B33: ans9 | C33: 9 | D33: Ist selbständig und arbeitet gut mit minimaler Aufsicht | E33: Organisationsfähigkeiten
B34: ans10 | C34: 10 | D34: Zeigt Flexibilität und passt sich gut an Veränderungen an | E34: Lernen und Entwicklung
B35: ans11 | C35: 11 | D35: Übernimmt die Verantwortung für sein eigenes Handeln und lernt kontinuierlich aus seinen Erfahrungen | E35: Lernen und Entwicklung
B36: ans12 | C36: 12 | D36: Zeigt, dass er kontinuierlich lernt, indem er sich über neue Entwicklungen auf dem Laufenden hält und sich neue berufsbezogene Fähigkeiten aneignet | E36: Lernen und Entwicklung
B37: ans13 | C37: 13 | D37: Kommuniziert klar und effektiv, sowohl mündlich als auch schriftlich | E37: Kommunikation
B38: ans14 | C38: 14 | D38: Nimmt konstruktives Feedback an und gibt es weiter | E38: Kommunikation
B39: ans15 | C39: 15 | D39: Nutzt geeignete Kommunikationskanäle, um Informationen und Ideen zeitnah zu vermitteln und zu verbreiten | E39: Kommunikation
B40: ans16 | C40: 16 | D40: Nimmt aktiv an der Arbeit teil und leistet einen Beitrag als Mitglied eines effektiven Arbeitsteams | E40: Interne Beziehungen
B41: ans17 | C41: 17 | D41: Baut kooperative Arbeitsbeziehungen auf und trägt zur Lösung von Konflikten am Arbeitsplatz bei | E41: Interne Beziehungen
B42: ans18 | C42: 18 | D42: Fördert und unterstützt Vielfalt; zeigt Respekt für andere; behandelt alle fair und gerecht | E42: Interne Beziehungen
B43: ans19 | C43: 19 | D43: Erscheint in der Regel pünktlich zur Arbeit | E43: Anwesenheit
B44: ans20 | C44: 20 | D44: Befolge das Verfahren, wenn du Urlaub beantragst oder deine Anwesenheit rechtfertigst | E44: Anwesenheit
B45: ans21 | C45: 0
B46: ans22 | C46: 0
B47: ans23 | C47: 0
B48: ans24 | C48: 0
B49: ans25 | C49: 0
B50: ans26 | C50: 0
B51: ans27 | C51: 0
B52: ans28 | C52: 0
B53: ans29 | C53: 0
B54: ans30 | C54: 0
B55: ans31 | C55: 0
B56: ans32 | C56: 0
B57: ans33 | C57: 0
B58: ans34 | C58: 0
B59: ans35 | C59: 0
B60: ans36 | C60: 0
B61: ans37 | C61: 0
B62: ans38 | C62: 0
B63: ans39 | C63: 0
B64: ans40 | C64: 0
B65: ans41 | C65: 0
B66: ans42 | C66: 0
B67: ans43 | C67: 0
B68: ans44 | C68: 0
B69: ans45 | C69: 0
C72: SCHRITT 3: Abteilungen einrichten
C74: 1 | D74: Planung | E74: 74.25
C75: 2 | D75: HR | E75: 57
C76: 3 | D76: Betrieb | E76: 58.75
C77: 4 | D77: Exekutivdirektion | E77: 82.25
C78: 5
C79: 6
C80: 7
C81: 8
C82: 9
C83: 10

Sheet Dashboard-OLD (hidden)
A1: DASHBOARD | N1: Powered by OrgOS
B3: Number of Reviews per Resulting Performance
B5: Plan | C5: Performance | D5: # reviews | E5: % of total
B6: 0.5 | C6: Excellent | D6: =COUNTIFS('BackEnd Data'!$AY$2:$AY$115,'Dashboard-OLD'!$C6) -> 0 | E6: =D6/$D$11 -> 0
B7: 0.3 | C7: Good | D7: =COUNTIFS('BackEnd Data'!$AY$2:$AY$115,'Dashboard-OLD'!$C7) -> 1 | E7: =D7/$D$11 -> 1
B8: 0.15 | C8: Satisfactory | D8: =COUNTIFS('BackEnd Data'!$AY$2:$AY$115,'Dashboard-OLD'!$C8) -> 0 | E8: 0
B9: 0.05 | C9: Unsatisfactory | D9: =COUNTIFS('BackEnd Data'!$AY$2:$AY$115,'Dashboard-OLD'!$C9) -> 0 | E9: 0
B10: 0 | C10: Poor | D10: =COUNTIFS('BackEnd Data'!$AY$2:$AY$115,'Dashboard-OLD'!$C10) -> 0 | E10: 0
B11: =SUM(B6:B10) -> 1 | C11: Total Reviews | D11: =SUM(D6:D10) -> 1
B13: Department / Divisions
D14: 1 | E14: 2 | F14: 3 | G14: 4 | H14: 5
B15: # reviews | C15: Department/Division | D15: Poor | E15: Unsatisfactory | F15: Satisfactory | G15: Good | H15: Excellent | I15: Overall Score | K15: Best Performance
B16: =IF(C16="","",COUNTIF('BackEnd Data'!$D$2:$D$115,'Dashboard-OLD'!C16)) -> 0 | C16: ='Set Up'!D74 -> Planung | D16: =IF(C16="","",SUMIFS('BackEnd Data'!BB$2:BB$115,'BackEnd Data'!$D$2:$D$115,'Dashboard-OLD'!$C16)) -> 0 | E16: =IF(D16="","",SUMIFS('BackEnd Data'!BC$2:BC$115,'BackEnd Data'!$D$2:$D$115,'Dashboard-OLD'!$C16)) -> 0 | F16: =IF(E16="","",SUMIFS('BackEnd Data'!BD$2:BD$115,'BackEnd Data'!$D$2:$D$115,'Dashboard-OLD'!$C16)) -> 0 | G16: =IF(F16="","",SUMIFS('BackEnd Data'!BE$2:BE$115,'BackEnd Data'!$D$2:$D$115,'Dashboard-OLD'!$C16)) -> 0 | H16: =IF(G16="","",SUMIFS('BackEnd Data'!BF$2:BF$115,'BackEnd Data'!$D$2:$D$115,'Dashboard-OLD'!$C16)) -> 0 | I16: =IF(C16="","",ROUNDUP(SUMPRODUCT(D16:H16,$D$14:$H$14)/B16,0)) ->  | J16: =IF(C16="","",RANK(I16,$I$16:$I$25)) -> 
B17: =IF(C17="","",COUNTIF('BackEnd Data'!$D$2:$D$115,'Dashboard-OLD'!C17)) -> 7 | C17: =IF(OR(C16="",'Set Up'!D75=""),"",'Set Up'!D75) -> HR | D17: =IF(C17="","",SUMIFS('BackEnd Data'!BB$2:BB$115,'BackEnd Data'!$D$2:$D$115,'Dashboard-OLD'!$C17)) -> 27 | E17: =IF(D17="","",SUMIFS('BackEnd Data'!BC$2:BC$115,'BackEnd Data'!$D$2:$D$115,'Dashboard-OLD'!$C17)) -> 41 | F17: =IF(E17="","",SUMIFS('BackEnd Data'!BD$2:BD$115,'BackEnd Data'!$D$2:$D$115,'Dashboard-OLD'!$C17)) -> 20 | G17: =IF(F17="","",SUMIFS('BackEnd Data'!BE$2:BE$115,'BackEnd Data'!$D$2:$D$115,'Dashboard-OLD'!$C17)) -> 30 | H17: =IF(G17="","",SUMIFS('BackEnd Data'!BF$2:BF$115,'BackEnd Data'!$D$2:$D$115,'Dashboard-OLD'!$C17)) -> 22 | I17: =IF(C17="","",ROUNDUP(SUMPRODUCT(D17:H17,$D$14:$H$14)/B17,0)) -> 57 | J17: =IF(C17="","",RANK(I17,$I$16:$I$25)) ->  | L17: =INDEX(C16:C25,MATCH(1,J16:J25,0)) -> 
B18: =IF(C18="","",COUNTIF('BackEnd Data'!$D$2:$D$115,'Dashboard-OLD'!C18)) -> 0 | C18: =IF(OR(C17="",'Set Up'!D76=""),"",'Set Up'!D76) -> Betrieb | D18: =IF(C18="","",SUMIFS('BackEnd Data'!BB$2:BB$115,'BackEnd Data'!$D$2:$D$115,'Dashboard-OLD'!$C18)) -> 0 | E18: =IF(D18="","",SUMIFS('BackEnd Data'!BC$2:BC$115,'BackEnd Data'!$D$2:$D$115,'Dashboard-OLD'!$C18)) -> 0 | F18: =IF(E18="","",SUMIFS('BackEnd Data'!BD$2:BD$115,'BackEnd Data'!$D$2:$D$115,'Dashboard-OLD'!$C18)) -> 0 | G18: =IF(F18="","",SUMIFS('BackEnd Data'!BE$2:BE$115,'BackEnd Data'!$D$2:$D$115,'Dashboard-OLD'!$C18)) -> 0 | H18: =IF(G18="","",SUMIFS('BackEnd Data'!BF$2:BF$115,'BackEnd Data'!$D$2:$D$115,'Dashboard-OLD'!$C18)) -> 0
B19: =IF(C19="","",COUNTIF('BackEnd Data'!$D$2:$D$115,'Dashboard-OLD'!C19)) -> 0 | C19: =IF(OR(C18="",'Set Up'!D77=""),"",'Set Up'!D77) -> Exekutivdirektion | D19: =IF(C19="","",SUMIFS('BackEnd Data'!BB$2:BB$115,'BackEnd Data'!$D$2:$D$115,'Dashboard-OLD'!$C19)) -> 0 | E19: =IF(D19="","",SUMIFS('BackEnd Data'!BC$2:BC$115,'BackEnd Data'!$D$2:$D$115,'Dashboard-OLD'!$C19)) -> 0 | F19: =IF(E19="","",SUMIFS('BackEnd Data'!BD$2:BD$115,'BackEnd Data'!$D$2:$D$115,'Dashboard-OLD'!$C19)) -> 0 | G19: =IF(F19="","",SUMIFS('BackEnd Data'!BE$2:BE$115,'BackEnd Data'!$D$2:$D$115,'Dashboard-OLD'!$C19)) -> 0 | H19: =IF(G19="","",SUMIFS('BackEnd Data'!BF$2:BF$115,'BackEnd Data'!$D$2:$D$115,'Dashboard-OLD'!$C19)) -> 0
B20: =IF(C20="","",COUNTIF('BackEnd Data'!$D$2:$D$115,'Dashboard-OLD'!C20)) ->  | C20: =IF(OR(C19="",'Set Up'!D78=""),"",'Set Up'!D78) ->  | D20: =IF(C20="","",SUMIFS('BackEnd Data'!BB$2:BB$115,'BackEnd Data'!$D$2:$D$115,'Dashboard-OLD'!$C20)) ->  | E20: =IF(D20="","",SUMIFS('BackEnd Data'!BC$2:BC$115,'BackEnd Data'!$D$2:$D$115,'Dashboard-OLD'!$C20)) ->  | F20: =IF(E20="","",SUMIFS('BackEnd Data'!BD$2:BD$115,'BackEnd Data'!$D$2:$D$115,'Dashboard-OLD'!$C20)) ->  | G20: =IF(F20="","",SUMIFS('BackEnd Data'!BE$2:BE$115,'BackEnd Data'!$D$2:$D$115,'Dashboard-OLD'!$C20)) ->  | H20: =IF(G20="","",SUMIFS('BackEnd Data'!BF$2:BF$115,'BackEnd Data'!$D$2:$D$115,'Dashboard-OLD'!$C20)) ->  | K20: Worst Performance
B21: =IF(C21="","",COUNTIF('BackEnd Data'!$D$2:$D$115,'Dashboard-OLD'!C21)) ->  | C21: =IF(OR(C20="",'Set Up'!D79=""),"",'Set Up'!D79) ->  | D21: =IF(C21="","",SUMIFS('BackEnd Data'!BB$2:BB$115,'BackEnd Data'!$D$2:$D$115,'Dashboard-OLD'!$C21)) ->  | E21: =IF(D21="","",SUMIFS('BackEnd Data'!BC$2:BC$115,'BackEnd Data'!$D$2:$D$115,'Dashboard-OLD'!$C21)) ->  | F21: =IF(E21="","",SUMIFS('BackEnd Data'!BD$2:BD$115,'BackEnd Data'!$D$2:$D$115,'Dashboard-OLD'!$C21)) ->  | G21: =IF(F21="","",SUMIFS('BackEnd Data'!BE$2:BE$115,'BackEnd Data'!$D$2:$D$115,'Dashboard-OLD'!$C21)) ->  | H21: =IF(G21="","",SUMIFS('BackEnd Data'!BF$2:BF$115,'BackEnd Data'!$D$2:$D$115,'Dashboard-OLD'!$C21)) -> 
B22: =IF(C22="","",COUNTIF('BackEnd Data'!$D$2:$D$115,'Dashboard-OLD'!C22)) ->  | C22: =IF(OR(C21="",'Set Up'!D80=""),"",'Set Up'!D80) ->  | D22: =IF(C22="","",SUMIFS('BackEnd Data'!BB$2:BB$115,'BackEnd Data'!$D$2:$D$115,'Dashboard-OLD'!$C22)) ->  | E22: =IF(D22="","",SUMIFS('BackEnd Data'!BC$2:BC$115,'BackEnd Data'!$D$2:$D$115,'Dashboard-OLD'!$C22)) ->  | F22: =IF(E22="","",SUMIFS('BackEnd Data'!BD$2:BD$115,'BackEnd Data'!$D$2:$D$115,'Dashboard-OLD'!$C22)) ->  | G22: =IF(F22="","",SUMIFS('BackEnd Data'!BE$2:BE$115,'BackEnd Data'!$D$2:$D$115,'Dashboard-OLD'!$C22)) ->  | H22: =IF(G22="","",SUMIFS('BackEnd Data'!BF$2:BF$115,'BackEnd Data'!$D$2:$D$115,'Dashboard-OLD'!$C22)) ->  | L22: =INDEX(C16:C25,MATCH(COUNTA('Set Up'!D74:D83),J16:J25,0)) -> 
B23: =IF(C23="","",COUNTIF('BackEnd Data'!$D$2:$D$115,'Dashboard-OLD'!C23)) ->  | C23: =IF(OR(C22="",'Set Up'!D81=""),"",'Set Up'!D81) ->  | D23: =IF(C23="","",SUMIFS('BackEnd Data'!BB$2:BB$115,'BackEnd Data'!$D$2:$D$115,'Dashboard-OLD'!$C23)) ->  | E23: =IF(D23="","",SUMIFS('BackEnd Data'!BC$2:BC$115,'BackEnd Data'!$D$2:$D$115,'Dashboard-OLD'!$C23)) ->  | F23: =IF(E23="","",SUMIFS('BackEnd Data'!BD$2:BD$115,'BackEnd Data'!$D$2:$D$115,'Dashboard-OLD'!$C23)) ->  | G23: =IF(F23="","",SUMIFS('BackEnd Data'!BE$2:BE$115,'BackEnd Data'!$D$2:$D$115,'Dashboard-OLD'!$C23)) ->  | H23: =IF(G23="","",SUMIFS('BackEnd Data'!BF$2:BF$115,'BackEnd Data'!$D$2:$D$115,'Dashboard-OLD'!$C23)) -> 
B24: =IF(C24="","",COUNTIF('BackEnd Data'!$D$2:$D$115,'Dashboard-OLD'!C24)) ->  | C24: =IF(OR(C23="",'Set Up'!D82=""),"",'Set Up'!D82) ->  | D24: =IF(C24="","",SUMIFS('BackEnd Data'!BB$2:BB$115,'BackEnd Data'!$D$2:$D$115,'Dashboard-OLD'!$C24)) ->  | E24: =IF(D24="","",SUMIFS('BackEnd Data'!BC$2:BC$115,'BackEnd Data'!$D$2:$D$115,'Dashboard-OLD'!$C24)) ->  | F24: =IF(E24="","",SUMIFS('BackEnd Data'!BD$2:BD$115,'BackEnd Data'!$D$2:$D$115,'Dashboard-OLD'!$C24)) ->  | G24: =IF(F24="","",SUMIFS('BackEnd Data'!BE$2:BE$115,'BackEnd Data'!$D$2:$D$115,'Dashboard-OLD'!$C24)) ->  | H24: =IF(G24="","",SUMIFS('BackEnd Data'!BF$2:BF$115,'BackEnd Data'!$D$2:$D$115,'Dashboard-OLD'!$C24)) -> 
B25: =IF(C25="","",COUNTIF('BackEnd Data'!$D$2:$D$115,'Dashboard-OLD'!C25)) ->  | C25: =IF(OR(C24="",'Set Up'!D83=""),"",'Set Up'!D83) ->  | D25: =IF(C25="","",SUMIFS('BackEnd Data'!BB$2:BB$115,'BackEnd Data'!$D$2:$D$115,'Dashboard-OLD'!$C25)) ->  | E25: =IF(D25="","",SUMIFS('BackEnd Data'!BC$2:BC$115,'BackEnd Data'!$D$2:$D$115,'Dashboard-OLD'!$C25)) ->  | F25: =IF(E25="","",SUMIFS('BackEnd Data'!BD$2:BD$115,'BackEnd Data'!$D$2:$D$115,'Dashboard-OLD'!$C25)) ->  | G25: =IF(F25="","",SUMIFS('BackEnd Data'!BE$2:BE$115,'BackEnd Data'!$D$2:$D$115,'Dashboard-OLD'!$C25)) ->  | H25: =IF(G25="","",SUMIFS('BackEnd Data'!BF$2:BF$115,'BackEnd Data'!$D$2:$D$115,'Dashboard-OLD'!$C25)) -> 

Sheet Dashboard
O1: Powered by KENJO
B4: UNTERNEHMENSPRÜFUNG | E4: Jahr | F4: 2023
C6: DURCHSCHNITTLICHES ERGEBNIS | E6: BESTER PERFORMER | H6: SCHLECHTESTER PERFORMER | K6: BESTE ABTEILUNG | N6: SCHLECHTESTE ABTEILUNG
C7: =ROUND(AVERAGE('BackEnd Data'!AX2:AY115),1)&CHAR(10)&VLOOKUP(AVERAGE('BackEnd Data'!AX2:AY115),'Review Sheet'!$J$21:$K$25,2,1) -> 63 Übertrifft die Erwartungen | E7: =INDEX('Employee Database'!$D$4:$D$51,MATCH(Dashboard!F7,'Employee Database'!$K$4:$K$53,0)) -> Bobby Cox | F7: =MAX('Employee Database'!K4:K53) -> 92.5 | H7: =INDEX('Employee Database'!$D$4:$D$51,MATCH(Dashboard!I7,'Employee Database'!$K$4:$K$53,0)) -> Clayton Kershaw | I7: =MIN('Employee Database'!K4:K53) -> 45 | K7: =INDEX('Set Up'!D74:D83,MATCH(Dashboard!L7,'Set Up'!E74:E83,0)) -> Exekutivdirektion | L7: =MAX('Set Up'!E74:E83) -> 82.25 | N7: =INDEX('Set Up'!D74:D83,MATCH(Dashboard!O7,'Set Up'!E74:E83,0)) -> HR | O7: =MIN('Set Up'!E74:E83) -> 57
B10: 1 | C10: Jan | D10: =DATE($F$4,$B10,1) -> 2023-01-01 | E10: =EOMONTH(D10,0) -> 2023-01-31 | F10: =IFERROR(AVERAGEIFS('BackEnd Data'!$AX$2:$AX$115,'BackEnd Data'!$C$2:$C$115,">="&Dashboard!$D10,'BackEnd Data'!$C$2:$C$115,"<="&Dashboard!$E10),"") ->  | G10: =IFERROR(AVERAGEIFS('BackEnd Data'!$AX$2:$AX$115,'BackEnd Data'!$B$2:$B$115,INDEX('Employee Database'!$C$4:$C$53,MATCH(Dashboard!$C$55,'Employee Database'!$D$4:$D$51,0)),'BackEnd Data'!$C$2:$C$115,">="&Dashboard!$D10,'BackEnd Data'!$C$2:$C$115,"<="&Dashboard!$E10),"") ->  | H10: =IFERROR(AVERAGEIFS('BackEnd Data'!$AX$2:$AX$115,'BackEnd Data'!$B$2:$B$115,INDEX('Employee Database'!$C$4:$C$53,MATCH(Dashboard!$C$58,'Employee Database'!$D$4:$D$51,0)),'BackEnd Data'!$C$2:$C$115,">="&Dashboard!$D10,'BackEnd Data'!$C$2:$C$115,"<="&Dashboard!$E10),"") ->  | I10: =IFERROR(AVERAGEIFS('BackEnd Data'!$AX$2:$AX$115,'BackEnd Data'!$B$2:$B$115,INDEX('Employee Database'!$C$4:$C$53,MATCH(Dashboard!$C$61,'Employee Database'!$D$4:$D$51,0)),'BackEnd Data'!$C$2:$C$115,">="&Dashboard!$D10,'BackEnd Data'!$C$2:$C$115,"<="&Dashboard!$E10),"") ->  | J10: =IFERROR(AVERAGEIFS('BackEnd Data'!$AX$2:$AX$115,'BackEnd Data'!$B$2:$B$115,INDEX('Employee Database'!$C$4:$C$53,MATCH(Dashboard!$C$64,'Employee Database'!$D$4:$D$51,0)),'BackEnd Data'!$C$2:$C$115,">="&Dashboard!$D10,'BackEnd Data'!$C$2:$C$115,"<="&Dashboard!$E10),"") ->  | K10: ='Set Up'!D5 -> Produktivität | L10: =AVERAGEIF('BackEnd Data'!$BG$2:$BG$115,"<>"&0) -> 8 | M10: =IF(K10="","",COUNTIF('Set Up'!$E$25:$E$69,Dashboard!$K$10)) -> 3 | N10: =IFERROR(L10/M10,"") -> 2.666666667
B11: 2 | C11: Feb | D11: =DATE($F$4,$B11,1) -> 2023-02-01 | E11: =EOMONTH(D11,0) -> 2023-02-28 | F11: =IFERROR(AVERAGEIFS('BackEnd Data'!$AX$2:$AX$115,'BackEnd Data'!$C$2:$C$115,">="&Dashboard!$D11,'BackEnd Data'!$C$2:$C$115,"<="&Dashboard!$E11),"") ->  | G11: =IFERROR(AVERAGEIFS('BackEnd Data'!$AX$2:$AX$115,'BackEnd Data'!$B$2:$B$115,INDEX('Employee Database'!$C$4:$C$53,MATCH(Dashboard!$C$55,'Employee Database'!$D$4:$D$51,0)),'BackEnd Data'!$C$2:$C$115,">="&Dashboard!$D11,'BackEnd Data'!$C$2:$C$115,"<="&Dashboard!$E11),"") ->  | H11: =IFERROR(AVERAGEIFS('BackEnd Data'!$AX$2:$AX$115,'BackEnd Data'!$B$2:$B$115,INDEX('Employee Database'!$C$4:$C$53,MATCH(Dashboard!$C$58,'Employee Database'!$D$4:$D$51,0)),'BackEnd Data'!$C$2:$C$115,">="&Dashboard!$D11,'BackEnd Data'!$C$2:$C$115,"<="&Dashboard!$E11),"") ->  | I11: =IFERROR(AVERAGEIFS('BackEnd Data'!$AX$2:$AX$115,'BackEnd Data'!$B$2:$B$115,INDEX('Employee Database'!$C$4:$C$53,MATCH(Dashboard!$C$61,'Employee Database'!$D$4:$D$51,0)),'BackEnd Data'!$C$2:$C$115,">="&Dashboard!$D11,'BackEnd Data'!$C$2:$C$115,"<="&Dashboard!$E11),"") ->  | J11: =IFERROR(AVERAGEIFS('BackEnd Data'!$AX$2:$AX$115,'BackEnd Data'!$B$2:$B$115,INDEX('Employee Database'!$C$4:$C$53,MATCH(Dashboard!$C$64,'Employee Database'!$D$4:$D$51,0)),'BackEnd Data'!$C$2:$C$115,">="&Dashboard!$D11,'BackEnd Data'!$C$2:$C$115,"<="&Dashboard!$E11),"") ->  | K11: =IF(OR('Set Up'!D6="",Dashboard!K10=""),"",'Set Up'!D6) -> Effizienz | L11: =AVERAGEIF('BackEnd Data'!$BH$2:$BH$115,"<>"&0) -> 7.823529412 | M11: =IF(K11="","",COUNTIF('Set Up'!$E$25:$E$69,Dashboard!$K$10)) -> 3 | N11: =IFERROR(L11/M11,"") -> 2.607843137
B12: 3 | C12: Mar | D12: 2023-03-01 | E12: 2023-03-31 | F12: =IFERROR(AVERAGEIFS('BackEnd Data'!$AX$2:$AX$115,'BackEnd Data'!$C$2:$C$115,">="&Dashboard!$D12,'BackEnd Data'!$C$2:$C$115,"<="&Dashboard!$E12),"") ->  | G12: =IFERROR(AVERAGEIFS('BackEnd Data'!$AX$2:$AX$115,'BackEnd Data'!$B$2:$B$115,INDEX('Employee Database'!$C$4:$C$53,MATCH(Dashboard!$C$55,'Employee Database'!$D$4:$D$51,0)),'BackEnd Data'!$C$2:$C$115,">="&Dashboard!$D12,'BackEnd Data'!$C$2:$C$115,"<="&Dashboard!$E12),"") ->  | H12: =IFERROR(AVERAGEIFS('BackEnd Data'!$AX$2:$AX$115,'BackEnd Data'!$B$2:$B$115,INDEX('Employee Database'!$C$4:$C$53,MATCH(Dashboard!$C$58,'Employee Database'!$D$4:$D$51,0)),'BackEnd Data'!$C$2:$C$115,">="&Dashboard!$D12,'BackEnd Data'!$C$2:$C$115,"<="&Dashboard!$E12),"") ->  | I12: =IFERROR(AVERAGEIFS('BackEnd Data'!$AX$2:$AX$115,'BackEnd Data'!$B$2:$B$115,INDEX('Employee Database'!$C$4:$C$53,MATCH(Dashboard!$C$61,'Employee Database'!$D$4:$D$51,0)),'BackEnd Data'!$C$2:$C$115,">="&Dashboard!$D12,'BackEnd Data'!$C$2:$C$115,"<="&Dashboard!$E12),"") ->  | J12: =IFERROR(AVERAGEIFS('BackEnd Data'!$AX$2:$AX$115,'BackEnd Data'!$B$2:$B$115,INDEX('Employee Database'!$C$4:$C$53,MATCH(Dashboard!$C$64,'Employee Database'!$D$4:$D$51,0)),'BackEnd Data'!$C$2:$C$115,">="&Dashboard!$D12,'BackEnd Data'!$C$2:$C$115,"<="&Dashboard!$E12),"") ->  | K12: =IF(OR('Set Up'!D7="",Dashboard!K11=""),"",'Set Up'!D7) -> Organisationsfähigkeiten | L12: =AVERAGEIF('BackEnd Data'!$BI$2:$BI$115,"<>"&0) -> 2.875 | M12: =IF(K12="","",COUNTIF('Set Up'!$E$25:$E$69,Dashboard!$K$10)) -> 3 | N12: 0.9583333333
B13: 4 | C13: Apr | D13: 2023-04-01 | E13: 2023-04-30 | F13: =IFERROR(AVERAGEIFS('BackEnd Data'!$AX$2:$AX$115,'BackEnd Data'!$C$2:$C$115,">="&Dashboard!$D13,'BackEnd Data'!$C$2:$C$115,"<="&Dashboard!$E13),"") ->  | G13: =IFERROR(AVERAGEIFS('BackEnd Data'!$AX$2:$AX$115,'BackEnd Data'!$B$2:$B$115,INDEX('Employee Database'!$C$4:$C$53,MATCH(Dashboard!$C$55,'Employee Database'!$D$4:$D$51,0)),'BackEnd Data'!$C$2:$C$115,">="&Dashboard!$D13,'BackEnd Data'!$C$2:$C$115,"<="&Dashboard!$E13),"") ->  | H13: =IFERROR(AVERAGEIFS('BackEnd Data'!$AX$2:$AX$115,'BackEnd Data'!$B$2:$B$115,INDEX('Employee Database'!$C$4:$C$53,MATCH(Dashboard!$C$58,'Employee Database'!$D$4:$D$51,0)),'BackEnd Data'!$C$2:$C$115,">="&Dashboard!$D13,'BackEnd Data'!$C$2:$C$115,"<="&Dashboard!$E13),"") ->  | I13: =IFERROR(AVERAGEIFS('BackEnd Data'!$AX$2:$AX$115,'BackEnd Data'!$B$2:$B$115,INDEX('Employee Database'!$C$4:$C$53,MATCH(Dashboard!$C$61,'Employee Database'!$D$4:$D$51,0)),'BackEnd Data'!$C$2:$C$115,">="&Dashboard!$D13,'BackEnd Data'!$C$2:$C$115,"<="&Dashboard!$E13),"") ->  | J13: =IFERROR(AVERAGEIFS('BackEnd Data'!$AX$2:$AX$115,'BackEnd Data'!$B$2:$B$115,INDEX('Employee Database'!$C$4:$C$53,MATCH(Dashboard!$C$64,'Employee Database'!$D$4:$D$51,0)),'BackEnd Data'!$C$2:$C$115,">="&Dashboard!$D13,'BackEnd Data'!$C$2:$C$115,"<="&Dashboard!$E13),"") ->  | K13: =IF(OR('Set Up'!D8="",Dashboard!K12=""),"",'Set Up'!D8) -> Lernen und Entwicklung | L13: =AVERAGEIF('BackEnd Data'!$BJ$2:$BJ$115,"<>"&0) -> 7.3125 | M13: =IF(K13="","",COUNTIF('Set Up'!$E$25:$E$69,Dashboard!$K$10)) -> 3 | N13: 2.4375
B14: 5 | C14: May | D14: 2023-05-01 | E14: 2023-05-31 | F14: =IFERROR(AVERAGEIFS('BackEnd Data'!$AX$2:$AX$115,'BackEnd Data'!$C$2:$C$115,">="&Dashboard!$D14,'BackEnd Data'!$C$2:$C$115,"<="&Dashboard!$E14),"") ->  | G14: =IFERROR(AVERAGEIFS('BackEnd Data'!$AX$2:$AX$115,'BackEnd Data'!$B$2:$B$115,INDEX('Employee Database'!$C$4:$C$53,MATCH(Dashboard!$C$55,'Employee Database'!$D$4:$D$51,0)),'BackEnd Data'!$C$2:$C$115,">="&Dashboard!$D14,'BackEnd Data'!$C$2:$C$115,"<="&Dashboard!$E14),"") ->  | H14: =IFERROR(AVERAGEIFS('BackEnd Data'!$AX$2:$AX$115,'BackEnd Data'!$B$2:$B$115,INDEX('Employee Database'!$C$4:$C$53,MATCH(Dashboard!$C$58,'Employee Database'!$D$4:$D$51,0)),'BackEnd Data'!$C$2:$C$115,">="&Dashboard!$D14,'BackEnd Data'!$C$2:$C$115,"<="&Dashboard!$E14),"") ->  | I14: =IFERROR(AVERAGEIFS('BackEnd Data'!$AX$2:$AX$115,'BackEnd Data'!$B$2:$B$115,INDEX('Employee Database'!$C$4:$C$53,MATCH(Dashboard!$C$61,'Employee Database'!$D$4:$D$51,0)),'BackEnd Data'!$C$2:$C$115,">="&Dashboard!$D14,'BackEnd Data'!$C$2:$C$115,"<="&Dashboard!$E14),"") ->  | J14: =IFERROR(AVERAGEIFS('BackEnd Data'!$AX$2:$AX$115,'BackEnd Data'!$B$2:$B$115,INDEX('Employee Database'!$C$4:$C$53,MATCH(Dashboard!$C$64,'Employee Database'!$D$4:$D$51,0)),'BackEnd Data'!$C$2:$C$115,">="&Dashboard!$D14,'BackEnd Data'!$C$2:$C$115,"<="&Dashboard!$E14),"") ->  | K14: =IF(OR('Set Up'!D9="",Dashboard!K13=""),"",'Set Up'!D9) -> Kommunikation | L14: =AVERAGEIF('BackEnd Data'!$BK$2:$BK$115,"<>"&0) -> 7.647058824 | M14: =IF(K14="","",COUNTIF('Set Up'!$E$25:$E$69,Dashboard!$K$10)) -> 3 | N14: 2.549019608
B15: 6 | C15: Jun | D15: 2023-06-01 | E15: 2023-06-30 | F15: =IFERROR(AVERAGEIFS('BackEnd Data'!$AX$2:$AX$115,'BackEnd Data'!$C$2:$C$115,">="&Dashboard!$D15,'BackEnd Data'!$C$2:$C$115,"<="&Dashboard!$E15),"") ->  | G15: =IFERROR(AVERAGEIFS('BackEnd Data'!$AX$2:$AX$115,'BackEnd Data'!$B$2:$B$115,INDEX('Employee Database'!$C$4:$C$53,MATCH(Dashboard!$C$55,'Employee Database'!$D$4:$D$51,0)),'BackEnd Data'!$C$2:$C$115,">="&Dashboard!$D15,'BackEnd Data'!$C$2:$C$115,"<="&Dashboard!$E15),"") ->  | H15: =IFERROR(AVERAGEIFS('BackEnd Data'!$AX$2:$AX$115,'BackEnd Data'!$B$2:$B$115,INDEX('Employee Database'!$C$4:$C$53,MATCH(Dashboard!$C$58,'Employee Database'!$D$4:$D$51,0)),'BackEnd Data'!$C$2:$C$115,">="&Dashboard!$D15,'BackEnd Data'!$C$2:$C$115,"<="&Dashboard!$E15),"") ->  | I15: =IFERROR(AVERAGEIFS('BackEnd Data'!$AX$2:$AX$115,'BackEnd Data'!$B$2:$B$115,INDEX('Employee Database'!$C$4:$C$53,MATCH(Dashboard!$C$61,'Employee Database'!$D$4:$D$51,0)),'BackEnd Data'!$C$2:$C$115,">="&Dashboard!$D15,'BackEnd Data'!$C$2:$C$115,"<="&Dashboard!$E15),"") ->  | J15: =IFERROR(AVERAGEIFS('BackEnd Data'!$AX$2:$AX$115,'BackEnd Data'!$B$2:$B$115,INDEX('Employee Database'!$C$4:$C$53,MATCH(Dashboard!$C$64,'Employee Database'!$D$4:$D$51,0)),'BackEnd Data'!$C$2:$C$115,">="&Dashboard!$D15,'BackEnd Data'!$C$2:$C$115,"<="&Dashboard!$E15),"") ->  | K15: =IF(OR('Set Up'!D10="",Dashboard!K14=""),"",'Set Up'!D10) -> Interne Beziehungen | L15: =AVERAGEIF('BackEnd Data'!$BL$2:$BL$115,"<>"&0) -> 7.25 | M15: =IF(K15="","",COUNTIF('Set Up'!$E$25:$E$69,Dashboard!$K$10)) -> 3 | N15: 2.416666667
B16: 7 | C16: Jul | D16: 2023-07-01 | E16: 2023-07-31 | F16: =IFERROR(AVERAGEIFS('BackEnd Data'!$AX$2:$AX$115,'BackEnd Data'!$C$2:$C$115,">="&Dashboard!$D16,'BackEnd Data'!$C$2:$C$115,"<="&Dashboard!$E16),"") ->  | G16: =IFERROR(AVERAGEIFS('BackEnd Data'!$AX$2:$AX$115,'BackEnd Data'!$B$2:$B$115,INDEX('Employee Database'!$C$4:$C$53,MATCH(Dashboard!$C$55,'Employee Database'!$D$4:$D$51,0)),'BackEnd Data'!$C$2:$C$115,">="&Dashboard!$D16,'BackEnd Data'!$C$2:$C$115,"<="&Dashboard!$E16),"") ->  | H16: =IFERROR(AVERAGEIFS('BackEnd Data'!$AX$2:$AX$115,'BackEnd Data'!$B$2:$B$115,INDEX('Employee Database'!$C$4:$C$53,MATCH(Dashboard!$C$58,'Employee Database'!$D$4:$D$51,0)),'BackEnd Data'!$C$2:$C$115,">="&Dashboard!$D16,'BackEnd Data'!$C$2:$C$115,"<="&Dashboard!$E16),"") ->  | I16: =IFERROR(AVERAGEIFS('BackEnd Data'!$AX$2:$AX$115,'BackEnd Data'!$B$2:$B$115,INDEX('Employee Database'!$C$4:$C$53,MATCH(Dashboard!$C$61,'Employee Database'!$D$4:$D$51,0)),'BackEnd Data'!$C$2:$C$115,">="&Dashboard!$D16,'BackEnd Data'!$C$2:$C$115,"<="&Dashboard!$E16),"") ->  | J16: =IFERROR(AVERAGEIFS('BackEnd Data'!$AX$2:$AX$115,'BackEnd Data'!$B$2:$B$115,INDEX('Employee Database'!$C$4:$C$53,MATCH(Dashboard!$C$64,'Employee Database'!$D$4:$D$51,0)),'BackEnd Data'!$C$2:$C$115,">="&Dashboard!$D16,'BackEnd Data'!$C$2:$C$115,"<="&Dashboard!$E16),"") ->  | K16: =IF(OR('Set Up'!D11="",Dashboard!K15=""),"",'Set Up'!D11) -> Anwesenheit | L16: =AVERAGEIF('BackEnd Data'!$BM$2:$BM$115,"<>"&0) -> 5.133333333 | M16: =IF(K16="","",COUNTIF('Set Up'!$E$25:$E$69,Dashboard!$K$10)) -> 3 | N16: 1.711111111
B17: 8 | C17: Aug | D17: 2023-08-01 | E17: 2023-08-31 | F17: =IFERROR(AVERAGEIFS('BackEnd Data'!$AX$2:$AX$115,'BackEnd Data'!$C$2:$C$115,">="&Dashboard!$D17,'BackEnd Data'!$C$2:$C$115,"<="&Dashboard!$E17),"") ->  | G17: =IFERROR(AVERAGEIFS('BackEnd Data'!$AX$2:$AX$115,'BackEnd Data'!$B$2:$B$115,INDEX('Employee Database'!$C$4:$C$53,MATCH(Dashboard!$C$55,'Employee Database'!$D$4:$D$51,0)),'BackEnd Data'!$C$2:$C$115,">="&Dashboard!$D17,'BackEnd Data'!$C$2:$C$115,"<="&Dashboard!$E17),"") ->  | H17: =IFERROR(AVERAGEIFS('BackEnd Data'!$AX$2:$AX$115,'BackEnd Data'!$B$2:$B$115,INDEX('Employee Database'!$C$4:$C$53,MATCH(Dashboard!$C$58,'Employee Database'!$D$4:$D$51,0)),'BackEnd Data'!$C$2:$C$115,">="&Dashboard!$D17,'BackEnd Data'!$C$2:$C$115,"<="&Dashboard!$E17),"") ->  | I17: =IFERROR(AVERAGEIFS('BackEnd Data'!$AX$2:$AX$115,'BackEnd Data'!$B$2:$B$115,INDEX('Employee Database'!$C$4:$C$53,MATCH(Dashboard!$C$61,'Employee Database'!$D$4:$D$51,0)),'BackEnd Data'!$C$2:$C$115,">="&Dashboard!$D17,'BackEnd Data'!$C$2:$C$115,"<="&Dashboard!$E17),"") ->  | J17: =IFERROR(AVERAGEIFS('BackEnd Data'!$AX$2:$AX$115,'BackEnd Data'!$B$2:$B$115,INDEX('Employee Database'!$C$4:$C$53,MATCH(Dashboard!$C$64,'Employee Database'!$D$4:$D$51,0)),'BackEnd Data'!$C$2:$C$115,">="&Dashboard!$D17,'BackEnd Data'!$C$2:$C$115,"<="&Dashboard!$E17),"") ->  | K17: =IF(OR('Set Up'!D12="",Dashboard!K16=""),"",'Set Up'!D12) ->  | L17: =IFERROR(AVERAGEIF('BackEnd Data'!$BN$2:$BN$115,"<>"&0),"") ->  | M17: =IF(K17="","",COUNTIF('Set Up'!$E$25:$E$69,Dashboard!$K$10)) -> 
B18: 9 | C18: Sep | D18: 2023-09-01 | E18: 2023-09-30 | F18: =IFERROR(AVERAGEIFS('BackEnd Data'!$AX$2:$AX$115,'BackEnd Data'!$C$2:$C$115,">="&Dashboard!$D18,'BackEnd Data'!$C$2:$C$115,"<="&Dashboard!$E18),"") ->  | G18: =IFERROR(AVERAGEIFS('BackEnd Data'!$AX$2:$AX$115,'BackEnd Data'!$B$2:$B$115,INDEX('Employee Database'!$C$4:$C$53,MATCH(Dashboard!$C$55,'Employee Database'!$D$4:$D$51,0)),'BackEnd Data'!$C$2:$C$115,">="&Dashboard!$D18,'BackEnd Data'!$C$2:$C$115,"<="&Dashboard!$E18),"") ->  | H18: =IFERROR(AVERAGEIFS('BackEnd Data'!$AX$2:$AX$115,'BackEnd Data'!$B$2:$B$115,INDEX('Employee Database'!$C$4:$C$53,MATCH(Dashboard!$C$58,'Employee Database'!$D$4:$D$51,0)),'BackEnd Data'!$C$2:$C$115,">="&Dashboard!$D18,'BackEnd Data'!$C$2:$C$115,"<="&Dashboard!$E18),"") ->  | I18: =IFERROR(AVERAGEIFS('BackEnd Data'!$AX$2:$AX$115,'BackEnd Data'!$B$2:$B$115,INDEX('Employee Database'!$C$4:$C$53,MATCH(Dashboard!$C$61,'Employee Database'!$D$4:$D$51,0)),'BackEnd Data'!$C$2:$C$115,">="&Dashboard!$D18,'BackEnd Data'!$C$2:$C$115,"<="&Dashboard!$E18),"") ->  | J18: =IFERROR(AVERAGEIFS('BackEnd Data'!$AX$2:$AX$115,'BackEnd Data'!$B$2:$B$115,INDEX('Employee Database'!$C$4:$C$53,MATCH(Dashboard!$C$64,'Employee Database'!$D$4:$D$51,0)),'BackEnd Data'!$C$2:$C$115,">="&Dashboard!$D18,'BackEnd Data'!$C$2:$C$115,"<="&Dashboard!$E18),"") ->  | K18: =IF(OR('Set Up'!D13="",Dashboard!K17=""),"",'Set Up'!D13) ->  | L18: =IFERROR(AVERAGEIF('BackEnd Data'!$BO$2:$BO$115,"<>"&0),"") ->  | M18: =IF(K18="","",COUNTIF('Set Up'!$E$25:$E$69,Dashboard!$K$10)) -> 
B19: 10 | C19: Oct | D19: 2023-10-01 | E19: 2023-10-31 | F19: =IFERROR(AVERAGEIFS('BackEnd Data'!$AX$2:$AX$115,'BackEnd Data'!$C$2:$C$115,">="&Dashboard!$D19,'BackEnd Data'!$C$2:$C$115,"<="&Dashboard!$E19),"") ->  | G19: =IFERROR(AVERAGEIFS('BackEnd Data'!$AX$2:$AX$115,'BackEnd Data'!$B$2:$B$115,INDEX('Employee Database'!$C$4:$C$53,MATCH(Dashboard!$C$55,'Employee Database'!$D$4:$D$51,0)),'BackEnd Data'!$C$2:$C$115,">="&Dashboard!$D19,'BackEnd Data'!$C$2:$C$115,"<="&Dashboard!$E19),"") ->  | H19: =IFERROR(AVERAGEIFS('BackEnd Data'!$AX$2:$AX$115,'BackEnd Data'!$B$2:$B$115,INDEX('Employee Database'!$C$4:$C$53,MATCH(Dashboard!$C$58,'Employee Database'!$D$4:$D$51,0)),'BackEnd Data'!$C$2:$C$115,">="&Dashboard!$D19,'BackEnd Data'!$C$2:$C$115,"<="&Dashboard!$E19),"") ->  | I19: =IFERROR(AVERAGEIFS('BackEnd Data'!$AX$2:$AX$115,'BackEnd Data'!$B$2:$B$115,INDEX('Employee Database'!$C$4:$C$53,MATCH(Dashboard!$C$61,'Employee Database'!$D$4:$D$51,0)),'BackEnd Data'!$C$2:$C$115,">="&Dashboard!$D19,'BackEnd Data'!$C$2:$C$115,"<="&Dashboard!$E19),"") ->  | J19: =IFERROR(AVERAGEIFS('BackEnd Data'!$AX$2:$AX$115,'BackEnd Data'!$B$2:$B$115,INDEX('Employee Database'!$C$4:$C$53,MATCH(Dashboard!$C$64,'Employee Database'!$D$4:$D$51,0)),'BackEnd Data'!$C$2:$C$115,">="&Dashboard!$D19,'BackEnd Data'!$C$2:$C$115,"<="&Dashboard!$E19),"") ->  | K19: =IF(OR('Set Up'!D14="",Dashboard!K18=""),"",'Set Up'!D14) ->  | L19: =IFERROR(AVERAGEIF('BackEnd Data'!$BP$2:$BP$115,"<>"&0),"") ->  | M19: =IF(K19="","",COUNTIF('Set Up'!$E$25:$E$69,Dashboard!$K$10)) -> 
B20: 11 | C20: Nov | D20: 2023-11-01 | E20: 2023-11-30 | F20: =IFERROR(AVERAGEIFS('BackEnd Data'!$AX$2:$AX$115,'BackEnd Data'!$C$2:$C$115,">="&Dashboard!$D20,'BackEnd Data'!$C$2:$C$115,"<="&Dashboard!$E20),"") ->  | G20: =IFERROR(AVERAGEIFS('BackEnd Data'!$AX$2:$AX$115,'BackEnd Data'!$B$2:$B$115,INDEX('Employee Database'!$C$4:$C$53,MATCH(Dashboard!$C$55,'Employee Database'!$D$4:$D$51,0)),'BackEnd Data'!$C$2:$C$115,">="&Dashboard!$D20,'BackEnd Data'!$C$2:$C$115,"<="&Dashboard!$E20),"") ->  | H20: =IFERROR(AVERAGEIFS('BackEnd Data'!$AX$2:$AX$115,'BackEnd Data'!$B$2:$B$115,INDEX('Employee Database'!$C$4:$C$53,MATCH(Dashboard!$C$58,'Employee Database'!$D$4:$D$51,0)),'BackEnd Data'!$C$2:$C$115,">="&Dashboard!$D20,'BackEnd Data'!$C$2:$C$115,"<="&Dashboard!$E20),"") ->  | I20: =IFERROR(AVERAGEIFS('BackEnd Data'!$AX$2:$AX$115,'BackEnd Data'!$B$2:$B$115,INDEX('Employee Database'!$C$4:$C$53,MATCH(Dashboard!$C$61,'Employee Database'!$D$4:$D$51,0)),'BackEnd Data'!$C$2:$C$115,">="&Dashboard!$D20,'BackEnd Data'!$C$2:$C$115,"<="&Dashboard!$E20),"") ->  | J20: =IFERROR(AVERAGEIFS('BackEnd Data'!$AX$2:$AX$115,'BackEnd Data'!$B$2:$B$115,INDEX('Employee Database'!$C$4:$C$53,MATCH(Dashboard!$C$64,'Employee Database'!$D$4:$D$51,0)),'BackEnd Data'!$C$2:$C$115,">="&Dashboard!$D20,'BackEnd Data'!$C$2:$C$115,"<="&Dashboard!$E20),"") ->  | K20: =IF(OR('Set Up'!D15="",Dashboard!K19=""),"",'Set Up'!D15) ->  | L20: =IFERROR(AVERAGEIF('BackEnd Data'!$BQ$2:$BQ$115,"<>"&0),"") ->  | M20: =IF(K20="","",COUNTIF('Set Up'!$E$25:$E$69,Dashboard!$K$10)) -> 
B21: 12 | C21: Dec | D21: 2023-12-01 | E21: 2023-12-31 | F21: =IFERROR(AVERAGEIFS('BackEnd Data'!$AX$2:$AX$115,'BackEnd Data'!$C$2:$C$115,">="&Dashboard!$D21,'BackEnd Data'!$C$2:$C$115,"<="&Dashboard!$E21),"") ->  | G21: =IFERROR(AVERAGEIFS('BackEnd Data'!$AX$2:$AX$115,'BackEnd Data'!$B$2:$B$115,INDEX('Employee Database'!$C$4:$C$53,MATCH(Dashboard!$C$55,'Employee Database'!$D$4:$D$51,0)),'BackEnd Data'!$C$2:$C$115,">="&Dashboard!$D21,'BackEnd Data'!$C$2:$C$115,"<="&Dashboard!$E21),"") ->  | H21: =IFERROR(AVERAGEIFS('BackEnd Data'!$AX$2:$AX$115,'BackEnd Data'!$B$2:$B$115,INDEX('Employee Database'!$C$4:$C$53,MATCH(Dashboard!$C$58,'Employee Database'!$D$4:$D$51,0)),'BackEnd Data'!$C$2:$C$115,">="&Dashboard!$D21,'BackEnd Data'!$C$2:$C$115,"<="&Dashboard!$E21),"") ->  | I21: =IFERROR(AVERAGEIFS('BackEnd Data'!$AX$2:$AX$115,'BackEnd Data'!$B$2:$B$115,INDEX('Employee Database'!$C$4:$C$53,MATCH(Dashboard!$C$61,'Employee Database'!$D$4:$D$51,0)),'BackEnd Data'!$C$2:$C$115,">="&Dashboard!$D21,'BackEnd Data'!$C$2:$C$115,"<="&Dashboard!$E21),"") ->  | J21: =IFERROR(AVERAGEIFS('BackEnd Data'!$AX$2:$AX$115,'BackEnd Data'!$B$2:$B$115,INDEX('Employee Database'!$C$4:$C$53,MATCH(Dashboard!$C$64,'Employee Database'!$D$4:$D$51,0)),'BackEnd Data'!$C$2:$C$115,">="&Dashboard!$D21,'BackEnd Data'!$C$2:$C$115,"<="&Dashboard!$E21),"") ->  | K21: =IF(OR('Set Up'!D16="",Dashboard!K20=""),"",'Set Up'!D16) ->  | L21: =IFERROR(AVERAGEIF('BackEnd Data'!$BR$2:$BR$115,"<>"&0),"") ->  | M21: =IF(K21="","",COUNTIF('Set Up'!$E$25:$E$69,Dashboard!$K$10)) -> 
K22: =IF(OR('Set Up'!D17="",Dashboard!K21=""),"",'Set Up'!D17) ->  | L22: =IFERROR(AVERAGEIF('BackEnd Data'!$BS$2:$BS$115,"<>"&0),"") ->  | M22: =IF(K22="","",COUNTIF('Set Up'!$E$25:$E$69,Dashboard!$K$10)) -> 
K23: =IF(OR('Set Up'!D18="",Dashboard!K22=""),"",'Set Up'!D18) ->  | L23: =IFERROR(AVERAGEIF('BackEnd Data'!$BT$2:$BT$115,"<>"&0),"") ->  | M23: =IF(K23="","",COUNTIF('Set Up'!$E$25:$E$69,Dashboard!$K$10)) -> 
K24: =IF(OR('Set Up'!D19="",Dashboard!K23=""),"",'Set Up'!D19) ->  | L24: =IFERROR(AVERAGEIF('BackEnd Data'!$BU$2:$BU$115,"<>"&0),"") ->  | M24: =IF(K24="","",COUNTIF('Set Up'!$E$25:$E$69,Dashboard!$K$10)) -> 
B28: ABTEILUNGSÜBERPRÜFUNG | E28: Wähle eine Abteilung aus: | F28: Planung | I28: Vergleichen mit: | K28: Betrieb
C30: DURCHSCHNITTLICHES ERGEBNIS
C31: =ROUND(AVERAGEIF('BackEnd Data'!$D$2:$D$115,Dashboard!$F$28,'BackEnd Data'!AX2:AY115),1)&CHAR(10)&VLOOKUP(AVERAGEIF('BackEnd Data'!$D$2:$D$115,Dashboard!$F$28,'BackEnd Data'!AX2:AY115),'Review Sheet'!$J$21:$K$25,2,1) -> 
C33: BESTER PERFORMER
C34: =INDEX('Employee Database'!$D$4:$D$51,MATCH(Dashboard!D34,'Employee Database'!$K$4:$K$53,0)) ->  | D34: =_xlfn.MAXIFS('Employee Database'!K4:K53,'Employee Database'!G4:G51,Dashboard!$F$28) ->  | E34: =AVERAGEIFS('BackEnd Data'!$BG$2:$BG$115,'BackEnd Data'!$B$2:$B$115,INDEX('Employee Database'!$C$4:$C$53,MATCH(Dashboard!$C$58,'Employee Database'!$D$4:$D$51,0))) -> 5 | F34: =IFERROR(E34/M34,"") -> 1.666666667 | H34: =AVERAGEIFS('BackEnd Data'!$BG$2:$BG$115,'BackEnd Data'!$B$2:$B$115,INDEX('Employee Database'!$C$4:$C$53,MATCH(Dashboard!$C$55,'Employee Database'!$D$4:$D$51,0))) -> 6.5 | I34: =IFERROR(H34/M34,"") -> 2.166666667 | K34: =IF(K10="","",K10) -> Produktivität | L34: =AVERAGEIFS('BackEnd Data'!$BG$2:$BG$115,'BackEnd Data'!$D$2:$D$115,$F$28) ->  | M34: =IF(K34="","",COUNTIF('Set Up'!$E$25:$E$69,Dashboard!$K$10)) -> 3 | N34: =IFERROR(L34/M34,"") ->  | O34: =AVERAGEIFS('BackEnd Data'!$BG$2:$BG$115,'BackEnd Data'!$D$2:$D$115,$K$28) ->  | P34: =IFERROR(O34/M34,"") -> 
E35: =AVERAGEIFS('BackEnd Data'!$BH$2:$BH$115,'BackEnd Data'!$B$2:$B$115,INDEX('Employee Database'!$C$4:$C$53,MATCH(Dashboard!$C$58,'Employee Database'!$D$4:$D$51,0))) -> 6.5 | F35: =IFERROR(E35/M35,"") -> 2.166666667 | H35: =AVERAGEIFS('BackEnd Data'!$BH$2:$BH$115,'BackEnd Data'!$B$2:$B$115,INDEX('Employee Database'!$C$4:$C$53,MATCH(Dashboard!$C$55,'Employee Database'!$D$4:$D$51,0))) -> 7 | I35: =IFERROR(H35/M35,"") -> 2.333333333 | K35: Effizienz | L35: =AVERAGEIFS('BackEnd Data'!$BH$2:$BH$115,'BackEnd Data'!$D$2:$D$115,$F$28) ->  | M35: =IF(K35="","",COUNTIF('Set Up'!$E$25:$E$69,Dashboard!$K$10)) -> 3 | N35: =IFERROR(L35/M35,"") ->  | O35: =AVERAGEIFS('BackEnd Data'!$BH$2:$BH$115,'BackEnd Data'!$D$2:$D$115,$K$28) ->  | P35: =IFERROR(O35/M35,"") -> 
E36: =AVERAGEIFS('BackEnd Data'!$BI$2:$BI$115,'BackEnd Data'!$B$2:$B$115,INDEX('Employee Database'!$C$4:$C$53,MATCH(Dashboard!$C$58,'Employee Database'!$D$4:$D$51,0))) -> 3 | F36: 1 | H36: =AVERAGEIFS('BackEnd Data'!$BI$2:$BI$115,'BackEnd Data'!$B$2:$B$115,INDEX('Employee Database'!$C$4:$C$53,MATCH(Dashboard!$C$55,'Employee Database'!$D$4:$D$51,0))) -> 2 | I36: 0.6666666667 | K36: Organisationsfähigkeiten | L36: =AVERAGEIFS('BackEnd Data'!$BI$2:$BI$115,'BackEnd Data'!$D$2:$D$115,$F$28) ->  | M36: =IF(K36="","",COUNTIF('Set Up'!$E$25:$E$69,Dashboard!$K$10)) -> 3 | O36: =AVERAGEIFS('BackEnd Data'!$BI$2:$BI$115,'BackEnd Data'!$D$2:$D$115,$K$28) -> 
C37: SCHLECHTESTER PERFORMER | E37: =AVERAGEIFS('BackEnd Data'!$BJ$2:$BJ$115,'BackEnd Data'!$B$2:$B$115,INDEX('Employee Database'!$C$4:$C$53,MATCH(Dashboard!$C$58,'Employee Database'!$D$4:$D$51,0))) -> 4.5 | F37: 1.5 | H37: =AVERAGEIFS('BackEnd Data'!$BJ$2:$BJ$115,'BackEnd Data'!$B$2:$B$115,INDEX('Employee Database'!$C$4:$C$53,MATCH(Dashboard!$C$55,'Employee Database'!$D$4:$D$51,0))) -> 9.5 | I37: 3.166666667 | K37: Lernen und Entwicklung | L37: =AVERAGEIFS('BackEnd Data'!$BJ$2:$BJ$115,'BackEnd Data'!$D$2:$D$115,$F$28) ->  | M37: =IF(K37="","",COUNTIF('Set Up'!$E$25:$E$69,Dashboard!$K$10)) -> 3 | O37: =AVERAGEIFS('BackEnd Data'!$BJ$2:$BJ$115,'BackEnd Data'!$D$2:$D$115,$K$28) -> 
C38: =INDEX('Employee Database'!$D$4:$D$51,MATCH(Dashboard!D38,'Employee Database'!$K$4:$K$53,0)) ->  | D38: =_xlfn.MINIFS('Employee Database'!K4:K53,'Employee Database'!$G$4:$G$51,Dashboard!$F$28) ->  | E38: =AVERAGEIFS('BackEnd Data'!$BK$2:$BK$115,'BackEnd Data'!$B$2:$B$115,INDEX('Employee Database'!$C$4:$C$53,MATCH(Dashboard!$C$58,'Employee Database'!$D$4:$D$51,0))) -> 7.5 | F38: 2.5 | H38: =AVERAGEIFS('BackEnd Data'!$BK$2:$BK$115,'BackEnd Data'!$B$2:$B$115,INDEX('Employee Database'!$C$4:$C$53,MATCH(Dashboard!$C$55,'Employee Database'!$D$4:$D$51,0))) -> 5.5 | I38: 1.833333333 | K38: Kommunikation | L38: =AVERAGEIFS('BackEnd Data'!$BK$2:$BK$115,'BackEnd Data'!$D$2:$D$115,$F$28) ->  | M38: =IF(K38="","",COUNTIF('Set Up'!$E$25:$E$69,Dashboard!$K$10)) -> 3 | O38: =AVERAGEIFS('BackEnd Data'!$BK$2:$BK$115,'BackEnd Data'!$D$2:$D$115,$K$28) -> 
E39: =AVERAGEIFS('BackEnd Data'!$BL$2:$BL$115,'BackEnd Data'!$B$2:$B$115,INDEX('Employee Database'!$C$4:$C$53,MATCH(Dashboard!$C$58,'Employee Database'!$D$4:$D$51,0))) -> 4 | F39: 1.333333333 | H39: =AVERAGEIFS('BackEnd Data'!$BL$2:$BL$115,'BackEnd Data'!$B$2:$B$115,INDEX('Employee Database'!$C$4:$C$53,MATCH(Dashboard!$C$55,'Employee Database'!$D$4:$D$51,0))) -> 4.5 | I39: 1.5 | K39: Interne Beziehungen | L39: =AVERAGEIFS('BackEnd Data'!$BL$2:$BL$115,'BackEnd Data'!$D$2:$D$115,$F$28) ->  | M39: =IF(K39="","",COUNTIF('Set Up'!$E$25:$E$69,Dashboard!$K$10)) -> 3 | O39: =AVERAGEIFS('BackEnd Data'!$BL$2:$BL$115,'BackEnd Data'!$D$2:$D$115,$K$28) -> 
E40: =AVERAGEIFS('BackEnd Data'!$BM$2:$BM$115,'BackEnd Data'!$B$2:$B$115,INDEX('Employee Database'!$C$4:$C$53,MATCH(Dashboard!$C$58,'Employee Database'!$D$4:$D$51,0))) -> 2 | F40: 0.6666666667 | H40: =AVERAGEIFS('BackEnd Data'!$BM$2:$BM$115,'BackEnd Data'!$B$2:$B$115,INDEX('Employee Database'!$C$4:$C$53,MATCH(Dashboard!$C$55,'Employee Database'!$D$4:$D$51,0))) -> 2.5 | I40: 0.8333333333 | K40: Anwesenheit | L40: =AVERAGEIFS('BackEnd Data'!$BM$2:$BM$115,'BackEnd Data'!$D$2:$D$115,$F$28) ->  | M40: =IF(K40="","",COUNTIF('Set Up'!$E$25:$E$69,Dashboard!$K$10)) -> 3 | O40: =AVERAGEIFS('BackEnd Data'!$BM$2:$BM$115,'BackEnd Data'!$D$2:$D$115,$K$28) -> 
E41: =IFERROR(AVERAGEIFS('BackEnd Data'!$BN$2:$BN$115,'BackEnd Data'!$B$2:$B$115,INDEX('Employee Database'!$C$4:$C$53,MATCH(Dashboard!$C$58,'Employee Database'!$D$4:$D$51,0))),"") -> 0 | H41: =IFERROR(AVERAGEIFS('BackEnd Data'!$BN$2:$BN$115,'BackEnd Data'!$B$2:$B$115,INDEX('Employee Database'!$C$4:$C$53,MATCH(Dashboard!$C$55,'Employee Database'!$D$4:$D$51,0))),"") -> 0 | L41: =IFERROR(AVERAGEIFS('BackEnd Data'!$BN$2:$BN$115,'BackEnd Data'!$D$2:$D$115,$F$28),"") ->  | M41: =IF(K41="","",COUNTIF('Set Up'!$E$25:$E$69,Dashboard!$K$10)) ->  | O41: =IFERROR(AVERAGEIFS('BackEnd Data'!$BN$2:$BN$115,'BackEnd Data'!$D$2:$D$115,$K$28),"") -> 
E42: =IFERROR(AVERAGEIFS('BackEnd Data'!$BO$2:$BO$115,'BackEnd Data'!$B$2:$B$115,INDEX('Employee Database'!$C$4:$C$53,MATCH(Dashboard!$C$58,'Employee Database'!$D$4:$D$51,0))),"") -> 0 | H42: =IFERROR(AVERAGEIFS('BackEnd Data'!$BO$2:$BO$115,'BackEnd Data'!$B$2:$B$115,INDEX('Employee Database'!$C$4:$C$53,MATCH(Dashboard!$C$55,'Employee Database'!$D$4:$D$51,0))),"") -> 0 | L42: =IFERROR(AVERAGEIFS('BackEnd Data'!$BO$2:$BO$115,'BackEnd Data'!$D$2:$D$115,$F$28),"") ->  | M42: =IF(K42="","",COUNTIF('Set Up'!$E$25:$E$69,Dashboard!$K$10)) ->  | O42: =IFERROR(AVERAGEIFS('BackEnd Data'!$BO$2:$BO$115,'BackEnd Data'!$D$2:$D$115,$K$28),"") -> 
E43: =IFERROR(AVERAGEIFS('BackEnd Data'!$BP$2:$BP$115,'BackEnd Data'!$B$2:$B$115,INDEX('Employee Database'!$C$4:$C$53,MATCH(Dashboard!$C$58,'Employee Database'!$D$4:$D$51,0))),"") -> 0 | H43: =IFERROR(AVERAGEIFS('BackEnd Data'!$BP$2:$BP$115,'BackEnd Data'!$B$2:$B$115,INDEX('Employee Database'!$C$4:$C$53,MATCH(Dashboard!$C$55,'Employee Database'!$D$4:$D$51,0))),"") -> 0 | L43: =IFERROR(AVERAGEIFS('BackEnd Data'!$BP$2:$BP$115,'BackEnd Data'!$D$2:$D$115,$F$28),"") ->  | M43: =IF(K43="","",COUNTIF('Set Up'!$E$25:$E$69,Dashboard!$K$10)) ->  | O43: =IFERROR(AVERAGEIFS('BackEnd Data'!$BP$2:$BP$115,'BackEnd Data'!$D$2:$D$115,$K$28),"") -> 
E44: =IFERROR(AVERAGEIFS('BackEnd Data'!$BQ$2:$BQ$115,'BackEnd Data'!$B$2:$B$115,INDEX('Employee Database'!$C$4:$C$53,MATCH(Dashboard!$C$58,'Employee Database'!$D$4:$D$51,0))),"") -> 0 | H44: =IFERROR(AVERAGEIFS('BackEnd Data'!$BQ$2:$BQ$115,'BackEnd Data'!$B$2:$B$115,INDEX('Employee Database'!$C$4:$C$53,MATCH(Dashboard!$C$55,'Employee Database'!$D$4:$D$51,0))),"") -> 0 | L44: =IFERROR(AVERAGEIFS('BackEnd Data'!$BQ$2:$BQ$115,'BackEnd Data'!$D$2:$D$115,$F$28),"") ->  | M44: =IF(K44="","",COUNTIF('Set Up'!$E$25:$E$69,Dashboard!$K$10)) ->  | O44: =IFERROR(AVERAGEIFS('BackEnd Data'!$BQ$2:$BQ$115,'BackEnd Data'!$D$2:$D$115,$K$28),"") -> 
E45: =IFERROR(AVERAGEIFS('BackEnd Data'!$BR$2:$BR$115,'BackEnd Data'!$B$2:$B$115,INDEX('Employee Database'!$C$4:$C$53,MATCH(Dashboard!$C$58,'Employee Database'!$D$4:$D$51,0))),"") -> 0 | H45: =IFERROR(AVERAGEIFS('BackEnd Data'!$BR$2:$BR$115,'BackEnd Data'!$B$2:$B$115,INDEX('Employee Database'!$C$4:$C$53,MATCH(Dashboard!$C$55,'Employee Database'!$D$4:$D$51,0))),"") -> 0 | L45: =IFERROR(AVERAGEIFS('BackEnd Data'!$BR$2:$BR$115,'BackEnd Data'!$D$2:$D$115,$F$28),"") ->  | M45: =IF(K45="","",COUNTIF('Set Up'!$E$25:$E$69,Dashboard!$K$10)) ->  | O45: =IFERROR(AVERAGEIFS('BackEnd Data'!$BR$2:$BR$115,'BackEnd Data'!$D$2:$D$115,$K$28),"") -> 
E46: =IFERROR(AVERAGEIFS('BackEnd Data'!$BS$2:$BS$115,'BackEnd Data'!$B$2:$B$115,INDEX('Employee Database'!$C$4:$C$53,MATCH(Dashboard!$C$58,'Employee Database'!$D$4:$D$51,0))),"") -> 0 | H46: =IFERROR(AVERAGEIFS('BackEnd Data'!$BS$2:$BS$115,'BackEnd Data'!$B$2:$B$115,INDEX('Employee Database'!$C$4:$C$53,MATCH(Dashboard!$C$55,'Employee Database'!$D$4:$D$51,0))),"") -> 0 | L46: =IFERROR(AVERAGEIFS('BackEnd Data'!$BS$2:$BS$115,'BackEnd Data'!$D$2:$D$115,$F$28),"") ->  | M46: =IF(K46="","",COUNTIF('Set Up'!$E$25:$E$69,Dashboard!$K$10)) ->  | O46: =IFERROR(AVERAGEIFS('BackEnd Data'!$BS$2:$BS$115,'BackEnd Data'!$D$2:$D$115,$K$28),"") -> 
E47: =IFERROR(AVERAGEIFS('BackEnd Data'!$BT$2:$BT$115,'BackEnd Data'!$B$2:$B$115,INDEX('Employee Database'!$C$4:$C$53,MATCH(Dashboard!$C$58,'Employee Database'!$D$4:$D$51,0))),"") -> 0 | H47: =IFERROR(AVERAGEIFS('BackEnd Data'!$BT$2:$BT$115,'BackEnd Data'!$B$2:$B$115,INDEX('Employee Database'!$C$4:$C$53,MATCH(Dashboard!$C$55,'Employee Database'!$D$4:$D$51,0))),"") -> 0 | L47: =IFERROR(AVERAGEIFS('BackEnd Data'!$BT$2:$BT$115,'BackEnd Data'!$D$2:$D$115,$F$28),"") ->  | M47: =IF(K47="","",COUNTIF('Set Up'!$E$25:$E$69,Dashboard!$K$10)) ->  | O47: =IFERROR(AVERAGEIFS('BackEnd Data'!$BT$2:$BT$115,'BackEnd Data'!$D$2:$D$115,$K$28),"") -> 
E48: =IFERROR(AVERAGEIFS('BackEnd Data'!$BU$2:$BU$115,'BackEnd Data'!$B$2:$B$115,INDEX('Employee Database'!$C$4:$C$53,MATCH(Dashboard!$C$58,'Employee Database'!$D$4:$D$51,0))),"") -> 0 | H48: =IFERROR(AVERAGEIFS('BackEnd Data'!$BU$2:$BU$115,'BackEnd Data'!$B$2:$B$115,INDEX('Employee Database'!$C$4:$C$53,MATCH(Dashboard!$C$55,'Employee Database'!$D$4:$D$51,0))),"") -> 0 | L48: =IFERROR(AVERAGEIFS('BackEnd Data'!$BU$2:$BU$115,'BackEnd Data'!$D$2:$D$115,$F$28),"") ->  | M48: =IF(K48="","",COUNTIF('Set Up'!$E$25:$E$69,Dashboard!$K$10)) ->  | O48: =IFERROR(AVERAGEIFS('BackEnd Data'!$BU$2:$BU$115,'BackEnd Data'!$D$2:$D$115,$K$28),"") -> 
B49: MITARBEITERVERGLEICH
C51: Wähle bis zu 4 Mitarbeiter aus, um ihre jeweiligen Bewertungen zu vergleichen:
C54: Mitarbeiter 1:
C55: Carlos Gonzalez
C57: Mitarbeiter 2: | E57: =AVERAGEIF('BackEnd Data'!$B$2:$B$115,INDEX('Employee Database'!$C$4:$C$53,MATCH(Dashboard!$C$55,'Employee Database'!$D$4:$D$51,0)),'BackEnd Data'!$AX$2:$AX$115) -> 83 | F57: 0 | G57: 0 | H57: 0
C58: Jeff Kent | E58: 0 | F58: =AVERAGEIF('BackEnd Data'!$B$2:$B$115,INDEX('Employee Database'!$C$4:$C$53,MATCH(Dashboard!$C$58,'Employee Database'!$D$4:$D$51,0)),'BackEnd Data'!$AX$2:$AX$115) -> 57.5 | G58: 0 | H58: 0
E59: 0 | F59: 0 | G59: =AVERAGEIF('BackEnd Data'!$B$2:$B$115,INDEX('Employee Database'!$C$4:$C$53,MATCH(Dashboard!$C$61,'Employee Database'!$D$4:$D$51,0)),'BackEnd Data'!$AX$2:$AX$115) -> 72 | H59: 0
C60: Mitarbeiter 3: | E60: 0 | F60: 0 | G60: 0 | H60: =AVERAGEIF('BackEnd Data'!$B$2:$B$115,INDEX('Employee Database'!$C$4:$C$53,MATCH(Dashboard!$C$64,'Employee Database'!$D$4:$D$51,0)),'BackEnd Data'!$AX$2:$AX$115) -> 
C61: Charles Kabore
C63: Mitarbeiter 4:
C64: Mike Effenberg
H75: =AVERAGEIFS('BackEnd Data'!$BG$2:$BG$115,'BackEnd Data'!$B$2:$B$115,INDEX('Employee Database'!$C$4:$C$53,MATCH(Dashboard!$C$61,'Employee Database'!$D$4:$D$51,0))) -> 8.5 | I75: =IFERROR(H75/M34,"") -> 2.833333333 | K75: =AVERAGEIFS('BackEnd Data'!$BG$2:$BG$115,'BackEnd Data'!$B$2:$B$115,INDEX('Employee Database'!$C$4:$C$53,MATCH(Dashboard!$C$64,'Employee Database'!$D$4:$D$51,0))) ->  | L75: =IFERROR(K75/M34,"") -> 
H76: =AVERAGEIFS('BackEnd Data'!$BH$2:$BH$115,'BackEnd Data'!$B$2:$B$115,INDEX('Employee Database'!$C$4:$C$53,MATCH(Dashboard!$C$61,'Employee Database'!$D$4:$D$51,0))) -> 11.5 | I76: =IFERROR(H76/M35,"") -> 3.833333333 | K76: =AVERAGEIFS('BackEnd Data'!$BH$2:$BH$115,'BackEnd Data'!$B$2:$B$115,INDEX('Employee Database'!$C$4:$C$53,MATCH(Dashboard!$C$64,'Employee Database'!$D$4:$D$51,0))) ->  | L76: =IFERROR(K76/M35,"") -> 
H77: =AVERAGEIFS('BackEnd Data'!$BI$2:$BI$115,'BackEnd Data'!$B$2:$B$115,INDEX('Employee Database'!$C$4:$C$53,MATCH(Dashboard!$C$61,'Employee Database'!$D$4:$D$51,0))) -> 1 | I77: 0.3333333333 | K77: =AVERAGEIFS('BackEnd Data'!$BI$2:$BI$115,'BackEnd Data'!$B$2:$B$115,INDEX('Employee Database'!$C$4:$C$53,MATCH(Dashboard!$C$64,'Employee Database'!$D$4:$D$51,0))) -> 
H78: =AVERAGEIFS('BackEnd Data'!$BJ$2:$BJ$115,'BackEnd Data'!$B$2:$B$115,INDEX('Employee Database'!$C$4:$C$53,MATCH(Dashboard!$C$61,'Employee Database'!$D$4:$D$51,0))) -> 3.5 | I78: 1.166666667 | K78: =AVERAGEIFS('BackEnd Data'!$BJ$2:$BJ$115,'BackEnd Data'!$B$2:$B$115,INDEX('Employee Database'!$C$4:$C$53,MATCH(Dashboard!$C$64,'Employee Database'!$D$4:$D$51,0))) -> 
H79: =AVERAGEIFS('BackEnd Data'!$BK$2:$BK$115,'BackEnd Data'!$B$2:$B$115,INDEX('Employee Database'!$C$4:$C$53,MATCH(Dashboard!$C$61,'Employee Database'!$D$4:$D$51,0))) -> 8.5 | I79: 2.833333333 | K79: =AVERAGEIFS('BackEnd Data'!$BK$2:$BK$115,'BackEnd Data'!$B$2:$B$115,INDEX('Employee Database'!$C$4:$C$53,MATCH(Dashboard!$C$64,'Employee Database'!$D$4:$D$51,0))) -> 
H80: =AVERAGEIFS('BackEnd Data'!$BL$2:$BL$115,'BackEnd Data'!$B$2:$B$115,INDEX('Employee Database'!$C$4:$C$53,MATCH(Dashboard!$C$61,'Employee Database'!$D$4:$D$51,0))) -> 5.5 | I80: 1.833333333 | K80: =AVERAGEIFS('BackEnd Data'!$BL$2:$BL$115,'BackEnd Data'!$B$2:$B$115,INDEX('Employee Database'!$C$4:$C$53,MATCH(Dashboard!$C$64,'Employee Database'!$D$4:$D$51,0))) -> 
H81: =AVERAGEIFS('BackEnd Data'!$BM$2:$BM$115,'BackEnd Data'!$B$2:$B$115,INDEX('Employee Database'!$C$4:$C$53,MATCH(Dashboard!$C$61,'Employee Database'!$D$4:$D$51,0))) -> 5 | I81: 1.666666667 | K81: =AVERAGEIFS('BackEnd Data'!$BM$2:$BM$115,'BackEnd Data'!$B$2:$B$115,INDEX('Employee Database'!$C$4:$C$53,MATCH(Dashboard!$C$64,'Employee Database'!$D$4:$D$51,0))) -> 
H82: =IFERROR(AVERAGEIFS('BackEnd Data'!$BN$2:$BN$115,'BackEnd Data'!$B$2:$B$115,INDEX('Employee Database'!$C$4:$C$53,MATCH(Dashboard!$C$61,'Employee Database'!$D$4:$D$51,0))),"") -> 0 | K82: =IFERROR(AVERAGEIFS('BackEnd Data'!$BN$2:$BN$115,'BackEnd Data'!$B$2:$B$115,INDEX('Employee Database'!$C$4:$C$53,MATCH(Dashboard!$C$64,'Employee Database'!$D$4:$D$51,0))),"") -> 
H83: =IFERROR(AVERAGEIFS('BackEnd Data'!$BO$2:$BO$115,'BackEnd Data'!$B$2:$B$115,INDEX('Employee Database'!$C$4:$C$53,MATCH(Dashboard!$C$61,'Employee Database'!$D$4:$D$51,0))),"") -> 0 | K83: =IFERROR(AVERAGEIFS('BackEnd Data'!$BO$2:$BO$115,'BackEnd Data'!$B$2:$B$115,INDEX('Employee Database'!$C$4:$C$53,MATCH(Dashboard!$C$64,'Employee Database'!$D$4:$D$51,0))),"") -> 
H84: =IFERROR(AVERAGEIFS('BackEnd Data'!$BP$2:$BP$115,'BackEnd Data'!$B$2:$B$115,INDEX('Employee Database'!$C$4:$C$53,MATCH(Dashboard!$C$61,'Employee Database'!$D$4:$D$51,0))),"") -> 0 | K84: =IFERROR(AVERAGEIFS('BackEnd Data'!$BP$2:$BP$115,'BackEnd Data'!$B$2:$B$115,INDEX('Employee Database'!$C$4:$C$53,MATCH(Dashboard!$C$64,'Employee Database'!$D$4:$D$51,0))),"") -> 
H85: =IFERROR(AVERAGEIFS('BackEnd Data'!$BQ$2:$BQ$115,'BackEnd Data'!$B$2:$B$115,INDEX('Employee Database'!$C$4:$C$53,MATCH(Dashboard!$C$61,'Employee Database'!$D$4:$D$51,0))),"") -> 0 | K85: =IFERROR(AVERAGEIFS('BackEnd Data'!$BQ$2:$BQ$115,'BackEnd Data'!$B$2:$B$115,INDEX('Employee Database'!$C$4:$C$53,MATCH(Dashboard!$C$64,'Employee Database'!$D$4:$D$51,0))),"") -> 
H86: =IFERROR(AVERAGEIFS('BackEnd Data'!$BR$2:$BR$115,'BackEnd Data'!$B$2:$B$115,INDEX('Employee Database'!$C$4:$C$53,MATCH(Dashboard!$C$61,'Employee Database'!$D$4:$D$51,0))),"") -> 0 | K86: =IFERROR(AVERAGEIFS('BackEnd Data'!$BR$2:$BR$115,'BackEnd Data'!$B$2:$B$115,INDEX('Employee Database'!$C$4:$C$53,MATCH(Dashboard!$C$64,'Employee Database'!$D$4:$D$51,0))),"") -> 
H87: =IFERROR(AVERAGEIFS('BackEnd Data'!$BS$2:$BS$115,'BackEnd Data'!$B$2:$B$115,INDEX('Employee Database'!$C$4:$C$53,MATCH(Dashboard!$C$61,'Employee Database'!$D$4:$D$51,0))),"") -> 0 | K87: =IFERROR(AVERAGEIFS('BackEnd Data'!$BS$2:$BS$115,'BackEnd Data'!$B$2:$B$115,INDEX('Employee Database'!$C$4:$C$53,MATCH(Dashboard!$C$64,'Employee Database'!$D$4:$D$51,0))),"") -> 
H88: =IFERROR(AVERAGEIFS('BackEnd Data'!$BT$2:$BT$115,'BackEnd Data'!$B$2:$B$115,INDEX('Employee Database'!$C$4:$C$53,MATCH(Dashboard!$C$61,'Employee Database'!$D$4:$D$51,0))),"") -> 0 | K88: =IFERROR(AVERAGEIFS('BackEnd Data'!$BT$2:$BT$115,'BackEnd Data'!$B$2:$B$115,INDEX('Employee Database'!$C$4:$C$53,MATCH(Dashboard!$C$64,'Employee Database'!$D$4:$D$51,0))),"") -> 
H89: =IFERROR(AVERAGEIFS('BackEnd Data'!$BU$2:$BU$115,'BackEnd Data'!$B$2:$B$115,INDEX('Employee Database'!$C$4:$C$53,MATCH(Dashboard!$C$55,'Employee Database'!$D$4:$D$51,0))),"") -> 0

Sheet BackEnd Data (hidden)
A1: Review# | B1: Emp# | C1: ReviewDate | D1: Department | E1: ans1 | F1: ans2 | G1: ans3 | H1: ans4 | I1: ans5 | J1: ans6 | K1: ans7 | L1: ans8 | M1: ans9 | N1: ans10 | O1: ans11 | P1: ans12 | Q1: ans13 | R1: ans14 | S1: ans15 | T1: ans16 | U1: ans17 | V1: ans18 | W1: ans19 | X1: ans20 | Y1: ans21 | Z1: ans22 | AA1: ans23 | AB1: ans24 | AC1: ans25 | AD1: ans26 | AE1: ans27 | AF1: ans28 | AG1: ans29 | AH1: ans30 | AI1: ans31 | AJ1: ans32 | AK1: ans33 | AL1: ans34 | AM1: ans35 | AN1: ans36 | AO1: ans37 | AP1: ans38 | AQ1: ans39 | AR1: ans40 | AS1: ans41 | AT1: ans42 | AU1: ans43 | AV1: ans44 | AW1: ans45 | AX1: OverallScore | AY1: Performance | AZ1: Notes | BA1: EmpReviews | BB1: Greatly Below Expectations | BC1: Below Expectations | BD1: Meet Expectations | BE1: Exceed Expectations | BF1: Truly Outstanding | BG1: ='Set Up'!D5 -> Produktivität | BH1: ='Set Up'!D6 -> Effizienz | BI1: ='Set Up'!D7 -> Organisationsfähigkeiten | BJ1: ='Set Up'!D8 -> Lernen und Entwicklung | BK1: ='Set Up'!D9 -> Kommunikation | BL1: ='Set Up'!D10 -> Interne Beziehungen | BM1: ='Set Up'!D11 -> Anwesenheit | BN1: ='Set Up'!D12 -> 0 | BO1: ='Set Up'!D13 -> 0 | BP1: ='Set Up'!D14 -> 0 | BQ1: ='Set Up'!D15 -> 0 | BR1: ='Set Up'!D16 -> 0 | BS1: ='Set Up'!D17 -> 0 | BT1: ='Set Up'!D18 -> 0 | BU1: ='Set Up'!D19 -> 0
A2: 1 | B2: 1 | C2: 2019-02-12 | D2: Planning | E2: Truly Outstanding | F2: Exceed Expectations | G2: Exceed Expectations | H2: Meet Expectations | I2: Exceed Expectations | J2: Meet Expectations | K2: Exceed Expectations | L2: Meet Expectations | M2: Exceed Expectations | N2: Exceed Expectations | O2: Exceed Expectations | P2: Meet Expectations | Q2: Exceed Expectations | R2: Meet Expectations | S2: Exceed Expectations | T2: Exceed Expectations | U2: Meet Expectations | V2: Below Expectations | W2: Meet Expectations | X2: Below Expectations | AX2: 70 | AY2: Good | BA2: =IF(B2='Employee Review'!$C$3,1+MAX('BackEnd Data'!$BA$1:BA1),"") ->  | BB2: =COUNTIF($E2:$AW2,BB$1) -> 0 | BC2: =COUNTIF($E2:$AW2,BC$1) -> 2 | BD2: =COUNTIF($E2:$AW2,BD$1) -> 7 | BE2: 10 | BF2: 1 | BG2: =(COUNTIFS($E2:$AW2,"Greatly Below Expectations",$E$116:$AW$116,BG$1)*1)+(COUNTIFS($E2:$AW2,"Below Expectations",$E$116:$AW$116,BG$1)*2)+(COUNTIFS($E2:$AW2,"Meet Expectations",$E$116:$AW$116,BG$1)*3)+(COUNTIFS($E2:$AW2,"Exceed Expectations",$E$116:$AW$116,BG$1)*4)+(COUNTIFS($E2:$AW2,"Truly Outstanding",$E116:$AW116,BG$1)*5) -> 13 | BH2: 10 | BI2: 4 | BJ2: 11 | BK2: 11 | BL2: 9 | BM2: 5 | BN2: 0 | BO2: 0 | BP2: 0 | BQ2: 0 | BR2: 0 | BS2: 0 | BT2: 0 | BU2: 0
A3: 2 | B3: 2 | C3: 2019-01-23T23:22:01 | D3: Planning | E3: Meet Expectations | F3: Meet Expectations | G3: Exceed Expectations | H3: Exceed Expectations | I3: Exceed Expectations | J3: Truly Outstanding | K3: Exceed Expectations | L3: Meet Expectations | M3: Meet Expectations | N3: Meet Expectations | O3: Meet Expectations | P3: Meet Expectations | Q3: Meet Expectations | R3: Below Expectations | S3: Meet Expectations | T3: Meet Expectations | U3: Meet Expectations | V3: Below Expectations | W3: Meet Expectations | X3: Meet Expectations | AX3: 64 | AY3: Exceed Expectations | BA3: =IF(B3='Employee Review'!$C$3,1+MAX('BackEnd Data'!$BA$1:BA2),"") ->  | BB3: 0 | BC3: 2 | BD3: 13 | BE3: 4 | BF3: 1 | BG3: =(COUNTIFS($E3:$AW3,"Greatly Below Expectations",$E$116:$AW$116,BG$1)*1)+(COUNTIFS($E3:$AW3,"Below Expectations",$E$116:$AW$116,BG$1)*2)+(COUNTIFS($E3:$AW3,"Meet Expectations",$E$116:$AW$116,BG$1)*3)+(COUNTIFS($E3:$AW3,"Exceed Expectations",$E$116:$AW$116,BG$1)*4)+(COUNTIFS($E3:$AW3,"Truly Outstanding",$E117:$AW117,BG$1)*5) -> 10 | BH3: 8 | BI3: 3 | BJ3: 9 | BK3: 8 | BL3: 8 | BM3: 6 | BN3: 0 | BO3: 0 | BP3: 0 | BQ3: 0 | BR3: 0 | BS3: 0 | BT3: 0 | BU3: 0
A4: 3 | B4: 3 | C4: 2019-03-01 | D4: HR | E4: Meet Expectations | F4: Exceed Expectations | G4: Exceed Expectations | H4: Truly Outstanding | I4: Truly Outstanding | J4: Truly Outstanding | K4: Exceed Expectations | L4: Truly Outstanding | M4: Exceed Expectations | N4: Truly Outstanding | O4: Truly Outstanding | P4: Truly Outstanding | Q4: Truly Outstanding | R4: Exceed Expectations | S4: Truly Outstanding | T4: Exceed Expectations | U4: Truly Outstanding | V4: Exceed Expectations | W4: Meet Expectations | X4: Truly Outstanding | AX4: 89 | AY4: Truly Outstanding | BA4: =IF(B4='Employee Review'!$C$3,1+MAX('BackEnd Data'!$BA$1:BA3),"") ->  | BB4: 0 | BC4: 0 | BD4: 2 | BE4: 7 | BF4: 11 | BG4: =(COUNTIFS($E4:$AW4,"Greatly Below Expectations",$E$116:$AW$116,BG$1)*1)+(COUNTIFS($E4:$AW4,"Below Expectations",$E$116:$AW$116,BG$1)*2)+(COUNTIFS($E4:$AW4,"Meet Expectations",$E$116:$AW$116,BG$1)*3)+(COUNTIFS($E4:$AW4,"Exceed Expectations",$E$116:$AW$116,BG$1)*4)+(COUNTIFS($E4:$AW4,"Truly Outstanding",$E118:$AW118,BG$1)*5) -> 11 | BH4: 0 | BI4: 4 | BJ4: 0 | BK4: 4 | BL4: 8 | BM4: 3 | BN4: 0 | BO4: 0 | BP4: 0 | BQ4: 0 | BR4: 0 | BS4: 0 | BT4: 0 | BU4: 0
A5: 4 | B5: 4 | C5: 2019-02-28 | D5: HR | E5: Exceed Expectations | F5: Exceed Expectations | G5: Meet Expectations | H5: Meet Expectations | I5: Below Expectations | J5: Below Expectations | K5: Below Expectations | L5: Below Expectations | M5: Meet Expectations | N5: Below Expectations | O5: Meet Expectations | P5: Below Expectations | Q5: Meet Expectations | R5: Below Expectations | S5: Below Expectations | T5: Below Expectations | U5: Below Expectations | V5: Below Expectations | W5: Greatly Below Expectations | X5: Below Expectations | AX5: 48 | AY5: Meet Expectations | BA5: =IF(B5='Employee Review'!$C$3,1+MAX('BackEnd Data'!$BA$1:BA4),"") ->  | BB5: 1 | BC5: 12 | BD5: 5 | BE5: 2 | BF5: 0 | BG5: =(COUNTIFS($E5:$AW5,"Greatly Below Expectations",$E$116:$AW$116,BG$1)*1)+(COUNTIFS($E5:$AW5,"Below Expectations",$E$116:$AW$116,BG$1)*2)+(COUNTIFS($E5:$AW5,"Meet Expectations",$E$116:$AW$116,BG$1)*3)+(COUNTIFS($E5:$AW5,"Exceed Expectations",$E$116:$AW$116,BG$1)*4)+(COUNTIFS($E5:$AW5,"Truly Outstanding",$E119:$AW119,BG$1)*5) -> 11 | BH5: 7 | BI5: 3 | BJ5: 7 | BK5: 7 | BL5: 6 | BM5: 3 | BN5: 0 | BO5: 0 | BP5: 0 | BQ5: 0 | BR5: 0 | BS5: 0 | BT5: 0 | BU5: 0
A6: 5 | B6: 5 | C6: 2019-03-10 | D6: HR | E6: Meet Expectations | F6: Meet Expectations | G6: Below Expectations | H6: Below Expectations | I6: Below Expectations | J6: Below Expectations | K6: Below Expectations | L6: Below Expectations | M6: Greatly Below Expectations | N6: Greatly Below Expectations | O6: Greatly Below Expectations | P6: Greatly Below Expectations | Q6: Greatly Below Expectations | R6: Greatly Below Expectations | S6: Greatly Below Expectations | T6: Greatly Below Expectations | U6: Greatly Below Expectations | V6: Greatly Below Expectations | W6: Greatly Below Expectations | X6: Greatly Below Expectations | AX6: 30 | AY6: Below Expectations | BA6: =IF(B6='Employee Review'!$C$3,1+MAX('BackEnd Data'!$BA$1:BA5),"") ->  | BB6: 12 | BC6: 6 | BD6: 2 | BE6: 0 | BF6: 0 | BG6: =(COUNTIFS($E6:$AW6,"Greatly Below Expectations",$E$116:$AW$116,BG$1)*1)+(COUNTIFS($E6:$AW6,"Below Expectations",$E$116:$AW$116,BG$1)*2)+(COUNTIFS($E6:$AW6,"Meet Expectations",$E$116:$AW$116,BG$1)*3)+(COUNTIFS($E6:$AW6,"Exceed Expectations",$E$116:$AW$116,BG$1)*4)+(COUNTIFS($E6:$AW6,"Truly Outstanding",$E120:$AW120,BG$1)*5) -> 8 | BH6: 6 | BI6: 1 | BJ6: 3 | BK6: 3 | BL6: 3 | BM6: 2 | BN6: 0 | BO6: 0 | BP6: 0 | BQ6: 0 | BR6: 0 | BS6: 0 | BT6: 0 | BU6: 0
A7: 8 | B7: 8 | C7: 2019-03-05 | D7: Operations | E7: Truly Outstanding | F7: Exceed Expectations | G7: Meet Expectations | H7: Exceed Expectations | I7: Meet Expectations | J7: Below Expectations | K7: Exceed Expectations | L7: Meet Expectations | M7: Below Expectations | N7: Exceed Expectations | O7: Meet Expectations | P7: Below Expectations | Q7: Exceed Expectations | R7: Meet Expectations | S7: Below Expectations | T7: Meet Expectations | U7: Below Expectations | V7: Greatly Below Expectations | W7: Greatly Below Expectations | X7: Greatly Below Expectations | AX7: 56 | AY7: Meet Expectations | BA7: =IF(B7='Employee Review'!$C$3,1+MAX('BackEnd Data'!$BA$1:BA6),"") ->  | BB7: 3 | BC7: 5 | BD7: 6 | BE7: 5 | BF7: 1 | BG7: =(COUNTIFS($E7:$AW7,"Greatly Below Expectations",$E$116:$AW$116,BG$1)*1)+(COUNTIFS($E7:$AW7,"Below Expectations",$E$116:$AW$116,BG$1)*2)+(COUNTIFS($E7:$AW7,"Meet Expectations",$E$116:$AW$116,BG$1)*3)+(COUNTIFS($E7:$AW7,"Exceed Expectations",$E$116:$AW$116,BG$1)*4)+(COUNTIFS($E7:$AW7,"Truly Outstanding",$E123:$AW123,BG$1)*5) -> 7 | BH7: 9 | BI7: 2 | BJ7: 9 | BK7: 9 | BL7: 6 | BM7: 2 | BN7: 0 | BO7: 0 | BP7: 0 | BQ7: 0 | BR7: 0 | BS7: 0 | BT7: 0 | BU7: 0
A8: 9 | B8: 9 | C8: 2019-03-28 | D8: Operations | E8: Below Expectations | F8: Below Expectations | G8: Below Expectations | H8: Meet Expectations | I8: Below Expectations | J8: Below Expectations | K8: Below Expectations | L8: Meet Expectations | M8: Meet Expectations | N8: Below Expectations | O8: Below Expectations | P8: Below Expectations | Q8: Below Expectations | R8: Below Expectations | S8: Meet Expectations | T8: Below Expectations | U8: Meet Expectations | V8: Meet Expectations | W8: Below Expectations | X8: Below Expectations | AX8: 46 | AY8: Meet Expectations | BA8: =IF(B8='Employee Review'!$C$3,1+MAX('BackEnd Data'!$BA$1:BA7),"") ->  | BB8: 0 | BC8: 14 | BD8: 6 | BE8: 0 | BF8: 0 | BG8: =(COUNTIFS($E8:$AW8,"Greatly Below Expectations",$E$116:$AW$116,BG$1)*1)+(COUNTIFS($E8:$AW8,"Below Expectations",$E$116:$AW$116,BG$1)*2)+(COUNTIFS($E8:$AW8,"Meet Expectations",$E$116:$AW$116,BG$1)*3)+(COUNTIFS($E8:$AW8,"Exceed Expectations",$E$116:$AW$116,BG$1)*4)+(COUNTIFS($E8:$AW8,"Truly Outstanding",$E124:$AW124,BG$1)*5) -> 6 | BH8: 7 | BI8: 3 | BJ8: 6 | BK8: 7 | BL8: 8 | BM8: 4 | BN8: 0 | BO8: 0 | BP8: 0 | BQ8: 0 | BR8: 0 | BS8: 0 | BT8: 0 | BU8: 0
A9: 10 | B9: 10 | C9: 2019-03-31 | D9: Executive Direction | E9: Meet Expectations | F9: Meet Expectations | G9: Exceed Expectations | H9: Exceed Expectations | I9: Exceed Expectations | J9: Exceed Expectations | K9: Exceed Expectations | L9: Truly Outstanding | M9: Truly Outstanding | N9: Truly Outstanding | O9: Truly Outstanding | P9: Truly Outstanding | Q9: Exceed Expectations | R9: Truly Outstanding | S9: Exceed Expectations | T9: Exceed Expectations | U9: Truly Outstanding | V9: Truly Outstanding | W9: Exceed Expectations | X9: Truly Outstanding | AX9: 87 | AY9: Truly Outstanding | BA9: =IF(B9='Employee Review'!$C$3,1+MAX('BackEnd Data'!$BA$1:BA8),"") ->  | BB9: 0 | BC9: 0 | BD9: 2 | BE9: 9 | BF9: 9 | BG9: =(COUNTIFS($E9:$AW9,"Greatly Below Expectations",$E$116:$AW$116,BG$1)*1)+(COUNTIFS($E9:$AW9,"Below Expectations",$E$116:$AW$116,BG$1)*2)+(COUNTIFS($E9:$AW9,"Meet Expectations",$E$116:$AW$116,BG$1)*3)+(COUNTIFS($E9:$AW9,"Exceed Expectations",$E$116:$AW$116,BG$1)*4)+(COUNTIFS($E9:$AW9,"Truly Outstanding",$E125:$AW125,BG$1)*5) -> 10 | BH9: 12 | BI9: 0 | BJ9: 0 | BK9: 8 | BL9: 4 | BM9: 4 | BN9: 0 | BO9: 0 | BP9: 0 | BQ9: 0 | BR9: 0 | BS9: 0 | BT9: 0 | BU9: 0
A10: 11 | B10: 11 | C10: 2019-03-31 | D10: Executive Direction | E10: Truly Outstanding | F10: Truly Outstanding | G10: Truly Outstanding | H10: Exceed Expectations | I10: Exceed Expectations | J10: Truly Outstanding | K10: Truly Outstanding | L10: Exceed Expectations | M10: Exceed Expectations | N10: Exceed Expectations | O10: Exceed Expectations | P10: Exceed Expectations | Q10: Exceed Expectations | R10: Exceed Expectations | S10: Truly Outstanding | T10: Exceed Expectations | U10: Exceed Expectations | V10: Exceed Expectations | W10: Exceed Expectations | X10: Exceed Expectations | AX10: 86 | AY10: Truly Outstanding | BA10: =IF(B10='Employee Review'!$C$3,1+MAX('BackEnd Data'!$BA$1:BA9),"") -> 1 | BB10: 0 | BC10: 0 | BD10: 0 | BE10: 14 | BF10: 6 | BG10: =(COUNTIFS($E10:$AW10,"Greatly Below Expectations",$E$116:$AW$116,BG$1)*1)+(COUNTIFS($E10:$AW10,"Below Expectations",$E$116:$AW$116,BG$1)*2)+(COUNTIFS($E10:$AW10,"Meet Expectations",$E$116:$AW$116,BG$1)*3)+(COUNTIFS($E10:$AW10,"Exceed Expectations",$E$116:$AW$116,BG$1)*4)+(COUNTIFS($E10:$AW10,"Truly Outstanding",$E126:$AW126,BG$1)*5) -> 0 | BH10: 8 | BI10: 4 | BJ10: 12 | BK10: 8 | BL10: 12 | BM10: 8 | BN10: 0 | BO10: 0 | BP10: 0 | BQ10: 0 | BR10: 0 | BS10: 0 | BT10: 0 | BU10: 0
A11: 12 | B11: 1 | C11: 2019-05-05 | D11: Planning | E11: Truly Outstanding | F11: Truly Outstanding | G11: Truly Outstanding | H11: Truly Outstanding | I11: Truly Outstanding | J11: Exceed Expectations | K11: Truly Outstanding | L11: Exceed Expectations | M11: Truly Outstanding | N11: Exceed Expectations | O11: Truly Outstanding | P11: Exceed Expectations | Q11: Truly Outstanding | R11: Truly Outstanding | S11: Truly Outstanding | T11: Truly Outstanding | U11: Truly Outstanding | V11: Truly Outstanding | W11: Truly Outstanding | X11: Truly Outstanding | AX11: 96 | AY11: Truly Outstanding | BA11: =IF(B11='Employee Review'!$C$3,1+MAX('BackEnd Data'!$BA$1:BA10),"") ->  | BB11: 0 | BC11: 0 | BD11: 0 | BE11: 4 | BF11: 16 | BG11: =(COUNTIFS($E11:$AW11,"Greatly Below Expectations",$E$116:$AW$116,BG$1)*1)+(COUNTIFS($E11:$AW11,"Below Expectations",$E$116:$AW$116,BG$1)*2)+(COUNTIFS($E11:$AW11,"Meet Expectations",$E$116:$AW$116,BG$1)*3)+(COUNTIFS($E11:$AW11,"Exceed Expectations",$E$116:$AW$116,BG$1)*4)+(COUNTIFS($E11:$AW11,"Truly Outstanding",$E127:$AW127,BG$1)*5) -> 0 | BH11: 4 | BI11: 0 | BJ11: 8 | BK11: 0 | BL11: 0 | BM11: 0 | BN11: 0 | BO11: 0 | BP11: 0 | BQ11: 0 | BR11: 0 | BS11: 0 | BT11: 0 | BU11: 0
A12: 13 | B12: 2 | C12: 2019-04-04 | D12: Planning | E12: Meet Expectations | F12: Meet Expectations | G12: Exceed Expectations | H12: Exceed Expectations | I12: Exceed Expectations | J12: Exceed Expectations | K12: Meet Expectations | L12: Exceed Expectations | M12: Exceed Expectations | N12: Exceed Expectations | O12: Meet Expectations | P12: Meet Expectations | Q12: Meet Expectations | R12: Meet Expectations | S12: Meet Expectations | T12: Meet Expectations | U12: Meet Expectations | V12: Meet Expectations | W12: Meet Expectations | X12: Meet Expectations | AX12: 67 | AY12: Exceed Expectations | BA12: =IF(B12='Employee Review'!$C$3,1+MAX('BackEnd Data'!$BA$1:BA11),"") ->  | BB12: 0 | BC12: 0 | BD12: 13 | BE12: 7 | BF12: 0 | BG12: =(COUNTIFS($E12:$AW12,"Greatly Below Expectations",$E$116:$AW$116,BG$1)*1)+(COUNTIFS($E12:$AW12,"Below Expectations",$E$116:$AW$116,BG$1)*2)+(COUNTIFS($E12:$AW12,"Meet Expectations",$E$116:$AW$116,BG$1)*3)+(COUNTIFS($E12:$AW12,"Exceed Expectations",$E$116:$AW$116,BG$1)*4)+(COUNTIFS($E12:$AW12,"Truly Outstanding",$E128:$AW128,BG$1)*5) -> 10 | BH12: 12 | BI12: 4 | BJ12: 10 | BK12: 9 | BL12: 9 | BM12: 6 | BN12: 0 | BO12: 0 | BP12: 0 | BQ12: 0 | BR12: 0 | BS12: 0 | BT12: 0 | BU12: 0
A13: 14 | B13: 3 | C13: 2020-01-24T01:40:33 | D13: HR | E13: Meet Expectations | F13: Exceed Expectations | G13: Exceed Expectations | H13: Greatly Below Expectations | I13: Exceed Expectations | J13: Exceed Expectations | K13: Greatly Below Expectations | L13: Greatly Below Expectations | M13: Exceed Expectations | N13: Below Expectations | O13: Exceed Expectations | P13: Meet Expectations | Q13: Exceed Expectations | R13: Meet Expectations | S13: Below Expectations | T13: Below Expectations | U13: Exceed Expectations | V13: Exceed Expectations | W13: Truly Outstanding | X13: Truly Outstanding | AX13: 64 | AY13: Exceed Expectations | BA13: =IF(B13='Employee Review'!$C$3,1+MAX('BackEnd Data'!$BA$1:BA12),"") ->  | BB13: 3 | BC13: 3 | BD13: 3 | BE13: 9 | BF13: 2 | BG13: =(COUNTIFS($E13:$AW13,"Greatly Below Expectations",$E$116:$AW$116,BG$1)*1)+(COUNTIFS($E13:$AW13,"Below Expectations",$E$116:$AW$116,BG$1)*2)+(COUNTIFS($E13:$AW13,"Meet Expectations",$E$116:$AW$116,BG$1)*3)+(COUNTIFS($E13:$AW13,"Exceed Expectations",$E$116:$AW$116,BG$1)*4)+(COUNTIFS($E13:$AW13,"Truly Outstanding",$E129:$AW129,BG$1)*5) -> 11 | BH13: 9 | BI13: 4 | BJ13: 9 | BK13: 9 | BL13: 10 | BM13: 0 | BN13: 0 | BO13: 0 | BP13: 0 | BQ13: 0 | BR13: 0 | BS13: 0 | BT13: 0 | BU13: 0
A14: 15 | B14: 4 | C14: 2019-06-06 | D14: HR | E14: Greatly Below Expectations | F14: Below Expectations | G14: Below Expectations | H14: Below Expectations | I14: Below Expectations | J14: Below Expectations | K14: Greatly Below Expectations | L14: Below Expectations | M14: Below Expectations | N14: Greatly Below Expectations | O14: Below Expectations | P14: Greatly Below Expectations | Q14: Below Expectations | R14: Greatly Below Expectations | S14: Below Expectations | T14: Below Expectations | U14: Meet Expectations | V14: Exceed Expectations | W14: Exceed Expectations | X14: Exceed Expectations | AX14: 42 | AY14: Meet Expectations | BA14: =IF(B14='Employee Review'!$C$3,1+MAX('BackEnd Data'!$BA$1:BA13),"") ->  | BB14: 5 | BC14: 11 | BD14: 1 | BE14: 3 | BF14: 0 | BG14: =(COUNTIFS($E14:$AW14,"Greatly Below Expectations",$E$116:$AW$116,BG$1)*1)+(COUNTIFS($E14:$AW14,"Below Expectations",$E$116:$AW$116,BG$1)*2)+(COUNTIFS($E14:$AW14,"Meet Expectations",$E$116:$AW$116,BG$1)*3)+(COUNTIFS($E14:$AW14,"Exceed Expectations",$E$116:$AW$116,BG$1)*4)+(COUNTIFS($E14:$AW14,"Truly Outstanding",$E130:$AW130,BG$1)*5) -> 5 | BH14: 6 | BI14: 2 | BJ14: 4 | BK14: 5 | BL14: 9 | BM14: 8 | BN14: 0 | BO14: 0 | BP14: 0 | BQ14: 0 | BR14: 0 | BS14: 0 | BT14: 0 | BU14: 0
A15: 16 | B15: 5 | C15: 2020-01-24T01:41:59 | D15: HR | E15: Truly Outstanding | F15: Truly Outstanding | G15: Below Expectations | H15: Below Expectations | I15: Truly Outstanding | J15: Truly Outstanding | K15: Exceed Expectations | L15: Truly Outstanding | M15: Exceed Expectations | N15: Truly Outstanding | O15: Exceed Expectations | P15: Truly Outstanding | Q15: Exceed Expectations | R15: Greatly Below Expectations | S15: Greatly Below Expectations | T15: Greatly Below Expectations | U15: Below Expectations | V15: Below Expectations | W15: Meet Expectations | X15: Meet Expectations | AX15: 68 | AY15: Exceed Expectations | BA15: =IF(B15='Employee Review'!$C$3,1+MAX('BackEnd Data'!$BA$1:BA14),"") ->  | BB15: 3 | BC15: 4 | BD15: 2 | BE15: 4 | BF15: 7 | BG15: =(COUNTIFS($E15:$AW15,"Greatly Below Expectations",$E$116:$AW$116,BG$1)*1)+(COUNTIFS($E15:$AW15,"Below Expectations",$E$116:$AW$116,BG$1)*2)+(COUNTIFS($E15:$AW15,"Meet Expectations",$E$116:$AW$116,BG$1)*3)+(COUNTIFS($E15:$AW15,"Exceed Expectations",$E$116:$AW$116,BG$1)*4)+(COUNTIFS($E15:$AW15,"Truly Outstanding",$E131:$AW131,BG$1)*5) -> 2 | BH15: 2 | BI15: 4 | BJ15: 4 | BK15: 6 | BL15: 5 | BM15: 6 | BN15: 0 | BO15: 0 | BP15: 0 | BQ15: 0 | BR15: 0 | BS15: 0 | BT15: 0 | BU15: 0
A16: 19 | B16: 8 | C16: 2019-07-07 | D16: Operations | E16: Truly Outstanding | F16: Exceed Expectations | G16: Meet Expectations | H16: Exceed Expectations | I16: Truly Outstanding | J16: Exceed Expectations | K16: Meet Expectations | L16: Below Expectations | M16: Below Expectations | N16: Greatly Below Expectations | O16: Below Expectations | P16: Meet Expectations | Q16: Exceed Expectations | R16: Exceed Expectations | S16: Exceed Expectations | T16: Exceed Expectations | U16: Greatly Below Expectations | V16: Below Expectations | W16: Meet Expectations | X16: Exceed Expectations | AX16: 64 | AY16: Exceed Expectations | BA16: =IF(B16='Employee Review'!$C$3,1+MAX('BackEnd Data'!$BA$1:BA15),"") ->  | BB16: =COUNTIF($E16:$AW16,BB$1) -> 2 | BC16: 4 | BD16: 4 | BE16: 8 | BF16: 2 | BG16: =(COUNTIFS($E16:$AW16,"Greatly Below Expectations",$E$116:$AW$116,BG$1)*1)+(COUNTIFS($E16:$AW16,"Below Expectations",$E$116:$AW$116,BG$1)*2)+(COUNTIFS($E16:$AW16,"Meet Expectations",$E$116:$AW$116,BG$1)*3)+(COUNTIFS($E16:$AW16,"Exceed Expectations",$E$116:$AW$116,BG$1)*4)+(COUNTIFS($E16:$AW16,"Truly Outstanding",$E134:$AW134,BG$1)*5) -> 7 | BH16: 8 | BI16: 2 | BJ16: 6 | BK16: 12 | BL16: 7 | BM16: 7 | BN16: 0 | BO16: 0 | BP16: 0 | BQ16: 0 | BR16: 0 | BS16: 0 | BT16: 0 | BU16: 0
A17: 20 | B17: 9 | C17: 2019-08-05 | D17: Operations | E17: Greatly Below Expectations | F17: Greatly Below Expectations | G17: Below Expectations | H17: Greatly Below Expectations | I17: Below Expectations | J17: Meet Expectations | K17: Meet Expectations | L17: Below Expectations | M17: Meet Expectations | N17: Meet Expectations | O17: Truly Outstanding | P17: Truly Outstanding | Q17: Truly Outstanding | R17: Exceed Expectations | S17: Exceed Expectations | T17: Truly Outstanding | U17: Truly Outstanding | V17: Truly Outstanding | W17: Truly Outstanding | X17: Truly Outstanding | AX17: 69 | AY17: Exceed Expectations | BA17: =IF(B17='Employee Review'!$C$3,1+MAX('BackEnd Data'!$BA$1:BA16),"") ->  | BB17: 3 | BC17: 3 | BD17: 4 | BE17: 2 | BF17: 8 | BG17: =(COUNTIFS($E17:$AW17,"Greatly Below Expectations",$E$116:$AW$116,BG$1)*1)+(COUNTIFS($E17:$AW17,"Below Expectations",$E$116:$AW$116,BG$1)*2)+(COUNTIFS($E17:$AW17,"Meet Expectations",$E$116:$AW$116,BG$1)*3)+(COUNTIFS($E17:$AW17,"Exceed Expectations",$E$116:$AW$116,BG$1)*4)+(COUNTIFS($E17:$AW17,"Truly Outstanding",$E135:$AW135,BG$1)*5) -> 4 | BH17: 6 | BI17: 3 | BJ17: 3 | BK17: 8 | BL17: 0 | BM17: 0 | BN17: 0 | BO17: 0 | BP17: 0 | BQ17: 0 | BR17: 0 | BS17: 0 | BT17: 0 | BU17: 0
A18: 21 | B18: 10 | C18: 2019-09-04 | D18: Executive Direction | E18: Meet Expectations | F18: Below Expectations | G18: Below Expectations | H18: Exceed Expectations | I18: Exceed Expectations | J18: Meet Expectations | K18: Below Expectations | L18: Greatly Below Expectations | M18: Below Expectations | N18: Meet Expectations | O18: Exceed Expectations | P18: Truly Outstanding | Q18: Exceed Expectations | R18: Meet Expectations | S18: Below Expectations | T18: Greatly Below Expectations | U18: Meet Expectations | V18: Meet Expectations | W18: Below Expectations | X18: Exceed Expectations | AX18: 57 | AY18: Meet Expectations | BA18: =IF(B18='Employee Review'!$C$3,1+MAX('BackEnd Data'!$BA$1:BA17),"") ->  | BB18: 2 | BC18: 6 | BD18: 6 | BE18: 5 | BF18: 1 | BG18: =(COUNTIFS($E18:$AW18,"Greatly Below Expectations",$E$116:$AW$116,BG$1)*1)+(COUNTIFS($E18:$AW18,"Below Expectations",$E$116:$AW$116,BG$1)*2)+(COUNTIFS($E18:$AW18,"Meet Expectations",$E$116:$AW$116,BG$1)*3)+(COUNTIFS($E18:$AW18,"Exceed Expectations",$E$116:$AW$116,BG$1)*4)+(COUNTIFS($E18:$AW18,"Truly Outstanding",$E136:$AW136,BG$1)*5) -> 7 | BH18: 11 | BI18: 2 | BJ18: 7 | BK18: 9 | BL18: 7 | BM18: 6 | BN18: 0 | BO18: 0 | BP18: 0 | BQ18: 0 | BR18: 0 | BS18: 0 | BT18: 0 | BU18: 0
A19: 22 | B19: 11 | C19: 2020-01-24T01:45:54 | D19: Executive Direction | E19: Truly Outstanding | F19: Truly Outstanding | G19: Truly Outstanding | H19: Truly Outstanding | I19: Truly Outstanding | J19: Truly Outstanding | K19: Exceed Expectations | L19: Truly Outstanding | M19: Truly Outstanding | N19: Truly Outstanding | O19: Truly Outstanding | P19: Truly Outstanding | Q19: Truly Outstanding | R19: Truly Outstanding | S19: Truly Outstanding | T19: Truly Outstanding | U19: Truly Outstanding | V19: Truly Outstanding | W19: Truly Outstanding | X19: Truly Outstanding | AX19: 99 | AY19: Truly Outstanding | BA19: =IF(B19='Employee Review'!$C$3,1+MAX('BackEnd Data'!$BA$1:BA18),"") -> 2 | BB19: 0 | BC19: 0 | BD19: 0 | BE19: 1 | BF19: 19 | BG19: =(COUNTIFS($E19:$AW19,"Greatly Below Expectations",$E$116:$AW$116,BG$1)*1)+(COUNTIFS($E19:$AW19,"Below Expectations",$E$116:$AW$116,BG$1)*2)+(COUNTIFS($E19:$AW19,"Meet Expectations",$E$116:$AW$116,BG$1)*3)+(COUNTIFS($E19:$AW19,"Exceed Expectations",$E$116:$AW$116,BG$1)*4)+(COUNTIFS($E19:$AW19,"Truly Outstanding",$E137:$AW137,BG$1)*5) -> 0 | BH19: 0 | BI19: 0 | BJ19: 0 | BK19: 0 | BL19: 0 | BM19: 0 | BN19: 0 | BO19: 0 | BP19: 0 | BQ19: 0 | BR19: 0 | BS19: 0 | BT19: 0 | BU19: 0
A20: 23 | B20: 3 | C20: 2020-01-24T09:47:58 | D20: HR | E20: Greatly Below Expectations | F20: Below Expectations | G20: Meet Expectations | H20: Exceed Expectations | I20: Truly Outstanding | J20: Exceed Expectations | K20: Meet Expectations | L20: Below Expectations | M20: Greatly Below Expectations | N20: Below Expectations | O20: Meet Expectations | P20: Exceed Expectations | Q20: Truly Outstanding | R20: Exceed Expectations | S20: Meet Expectations | T20: Below Expectations | U20: Greatly Below Expectations | V20: Below Expectations | W20: Meet Expectations | X20: Exceed Expectations | AX20: 58 | AY20: Meet Expectations | BA20: =IF(B20='Employee Review'!$C$3,1+MAX('BackEnd Data'!$BA$1:BA19),"") ->  | BB20: 3 | BC20: 5 | BD20: 5 | BE20: 5 | BF20: 2 | BG20: =(COUNTIFS($E20:$AW20,"Greatly Below Expectations",$E$116:$AW$116,BG$1)*1)+(COUNTIFS($E20:$AW20,"Below Expectations",$E$116:$AW$116,BG$1)*2)+(COUNTIFS($E20:$AW20,"Meet Expectations",$E$116:$AW$116,BG$1)*3)+(COUNTIFS($E20:$AW20,"Exceed Expectations",$E$116:$AW$116,BG$1)*4)+(COUNTIFS($E20:$AW20,"Truly Outstanding",$E138:$AW138,BG$1)*5) -> 6 | BH20: 8 | BI20: 1 | BJ20: 9 | BK20: 7 | BL20: 5 | BM20: 7 | BN20: 0 | BO20: 0 | BP20: 0 | BQ20: 0 | BR20: 0 | BS20: 0 | BT20: 0 | BU20: 0
AX21: 0 | AY21: Greatly Below Expectations | BA21: =IF(B21='Employee Review'!$C$3,1+MAX('BackEnd Data'!$BA$1:BA20),"") ->  | BB21: 0 | BC21: 0 | BD21: 0 | BE21: 0 | BF21: 0 | BG21: =(COUNTIFS($E21:$AW21,"Greatly Below Expectations",$E$116:$AW$116,BG$1)*1)+(COUNTIFS($E21:$AW21,"Below Expectations",$E$116:$AW$116,BG$1)*2)+(COUNTIFS($E21:$AW21,"Meet Expectations",$E$116:$AW$116,BG$1)*3)+(COUNTIFS($E21:$AW21,"Exceed Expectations",$E$116:$AW$116,BG$1)*4)+(COUNTIFS($E21:$AW21,"Truly Outstanding",$E140:$AW140,BG$1)*5) -> 0 | BH21: 0 | BI21: 0 | BJ21: 0 | BK21: 0 | BL21: 0 | BM21: 0 | BN21: 0 | BO21: 0 | BP21: 0 | BQ21: 0 | BR21: 0 | BS21: 0 | BT21: 0 | BU21: 0
BA22: =IF(B22='Employee Review'!$C$3,1+MAX('BackEnd Data'!$BA$1:BA21),"") ->  | BB22: 0 | BC22: 0 | BD22: 0 | BE22: 0 | BF22: 0 | BG22: =(COUNTIFS($E22:$AW22,"Greatly Below Expectations",$E$116:$AW$116,BG$1)*1)+(COUNTIFS($E22:$AW22,"Below Expectations",$E$116:$AW$116,BG$1)*2)+(COUNTIFS($E22:$AW22,"Meet Expectations",$E$116:$AW$116,BG$1)*3)+(COUNTIFS($E22:$AW22,"Exceed Expectations",$E$116:$AW$116,BG$1)*4)+(COUNTIFS($E22:$AW22,"Truly Outstanding",$E141:$AW141,BG$1)*5) -> 0 | BH22: 0 | BI22: 0 | BJ22: 0 | BK22: 0 | BL22: 0 | BM22: 0 | BN22: 0 | BO22: 0 | BP22: 0 | BQ22: 0 | BR22: 0 | BS22: 0 | BT22: 0 | BU22: 0
BA23: =IF(B23='Employee Review'!$C$3,1+MAX('BackEnd Data'!$BA$1:BA22),"") ->  | BB23: 0 | BC23: 0 | BD23: 0 | BE23: 0 | BF23: 0 | BG23: =(COUNTIFS($E23:$AW23,"Greatly Below Expectations",$E$116:$AW$116,BG$1)*1)+(COUNTIFS($E23:$AW23,"Below Expectations",$E$116:$AW$116,BG$1)*2)+(COUNTIFS($E23:$AW23,"Meet Expectations",$E$116:$AW$116,BG$1)*3)+(COUNTIFS($E23:$AW23,"Exceed Expectations",$E$116:$AW$116,BG$1)*4)+(COUNTIFS($E23:$AW23,"Truly Outstanding",$E142:$AW142,BG$1)*5) -> 0 | BH23: 0 | BI23: 0 | BJ23: 0 | BK23: 0 | BL23: 0 | BM23: 0 | BN23: 0 | BO23: 0 | BP23: 0 | BQ23: 0 | BR23: 0 | BS23: 0 | BT23: 0 | BU23: 0
BA24: =IF(B24='Employee Review'!$C$3,1+MAX('BackEnd Data'!$BA$1:BA23),"") ->  | BB24: 0 | BC24: 0 | BD24: 0 | BE24: 0 | BF24: 0 | BG24: =(COUNTIFS($E24:$AW24,"Greatly Below Expectations",$E$116:$AW$116,BG$1)*1)+(COUNTIFS($E24:$AW24,"Below Expectations",$E$116:$AW$116,BG$1)*2)+(COUNTIFS($E24:$AW24,"Meet Expectations",$E$116:$AW$116,BG$1)*3)+(COUNTIFS($E24:$AW24,"Exceed Expectations",$E$116:$AW$116,BG$1)*4)+(COUNTIFS($E24:$AW24,"Truly Outstanding",$E143:$AW143,BG$1)*5) -> 0 | BH24: 0 | BI24: 0 | BJ24: 0 | BK24: 0 | BL24: 0 | BM24: 0 | BN24: 0 | BO24: 0 | BP24: 0 | BQ24: 0 | BR24: 0 | BS24: 0 | BT24: 0 | BU24: 0
BA25: =IF(B25='Employee Review'!$C$3,1+MAX('BackEnd Data'!$BA$1:BA24),"") ->  | BB25: 0 | BC25: 0 | BD25: 0 | BE25: 0 | BF25: 0 | BG25: =(COUNTIFS($E25:$AW25,"Greatly Below Expectations",$E$116:$AW$116,BG$1)*1)+(COUNTIFS($E25:$AW25,"Below Expectations",$E$116:$AW$116,BG$1)*2)+(COUNTIFS($E25:$AW25,"Meet Expectations",$E$116:$AW$116,BG$1)*3)+(COUNTIFS($E25:$AW25,"Exceed Expectations",$E$116:$AW$116,BG$1)*4)+(COUNTIFS($E25:$AW25,"Truly Outstanding",$E144:$AW144,BG$1)*5) -> 0 | BH25: 0 | BI25: 0 | BJ25: 0 | BK25: 0 | BL25: 0 | BM25: 0 | BN25: 0 | BO25: 0 | BP25: 0 | BQ25: 0 | BR25: 0 | BS25: 0 | BT25: 0 | BU25: 0
BA26: =IF(B26='Employee Review'!$C$3,1+MAX('BackEnd Data'!$BA$1:BA25),"") ->  | BB26: 0 | BC26: 0 | BD26: 0 | BE26: 0 | BF26: 0 | BG26: =(COUNTIFS($E26:$AW26,"Greatly Below Expectations",$E$116:$AW$116,BG$1)*1)+(COUNTIFS($E26:$AW26,"Below Expectations",$E$116:$AW$116,BG$1)*2)+(COUNTIFS($E26:$AW26,"Meet Expectations",$E$116:$AW$116,BG$1)*3)+(COUNTIFS($E26:$AW26,"Exceed Expectations",$E$116:$AW$116,BG$1)*4)+(COUNTIFS($E26:$AW26,"Truly Outstanding",$E145:$AW145,BG$1)*5) -> 0 | BH26: 0 | BI26: 0 | BJ26: 0 | BK26: 0 | BL26: 0 | BM26: 0 | BN26: 0 | BO26: 0 | BP26: 0 | BQ26: 0 | BR26: 0 | BS26: 0 | BT26: 0 | BU26: 0
BA27: =IF(B27='Employee Review'!$C$3,1+MAX('BackEnd Data'!$BA$1:BA26),"") ->  | BB27: 0 | BC27: 0 | BD27: 0 | BE27: 0 | BF27: 0 | BG27: =(COUNTIFS($E27:$AW27,"Greatly Below Expectations",$E$116:$AW$116,BG$1)*1)+(COUNTIFS($E27:$AW27,"Below Expectations",$E$116:$AW$116,BG$1)*2)+(COUNTIFS($E27:$AW27,"Meet Expectations",$E$116:$AW$116,BG$1)*3)+(COUNTIFS($E27:$AW27,"Exceed Expectations",$E$116:$AW$116,BG$1)*4)+(COUNTIFS($E27:$AW27,"Truly Outstanding",$E146:$AW146,BG$1)*5) -> 0 | BH27: 0 | BI27: 0 | BJ27: 0 | BK27: 0 | BL27: 0 | BM27: 0 | BN27: 0 | BO27: 0 | BP27: 0 | BQ27: 0 | BR27: 0 | BS27: 0 | BT27: 0 | BU27: 0
BA28: =IF(B28='Employee Review'!$C$3,1+MAX('BackEnd Data'!$BA$1:BA27),"") ->  | BB28: 0 | BC28: 0 | BD28: 0 | BE28: 0 | BF28: 0 | BG28: =(COUNTIFS($E28:$AW28,"Greatly Below Expectations",$E$116:$AW$116,BG$1)*1)+(COUNTIFS($E28:$AW28,"Below Expectations",$E$116:$AW$116,BG$1)*2)+(COUNTIFS($E28:$AW28,"Meet Expectations",$E$116:$AW$116,BG$1)*3)+(COUNTIFS($E28:$AW28,"Exceed Expectations",$E$116:$AW$116,BG$1)*4)+(COUNTIFS($E28:$AW28,"Truly Outstanding",$E147:$AW147,BG$1)*5) -> 0 | BH28: 0 | BI28: 0 | BJ28: 0 | BK28: 0 | BL28: 0 | BM28: 0 | BN28: 0 | BO28: 0 | BP28: 0 | BQ28: 0 | BR28: 0 | BS28: 0 | BT28: 0 | BU28: 0
BA29: =IF(B29='Employee Review'!$C$3,1+MAX('BackEnd Data'!$BA$1:BA28),"") ->  | BB29: 0 | BC29: 0 | BD29: 0 | BE29: 0 | BF29: 0 | BG29: =(COUNTIFS($E29:$AW29,"Greatly Below Expectations",$E$116:$AW$116,BG$1)*1)+(COUNTIFS($E29:$AW29,"Below Expectations",$E$116:$AW$116,BG$1)*2)+(COUNTIFS($E29:$AW29,"Meet Expectations",$E$116:$AW$116,BG$1)*3)+(COUNTIFS($E29:$AW29,"Exceed Expectations",$E$116:$AW$116,BG$1)*4)+(COUNTIFS($E29:$AW29,"Truly Outstanding",$E148:$AW148,BG$1)*5) -> 0 | BH29: 0 | BI29: 0 | BJ29: 0 | BK29: 0 | BL29: 0 | BM29: 0 | BN29: 0 | BO29: 0 | BP29: 0 | BQ29: 0 | BR29: 0 | BS29: 0 | BT29: 0 | BU29: 0
BA30: =IF(B30='Employee Review'!$C$3,1+MAX('BackEnd Data'!$BA$1:BA29),"") ->  | BB30: 0 | BC30: 0 | BD30: 0 | BE30: 0 | BF30: 0 | BG30: =(COUNTIFS($E30:$AW30,"Greatly Below Expectations",$E$116:$AW$116,BG$1)*1)+(COUNTIFS($E30:$AW30,"Below Expectations",$E$116:$AW$116,BG$1)*2)+(COUNTIFS($E30:$AW30,"Meet Expectations",$E$116:$AW$116,BG$1)*3)+(COUNTIFS($E30:$AW30,"Exceed Expectations",$E$116:$AW$116,BG$1)*4)+(COUNTIFS($E30:$AW30,"Truly Outstanding",$E149:$AW149,BG$1)*5) -> 0 | BH30: 0 | BI30: 0 | BJ30: 0 | BK30: 0 | BL30: 0 | BM30: 0 | BN30: 0 | BO30: 0 | BP30: 0 | BQ30: 0 | BR30: 0 | BS30: 0 | BT30: 0 | BU30: 0
BA31: =IF(B31='Employee Review'!$C$3,1+MAX('BackEnd Data'!$BA$1:BA30),"") ->  | BB31: 0 | BC31: 0 | BD31: 0 | BE31: 0 | BF31: 0 | BG31: =(COUNTIFS($E31:$AW31,"Greatly Below Expectations",$E$116:$AW$116,BG$1)*1)+(COUNTIFS($E31:$AW31,"Below Expectations",$E$116:$AW$116,BG$1)*2)+(COUNTIFS($E31:$AW31,"Meet Expectations",$E$116:$AW$116,BG$1)*3)+(COUNTIFS($E31:$AW31,"Exceed Expectations",$E$116:$AW$116,BG$1)*4)+(COUNTIFS($E31:$AW31,"Truly Outstanding",$E150:$AW150,BG$1)*5) -> 0 | BH31: 0 | BI31: 0 | BJ31: 0 | BK31: 0 | BL31: 0 | BM31: 0 | BN31: 0 | BO31: 0 | BP31: 0 | BQ31: 0 | BR31: 0 | BS31: 0 | BT31: 0 | BU31: 0
BA32: =IF(B32='Employee Review'!$C$3,1+MAX('BackEnd Data'!$BA$1:BA31),"") ->  | BB32: 0 | BC32: 0 | BD32: 0 | BE32: 0 | BF32: 0 | BG32: =(COUNTIFS($E32:$AW32,"Greatly Below Expectations",$E$116:$AW$116,BG$1)*1)+(COUNTIFS($E32:$AW32,"Below Expectations",$E$116:$AW$116,BG$1)*2)+(COUNTIFS($E32:$AW32,"Meet Expectations",$E$116:$AW$116,BG$1)*3)+(COUNTIFS($E32:$AW32,"Exceed Expectations",$E$116:$AW$116,BG$1)*4)+(COUNTIFS($E32:$AW32,"Truly Outstanding",$E151:$AW151,BG$1)*5) -> 0 | BH32: 0 | BI32: 0 | BJ32: 0 | BK32: 0 | BL32: 0 | BM32: 0 | BN32: 0 | BO32: 0 | BP32: 0 | BQ32: 0 | BR32: 0 | BS32: 0 | BT32: 0 | BU32: 0
BA33: =IF(B33='Employee Review'!$C$3,1+MAX('BackEnd Data'!$BA$1:BA32),"") ->  | BB33: 0 | BC33: 0 | BD33: 0 | BE33: 0 | BF33: 0 | BG33: =(COUNTIFS($E33:$AW33,"Greatly Below Expectations",$E$116:$AW$116,BG$1)*1)+(COUNTIFS($E33:$AW33,"Below Expectations",$E$116:$AW$116,BG$1)*2)+(COUNTIFS($E33:$AW33,"Meet Expectations",$E$116:$AW$116,BG$1)*3)+(COUNTIFS($E33:$AW33,"Exceed Expectations",$E$116:$AW$116,BG$1)*4)+(COUNTIFS($E33:$AW33,"Truly Outstanding",$E152:$AW152,BG$1)*5) -> 0 | BH33: 0 | BI33: 0 | BJ33: 0 | BK33: 0 | BL33: 0 | BM33: 0 | BN33: 0 | BO33: 0 | BP33: 0 | BQ33: 0 | BR33: 0 | BS33: 0 | BT33: 0 | BU33: 0
BA34: =IF(B34='Employee Review'!$C$3,1+MAX('BackEnd Data'!$BA$1:BA33),"") ->  | BB34: 0 | BC34: 0 | BD34: 0 | BE34: 0 | BF34: 0 | BG34: =(COUNTIFS($E34:$AW34,"Greatly Below Expectations",$E$116:$AW$116,BG$1)*1)+(COUNTIFS($E34:$AW34,"Below Expectations",$E$116:$AW$116,BG$1)*2)+(COUNTIFS($E34:$AW34,"Meet Expectations",$E$116:$AW$116,BG$1)*3)+(COUNTIFS($E34:$AW34,"Exceed Expectations",$E$116:$AW$116,BG$1)*4)+(COUNTIFS($E34:$AW34,"Truly Outstanding",$E153:$AW153,BG$1)*5) -> 0 | BH34: 0 | BI34: 0 | BJ34: 0 | BK34: 0 | BL34: 0 | BM34: 0 | BN34: 0 | BO34: 0 | BP34: 0 | BQ34: 0 | BR34: 0 | BS34: 0 | BT34: 0 | BU34: 0
BA35: =IF(B35='Employee Review'!$C$3,1+MAX('BackEnd Data'!$BA$1:BA34),"") ->  | BB35: 0 | BC35: 0 | BD35: 0 | BE35: 0 | BF35: 0 | BG35: =(COUNTIFS($E35:$AW35,"Greatly Below Expectations",$E$116:$AW$116,BG$1)*1)+(COUNTIFS($E35:$AW35,"Below Expectations",$E$116:$AW$116,BG$1)*2)+(COUNTIFS($E35:$AW35,"Meet Expectations",$E$116:$AW$116,BG$1)*3)+(COUNTIFS($E35:$AW35,"Exceed Expectations",$E$116:$AW$116,BG$1)*4)+(COUNTIFS($E35:$AW35,"Truly Outstanding",$E154:$AW154,BG$1)*5) -> 0 | BH35: 0 | BI35: 0 | BJ35: 0 | BK35: 0 | BL35: 0 | BM35: 0 | BN35: 0 | BO35: 0 | BP35: 0 | BQ35: 0 | BR35: 0 | BS35: 0 | BT35: 0 | BU35: 0
BA36: =IF(B36='Employee Review'!$C$3,1+MAX('BackEnd Data'!$BA$1:BA35),"") ->  | BB36: 0 | BC36: 0 | BD36: 0 | BE36: 0 | BF36: 0 | BG36: =(COUNTIFS($E36:$AW36,"Greatly Below Expectations",$E$116:$AW$116,BG$1)*1)+(COUNTIFS($E36:$AW36,"Below Expectations",$E$116:$AW$116,BG$1)*2)+(COUNTIFS($E36:$AW36,"Meet Expectations",$E$116:$AW$116,BG$1)*3)+(COUNTIFS($E36:$AW36,"Exceed Expectations",$E$116:$AW$116,BG$1)*4)+(COUNTIFS($E36:$AW36,"Truly Outstanding",$E155:$AW155,BG$1)*5) -> 0 | BH36: 0 | BI36: 0 | BJ36: 0 | BK36: 0 | BL36: 0 | BM36: 0 | BN36: 0 | BO36: 0 | BP36: 0 | BQ36: 0 | BR36: 0 | BS36: 0 | BT36: 0 | BU36: 0
BA37: =IF(B37='Employee Review'!$C$3,1+MAX('BackEnd Data'!$BA$1:BA36),"") ->  | BB37: 0 | BC37: 0 | BD37: 0 | BE37: 0 | BF37: 0 | BG37: =(COUNTIFS($E37:$AW37,"Greatly Below Expectations",$E$116:$AW$116,BG$1)*1)+(COUNTIFS($E37:$AW37,"Below Expectations",$E$116:$AW$116,BG$1)*2)+(COUNTIFS($E37:$AW37,"Meet Expectations",$E$116:$AW$116,BG$1)*3)+(COUNTIFS($E37:$AW37,"Exceed Expectations",$E$116:$AW$116,BG$1)*4)+(COUNTIFS($E37:$AW37,"Truly Outstanding",$E156:$AW156,BG$1)*5) -> 0 | BH37: 0 | BI37: 0 | BJ37: 0 | BK37: 0 | BL37: 0 | BM37: 0 | BN37: 0 | BO37: 0 | BP37: 0 | BQ37: 0 | BR37: 0 | BS37: 0 | BT37: 0 | BU37: 0
BA38: =IF(B38='Employee Review'!$C$3,1+MAX('BackEnd Data'!$BA$1:BA37),"") ->  | BB38: 0 | BC38: 0 | BD38: 0 | BE38: 0 | BF38: 0 | BG38: =(COUNTIFS($E38:$AW38,"Greatly Below Expectations",$E$116:$AW$116,BG$1)*1)+(COUNTIFS($E38:$AW38,"Below Expectations",$E$116:$AW$116,BG$1)*2)+(COUNTIFS($E38:$AW38,"Meet Expectations",$E$116:$AW$116,BG$1)*3)+(COUNTIFS($E38:$AW38,"Exceed Expectations",$E$116:$AW$116,BG$1)*4)+(COUNTIFS($E38:$AW38,"Truly Outstanding",$E157:$AW157,BG$1)*5) -> 0 | BH38: 0 | BI38: 0 | BJ38: 0 | BK38: 0 | BL38: 0 | BM38: 0 | BN38: 0 | BO38: 0 | BP38: 0 | BQ38: 0 | BR38: 0 | BS38: 0 | BT38: 0 | BU38: 0
BA39: =IF(B39='Employee Review'!$C$3,1+MAX('BackEnd Data'!$BA$1:BA38),"") ->  | BB39: 0 | BC39: 0 | BD39: 0 | BE39: 0 | BF39: 0 | BG39: =(COUNTIFS($E39:$AW39,"Greatly Below Expectations",$E$116:$AW$116,BG$1)*1)+(COUNTIFS($E39:$AW39,"Below Expectations",$E$116:$AW$116,BG$1)*2)+(COUNTIFS($E39:$AW39,"Meet Expectations",$E$116:$AW$116,BG$1)*3)+(COUNTIFS($E39:$AW39,"Exceed Expectations",$E$116:$AW$116,BG$1)*4)+(COUNTIFS($E39:$AW39,"Truly Outstanding",$E158:$AW158,BG$1)*5) -> 0 | BH39: 0 | BI39: 0 | BJ39: 0 | BK39: 0 | BL39: 0 | BM39: 0 | BN39: 0 | BO39: 0 | BP39: 0 | BQ39: 0 | BR39: 0 | BS39: 0 | BT39: 0 | BU39: 0
BA40: =IF(B40='Employee Review'!$C$3,1+MAX('BackEnd Data'!$BA$1:BA39),"") ->  | BB40: 0 | BC40: 0 | BD40: 0 | BE40: 0 | BF40: 0 | BG40: =(COUNTIFS($E40:$AW40,"Greatly Below Expectations",$E$116:$AW$116,BG$1)*1)+(COUNTIFS($E40:$AW40,"Below Expectations",$E$116:$AW$116,BG$1)*2)+(COUNTIFS($E40:$AW40,"Meet Expectations",$E$116:$AW$116,BG$1)*3)+(COUNTIFS($E40:$AW40,"Exceed Expectations",$E$116:$AW$116,BG$1)*4)+(COUNTIFS($E40:$AW40,"Truly Outstanding",$E159:$AW159,BG$1)*5) -> 0 | BH40: 0 | BI40: 0 | BJ40: 0 | BK40: 0 | BL40: 0 | BM40: 0 | BN40: 0 | BO40: 0 | BP40: 0 | BQ40: 0 | BR40: 0 | BS40: 0 | BT40: 0 | BU40: 0
BA41: =IF(B41='Employee Review'!$C$3,1+MAX('BackEnd Data'!$BA$1:BA40),"") ->  | BB41: 0 | BC41: 0 | BD41: 0 | BE41: 0 | BF41: 0 | BG41: =(COUNTIFS($E41:$AW41,"Greatly Below Expectations",$E$116:$AW$116,BG$1)*1)+(COUNTIFS($E41:$AW41,"Below Expectations",$E$116:$AW$116,BG$1)*2)+(COUNTIFS($E41:$AW41,"Meet Expectations",$E$116:$AW$116,BG$1)*3)+(COUNTIFS($E41:$AW41,"Exceed Expectations",$E$116:$AW$116,BG$1)*4)+(COUNTIFS($E41:$AW41,"Truly Outstanding",$E160:$AW160,BG$1)*5) -> 0 | BH41: 0 | BI41: 0 | BJ41: 0 | BK41: 0 | BL41: 0 | BM41: 0 | BN41: 0 | BO41: 0 | BP41: 0 | BQ41: 0 | BR41: 0 | BS41: 0 | BT41: 0 | BU41: 0
BA42: =IF(B42='Employee Review'!$C$3,1+MAX('BackEnd Data'!$BA$1:BA41),"") ->  | BB42: 0 | BC42: 0 | BD42: 0 | BE42: 0 | BF42: 0 | BG42: =(COUNTIFS($E42:$AW42,"Greatly Below Expectations",$E$116:$AW$116,BG$1)*1)+(COUNTIFS($E42:$AW42,"Below Expectations",$E$116:$AW$116,BG$1)*2)+(COUNTIFS($E42:$AW42,"Meet Expectations",$E$116:$AW$116,BG$1)*3)+(COUNTIFS($E42:$AW42,"Exceed Expectations",$E$116:$AW$116,BG$1)*4)+(COUNTIFS($E42:$AW42,"Truly Outstanding",$E161:$AW161,BG$1)*5) -> 0 | BH42: 0 | BI42: 0 | BJ42: 0 | BK42: 0 | BL42: 0 | BM42: 0 | BN42: 0 | BO42: 0 | BP42: 0 | BQ42: 0 | BR42: 0 | BS42: 0 | BT42: 0 | BU42: 0
BA43: =IF(B43='Employee Review'!$C$3,1+MAX('BackEnd Data'!$BA$1:BA42),"") ->  | BB43: 0 | BC43: 0 | BD43: 0 | BE43: 0 | BF43: 0 | BG43: =(COUNTIFS($E43:$AW43,"Greatly Below Expectations",$E$116:$AW$116,BG$1)*1)+(COUNTIFS($E43:$AW43,"Below Expectations",$E$116:$AW$116,BG$1)*2)+(COUNTIFS($E43:$AW43,"Meet Expectations",$E$116:$AW$116,BG$1)*3)+(COUNTIFS($E43:$AW43,"Exceed Expectations",$E$116:$AW$116,BG$1)*4)+(COUNTIFS($E43:$AW43,"Truly Outstanding",$E162:$AW162,BG$1)*5) -> 0 | BH43: 0 | BI43: 0 | BJ43: 0 | BK43: 0 | BL43: 0 | BM43: 0 | BN43: 0 | BO43: 0 | BP43: 0 | BQ43: 0 | BR43: 0 | BS43: 0 | BT43: 0 | BU43: 0
BA44: =IF(B44='Employee Review'!$C$3,1+MAX('BackEnd Data'!$BA$1:BA43),"") ->  | BB44: 0 | BC44: 0 | BD44: 0 | BE44: 0 | BF44: 0 | BG44: =(COUNTIFS($E44:$AW44,"Greatly Below Expectations",$E$116:$AW$116,BG$1)*1)+(COUNTIFS($E44:$AW44,"Below Expectations",$E$116:$AW$116,BG$1)*2)+(COUNTIFS($E44:$AW44,"Meet Expectations",$E$116:$AW$116,BG$1)*3)+(COUNTIFS($E44:$AW44,"Exceed Expectations",$E$116:$AW$116,BG$1)*4)+(COUNTIFS($E44:$AW44,"Truly Outstanding",$E163:$AW163,BG$1)*5) -> 0 | BH44: 0 | BI44: 0 | BJ44: 0 | BK44: 0 | BL44: 0 | BM44: 0 | BN44: 0 | BO44: 0 | BP44: 0 | BQ44: 0 | BR44: 0 | BS44: 0 | BT44: 0 | BU44: 0
BA45: =IF(B45='Employee Review'!$C$3,1+MAX('BackEnd Data'!$BA$1:BA44),"") ->  | BB45: 0 | BC45: 0 | BD45: 0 | BE45: 0 | BF45: 0 | BG45: =(COUNTIFS($E45:$AW45,"Greatly Below Expectations",$E$116:$AW$116,BG$1)*1)+(COUNTIFS($E45:$AW45,"Below Expectations",$E$116:$AW$116,BG$1)*2)+(COUNTIFS($E45:$AW45,"Meet Expectations",$E$116:$AW$116,BG$1)*3)+(COUNTIFS($E45:$AW45,"Exceed Expectations",$E$116:$AW$116,BG$1)*4)+(COUNTIFS($E45:$AW45,"Truly Outstanding",$E164:$AW164,BG$1)*5) -> 0 | BH45: 0 | BI45: 0 | BJ45: 0 | BK45: 0 | BL45: 0 | BM45: 0 | BN45: 0 | BO45: 0 | BP45: 0 | BQ45: 0 | BR45: 0 | BS45: 0 | BT45: 0 | BU45: 0
BA46: =IF(B46='Employee Review'!$C$3,1+MAX('BackEnd Data'!$BA$1:BA45),"") ->  | BB46: 0 | BC46: 0 | BD46: 0 | BE46: 0 | BF46: 0 | BG46: =(COUNTIFS($E46:$AW46,"Greatly Below Expectations",$E$116:$AW$116,BG$1)*1)+(COUNTIFS($E46:$AW46,"Below Expectations",$E$116:$AW$116,BG$1)*2)+(COUNTIFS($E46:$AW46,"Meet Expectations",$E$116:$AW$116,BG$1)*3)+(COUNTIFS($E46:$AW46,"Exceed Expectations",$E$116:$AW$116,BG$1)*4)+(COUNTIFS($E46:$AW46,"Truly Outstanding",$E165:$AW165,BG$1)*5) -> 0 | BH46: 0 | BI46: 0 | BJ46: 0 | BK46: 0 | BL46: 0 | BM46: 0 | BN46: 0 | BO46: 0 | BP46: 0 | BQ46: 0 | BR46: 0 | BS46: 0 | BT46: 0 | BU46: 0
BA47: =IF(B47='Employee Review'!$C$3,1+MAX('BackEnd Data'!$BA$1:BA46),"") ->  | BB47: 0 | BC47: 0 | BD47: 0 | BE47: 0 | BF47: 0 | BG47: =(COUNTIFS($E47:$AW47,"Greatly Below Expectations",$E$116:$AW$116,BG$1)*1)+(COUNTIFS($E47:$AW47,"Below Expectations",$E$116:$AW$116,BG$1)*2)+(COUNTIFS($E47:$AW47,"Meet Expectations",$E$116:$AW$116,BG$1)*3)+(COUNTIFS($E47:$AW47,"Exceed Expectations",$E$116:$AW$116,BG$1)*4)+(COUNTIFS($E47:$AW47,"Truly Outstanding",$E166:$AW166,BG$1)*5) -> 0 | BH47: 0 | BI47: 0 | BJ47: 0 | BK47: 0 | BL47: 0 | BM47: 0 | BN47: 0 | BO47: 0 | BP47: 0 | BQ47: 0 | BR47: 0 | BS47: 0 | BT47: 0 | BU47: 0
BA48: =IF(B48='Employee Review'!$C$3,1+MAX('BackEnd Data'!$BA$1:BA47),"") ->  | BB48: 0 | BC48: 0 | BD48: 0 | BE48: 0 | BF48: 0 | BG48: =(COUNTIFS($E48:$AW48,"Greatly Below Expectations",$E$116:$AW$116,BG$1)*1)+(COUNTIFS($E48:$AW48,"Below Expectations",$E$116:$AW$116,BG$1)*2)+(COUNTIFS($E48:$AW48,"Meet Expectations",$E$116:$AW$116,BG$1)*3)+(COUNTIFS($E48:$AW48,"Exceed Expectations",$E$116:$AW$116,BG$1)*4)+(COUNTIFS($E48:$AW48,"Truly Outstanding",$E167:$AW167,BG$1)*5) -> 0 | BH48: 0 | BI48: 0 | BJ48: 0 | BK48: 0 | BL48: 0 | BM48: 0 | BN48: 0 | BO48: 0 | BP48: 0 | BQ48: 0 | BR48: 0 | BS48: 0 | BT48: 0 | BU48: 0
BA49: =IF(B49='Employee Review'!$C$3,1+MAX('BackEnd Data'!$BA$1:BA48),"") ->  | BB49: 0 | BC49: 0 | BD49: 0 | BE49: 0 | BF49: 0 | BG49: =(COUNTIFS($E49:$AW49,"Greatly Below Expectations",$E$116:$AW$116,BG$1)*1)+(COUNTIFS($E49:$AW49,"Below Expectations",$E$116:$AW$116,BG$1)*2)+(COUNTIFS($E49:$AW49,"Meet Expectations",$E$116:$AW$116,BG$1)*3)+(COUNTIFS($E49:$AW49,"Exceed Expectations",$E$116:$AW$116,BG$1)*4)+(COUNTIFS($E49:$AW49,"Truly Outstanding",$E168:$AW168,BG$1)*5) -> 0 | BH49: 0 | BI49: 0 | BJ49: 0 | BK49: 0 | BL49: 0 | BM49: 0 | BN49: 0 | BO49: 0 | BP49: 0 | BQ49: 0 | BR49: 0 | BS49: 0 | BT49: 0 | BU49: 0
BA50: =IF(B50='Employee Review'!$C$3,1+MAX('BackEnd Data'!$BA$1:BA49),"") ->  | BB50: 0 | BC50: 0 | BD50: 0 | BE50: 0 | BF50: 0 | BG50: =(COUNTIFS($E50:$AW50,"Greatly Below Expectations",$E$116:$AW$116,BG$1)*1)+(COUNTIFS($E50:$AW50,"Below Expectations",$E$116:$AW$116,BG$1)*2)+(COUNTIFS($E50:$AW50,"Meet Expectations",$E$116:$AW$116,BG$1)*3)+(COUNTIFS($E50:$AW50,"Exceed Expectations",$E$116:$AW$116,BG$1)*4)+(COUNTIFS($E50:$AW50,"Truly Outstanding",$E169:$AW169,BG$1)*5) -> 0 | BH50: 0 | BI50: 0 | BJ50: 0 | BK50: 0 | BL50: 0 | BM50: 0 | BN50: 0 | BO50: 0 | BP50: 0 | BQ50: 0 | BR50: 0 | BS50: 0 | BT50: 0 | BU50: 0
BA51: =IF(B51='Employee Review'!$C$3,1+MAX('BackEnd Data'!$BA$1:BA50),"") ->  | BB51: 0 | BC51: 0 | BD51: 0 | BE51: 0 | BF51: 0 | BG51: =(COUNTIFS($E51:$AW51,"Greatly Below Expectations",$E$116:$AW$116,BG$1)*1)+(COUNTIFS($E51:$AW51,"Below Expectations",$E$116:$AW$116,BG$1)*2)+(COUNTIFS($E51:$AW51,"Meet Expectations",$E$116:$AW$116,BG$1)*3)+(COUNTIFS($E51:$AW51,"Exceed Expectations",$E$116:$AW$116,BG$1)*4)+(COUNTIFS($E51:$AW51,"Truly Outstanding",$E170:$AW170,BG$1)*5) -> 0 | BH51: 0 | BI51: 0 | BJ51: 0 | BK51: 0 | BL51: 0 | BM51: 0 | BN51: 0 | BO51: 0 | BP51: 0 | BQ51: 0 | BR51: 0 | BS51: 0 | BT51: 0 | BU51: 0
BA52: =IF(B52='Employee Review'!$C$3,1+MAX('BackEnd Data'!$BA$1:BA51),"") ->  | BB52: 0 | BC52: 0 | BD52: 0 | BE52: 0 | BF52: 0 | BG52: =(COUNTIFS($E52:$AW52,"Greatly Below Expectations",$E$116:$AW$116,BG$1)*1)+(COUNTIFS($E52:$AW52,"Below Expectations",$E$116:$AW$116,BG$1)*2)+(COUNTIFS($E52:$AW52,"Meet Expectations",$E$116:$AW$116,BG$1)*3)+(COUNTIFS($E52:$AW52,"Exceed Expectations",$E$116:$AW$116,BG$1)*4)+(COUNTIFS($E52:$AW52,"Truly Outstanding",$E171:$AW171,BG$1)*5) -> 0 | BH52: 0 | BI52: 0 | BJ52: 0 | BK52: 0 | BL52: 0 | BM52: 0 | BN52: 0 | BO52: 0 | BP52: 0 | BQ52: 0 | BR52: 0 | BS52: 0 | BT52: 0 | BU52: 0
BA53: =IF(B53='Employee Review'!$C$3,1+MAX('BackEnd Data'!$BA$1:BA52),"") ->  | BB53: 0 | BC53: 0 | BD53: 0 | BE53: 0 | BF53: 0 | BG53: =(COUNTIFS($E53:$AW53,"Greatly Below Expectations",$E$116:$AW$116,BG$1)*1)+(COUNTIFS($E53:$AW53,"Below Expectations",$E$116:$AW$116,BG$1)*2)+(COUNTIFS($E53:$AW53,"Meet Expectations",$E$116:$AW$116,BG$1)*3)+(COUNTIFS($E53:$AW53,"Exceed Expectations",$E$116:$AW$116,BG$1)*4)+(COUNTIFS($E53:$AW53,"Truly Outstanding",$E172:$AW172,BG$1)*5) -> 0 | BH53: 0 | BI53: 0 | BJ53: 0 | BK53: 0 | BL53: 0 | BM53: 0 | BN53: 0 | BO53: 0 | BP53: 0 | BQ53: 0 | BR53: 0 | BS53: 0 | BT53: 0 | BU53: 0
BA54: =IF(B54='Employee Review'!$C$3,1+MAX('BackEnd Data'!$BA$1:BA53),"") ->  | BB54: 0 | BC54: 0 | BD54: 0 | BE54: 0 | BF54: 0 | BG54: =(COUNTIFS($E54:$AW54,"Greatly Below Expectations",$E$116:$AW$116,BG$1)*1)+(COUNTIFS($E54:$AW54,"Below Expectations",$E$116:$AW$116,BG$1)*2)+(COUNTIFS($E54:$AW54,"Meet Expectations",$E$116:$AW$116,BG$1)*3)+(COUNTIFS($E54:$AW54,"Exceed Expectations",$E$116:$AW$116,BG$1)*4)+(COUNTIFS($E54:$AW54,"Truly Outstanding",$E173:$AW173,BG$1)*5) -> 0 | BH54: 0 | BI54: 0 | BJ54: 0 | BK54: 0 | BL54: 0 | BM54: 0 | BN54: 0 | BO54: 0 | BP54: 0 | BQ54: 0 | BR54: 0 | BS54: 0 | BT54: 0 | BU54: 0
BA55: =IF(B55='Employee Review'!$C$3,1+MAX('BackEnd Data'!$BA$1:BA54),"") ->  | BB55: 0 | BC55: 0 | BD55: 0 | BE55: 0 | BF55: 0 | BG55: =(COUNTIFS($E55:$AW55,"Greatly Below Expectations",$E$116:$AW$116,BG$1)*1)+(COUNTIFS($E55:$AW55,"Below Expectations",$E$116:$AW$116,BG$1)*2)+(COUNTIFS($E55:$AW55,"Meet Expectations",$E$116:$AW$116,BG$1)*3)+(COUNTIFS($E55:$AW55,"Exceed Expectations",$E$116:$AW$116,BG$1)*4)+(COUNTIFS($E55:$AW55,"Truly Outstanding",$E174:$AW174,BG$1)*5) -> 0 | BH55: 0 | BI55: 0 | BJ55: 0 | BK55: 0 | BL55: 0 | BM55: 0 | BN55: 0 | BO55: 0 | BP55: 0 | BQ55: 0 | BR55: 0 | BS55: 0 | BT55: 0 | BU55: 0
BA56: =IF(B56='Employee Review'!$C$3,1+MAX('BackEnd Data'!$BA$1:BA55),"") ->  | BB56: 0 | BC56: 0 | BD56: 0 | BE56: 0 | BF56: 0 | BG56: =(COUNTIFS($E56:$AW56,"Greatly Below Expectations",$E$116:$AW$116,BG$1)*1)+(COUNTIFS($E56:$AW56,"Below Expectations",$E$116:$AW$116,BG$1)*2)+(COUNTIFS($E56:$AW56,"Meet Expectations",$E$116:$AW$116,BG$1)*3)+(COUNTIFS($E56:$AW56,"Exceed Expectations",$E$116:$AW$116,BG$1)*4)+(COUNTIFS($E56:$AW56,"Truly Outstanding",$E175:$AW175,BG$1)*5) -> 0 | BH56: 0 | BI56: 0 | BJ56: 0 | BK56: 0 | BL56: 0 | BM56: 0 | BN56: 0 | BO56: 0 | BP56: 0 | BQ56: 0 | BR56: 0 | BS56: 0 | BT56: 0 | BU56: 0
BA57: =IF(B57='Employee Review'!$C$3,1+MAX('BackEnd Data'!$BA$1:BA56),"") ->  | BB57: 0 | BC57: 0 | BD57: 0 | BE57: 0 | BF57: 0 | BG57: =(COUNTIFS($E57:$AW57,"Greatly Below Expectations",$E$116:$AW$116,BG$1)*1)+(COUNTIFS($E57:$AW57,"Below Expectations",$E$116:$AW$116,BG$1)*2)+(COUNTIFS($E57:$AW57,"Meet Expectations",$E$116:$AW$116,BG$1)*3)+(COUNTIFS($E57:$AW57,"Exceed Expectations",$E$116:$AW$116,BG$1)*4)+(COUNTIFS($E57:$AW57,"Truly Outstanding",$E176:$AW176,BG$1)*5) -> 0 | BH57: 0 | BI57: 0 | BJ57: 0 | BK57: 0 | BL57: 0 | BM57: 0 | BN57: 0 | BO57: 0 | BP57: 0 | BQ57: 0 | BR57: 0 | BS57: 0 | BT57: 0 | BU57: 0
BA58: =IF(B58='Employee Review'!$C$3,1+MAX('BackEnd Data'!$BA$1:BA57),"") ->  | BB58: 0 | BC58: 0 | BD58: 0 | BE58: 0 | BF58: 0 | BG58: =(COUNTIFS($E58:$AW58,"Greatly Below Expectations",$E$116:$AW$116,BG$1)*1)+(COUNTIFS($E58:$AW58,"Below Expectations",$E$116:$AW$116,BG$1)*2)+(COUNTIFS($E58:$AW58,"Meet Expectations",$E$116:$AW$116,BG$1)*3)+(COUNTIFS($E58:$AW58,"Exceed Expectations",$E$116:$AW$116,BG$1)*4)+(COUNTIFS($E58:$AW58,"Truly Outstanding",$E177:$AW177,BG$1)*5) -> 0 | BH58: 0 | BI58: 0 | BJ58: 0 | BK58: 0 | BL58: 0 | BM58: 0 | BN58: 0 | BO58: 0 | BP58: 0 | BQ58: 0 | BR58: 0 | BS58: 0 | BT58: 0 | BU58: 0
BA59: =IF(B59='Employee Review'!$C$3,1+MAX('BackEnd Data'!$BA$1:BA58),"") ->  | BB59: 0 | BC59: 0 | BD59: 0 | BE59: 0 | BF59: 0 | BG59: =(COUNTIFS($E59:$AW59,"Greatly Below Expectations",$E$116:$AW$116,BG$1)*1)+(COUNTIFS($E59:$AW59,"Below Expectations",$E$116:$AW$116,BG$1)*2)+(COUNTIFS($E59:$AW59,"Meet Expectations",$E$116:$AW$116,BG$1)*3)+(COUNTIFS($E59:$AW59,"Exceed Expectations",$E$116:$AW$116,BG$1)*4)+(COUNTIFS($E59:$AW59,"Truly Outstanding",$E178:$AW178,BG$1)*5) -> 0 | BH59: 0 | BI59: 0 | BJ59: 0 | BK59: 0 | BL59: 0 | BM59: 0 | BN59: 0 | BO59: 0 | BP59: 0 | BQ59: 0 | BR59: 0 | BS59: 0 | BT59: 0 | BU59: 0
BA60: =IF(B60='Employee Review'!$C$3,1+MAX('BackEnd Data'!$BA$1:BA59),"") ->  | BB60: 0 | BC60: 0 | BD60: 0 | BE60: 0 | BF60: 0 | BG60: =(COUNTIFS($E60:$AW60,"Greatly Below Expectations",$E$116:$AW$116,BG$1)*1)+(COUNTIFS($E60:$AW60,"Below Expectations",$E$116:$AW$116,BG$1)*2)+(COUNTIFS($E60:$AW60,"Meet Expectations",$E$116:$AW$116,BG$1)*3)+(COUNTIFS($E60:$AW60,"Exceed Expectations",$E$116:$AW$116,BG$1)*4)+(COUNTIFS($E60:$AW60,"Truly Outstanding",$E179:$AW179,BG$1)*5) -> 0 | BH60: 0 | BI60: 0 | BJ60: 0 | BK60: 0 | BL60: 0 | BM60: 0 | BN60: 0 | BO60: 0 | BP60: 0 | BQ60: 0 | BR60: 0 | BS60: 0 | BT60: 0 | BU60: 0
BA61: =IF(B61='Employee Review'!$C$3,1+MAX('BackEnd Data'!$BA$1:BA60),"") ->  | BB61: 0 | BC61: 0 | BD61: 0 | BE61: 0 | BF61: 0 | BG61: =(COUNTIFS($E61:$AW61,"Greatly Below Expectations",$E$116:$AW$116,BG$1)*1)+(COUNTIFS($E61:$AW61,"Below Expectations",$E$116:$AW$116,BG$1)*2)+(COUNTIFS($E61:$AW61,"Meet Expectations",$E$116:$AW$116,BG$1)*3)+(COUNTIFS($E61:$AW61,"Exceed Expectations",$E$116:$AW$116,BG$1)*4)+(COUNTIFS($E61:$AW61,"Truly Outstanding",$E180:$AW180,BG$1)*5) -> 0 | BH61: 0 | BI61: 0 | BJ61: 0 | BK61: 0 | BL61: 0 | BM61: 0 | BN61: 0 | BO61: 0 | BP61: 0 | BQ61: 0 | BR61: 0 | BS61: 0 | BT61: 0 | BU61: 0
BA62: =IF(B62='Employee Review'!$C$3,1+MAX('BackEnd Data'!$BA$1:BA61),"") ->  | BB62: 0 | BC62: 0 | BD62: 0 | BE62: 0 | BF62: 0 | BG62: =(COUNTIFS($E62:$AW62,"Greatly Below Expectations",$E$116:$AW$116,BG$1)*1)+(COUNTIFS($E62:$AW62,"Below Expectations",$E$116:$AW$116,BG$1)*2)+(COUNTIFS($E62:$AW62,"Meet Expectations",$E$116:$AW$116,BG$1)*3)+(COUNTIFS($E62:$AW62,"Exceed Expectations",$E$116:$AW$116,BG$1)*4)+(COUNTIFS($E62:$AW62,"Truly Outstanding",$E181:$AW181,BG$1)*5) -> 0 | BH62: 0 | BI62: 0 | BJ62: 0 | BK62: 0 | BL62: 0 | BM62: 0 | BN62: 0 | BO62: 0 | BP62: 0 | BQ62: 0 | BR62: 0 | BS62: 0 | BT62: 0 | BU62: 0
BA63: =IF(B63='Employee Review'!$C$3,1+MAX('BackEnd Data'!$BA$1:BA62),"") ->  | BB63: 0 | BC63: 0 | BD63: 0 | BE63: 0 | BF63: 0 | BG63: =(COUNTIFS($E63:$AW63,"Greatly Below Expectations",$E$116:$AW$116,BG$1)*1)+(COUNTIFS($E63:$AW63,"Below Expectations",$E$116:$AW$116,BG$1)*2)+(COUNTIFS($E63:$AW63,"Meet Expectations",$E$116:$AW$116,BG$1)*3)+(COUNTIFS($E63:$AW63,"Exceed Expectations",$E$116:$AW$116,BG$1)*4)+(COUNTIFS($E63:$AW63,"Truly Outstanding",$E182:$AW182,BG$1)*5) -> 0 | BH63: 0 | BI63: 0 | BJ63: 0 | BK63: 0 | BL63: 0 | BM63: 0 | BN63: 0 | BO63: 0 | BP63: 0 | BQ63: 0 | BR63: 0 | BS63: 0 | BT63: 0 | BU63: 0
BA64: =IF(B64='Employee Review'!$C$3,1+MAX('BackEnd Data'!$BA$1:BA63),"") ->  | BB64: =COUNTIF($E64:$AW64,BB$1) -> 0 | BC64: 0 | BD64: 0 | BE64: 0 | BF64: 0 | BG64: =(COUNTIFS($E64:$AW64,"Greatly Below Expectations",$E$116:$AW$116,BG$1)*1)+(COUNTIFS($E64:$AW64,"Below Expectations",$E$116:$AW$116,BG$1)*2)+(COUNTIFS($E64:$AW64,"Meet Expectations",$E$116:$AW$116,BG$1)*3)+(COUNTIFS($E64:$AW64,"Exceed Expectations",$E$116:$AW$116,BG$1)*4)+(COUNTIFS($E64:$AW64,"Truly Outstanding",$E183:$AW183,BG$1)*5) -> 0 | BH64: 0 | BI64: 0 | BJ64: 0 | BK64: 0 | BL64: 0 | BM64: 0 | BN64: 0 | BO64: 0 | BP64: 0 | BQ64: 0 | BR64: 0 | BS64: 0 | BT64: 0 | BU64: 0
BA65: =IF(B65='Employee Review'!$C$3,1+MAX('BackEnd Data'!$BA$1:BA64),"") ->  | BB65: 0 | BC65: 0 | BD65: 0 | BE65: 0 | BF65: 0 | BG65: =(COUNTIFS($E65:$AW65,"Greatly Below Expectations",$E$116:$AW$116,BG$1)*1)+(COUNTIFS($E65:$AW65,"Below Expectations",$E$116:$AW$116,BG$1)*2)+(COUNTIFS($E65:$AW65,"Meet Expectations",$E$116:$AW$116,BG$1)*3)+(COUNTIFS($E65:$AW65,"Exceed Expectations",$E$116:$AW$116,BG$1)*4)+(COUNTIFS($E65:$AW65,"Truly Outstanding",$E184:$AW184,BG$1)*5) -> 0 | BH65: 0 | BI65: 0 | BJ65: 0 | BK65: 0 | BL65: 0 | BM65: 0 | BN65: 0 | BO65: 0 | BP65: 0 | BQ65: 0 | BR65: 0 | BS65: 0 | BT65: 0 | BU65: 0
BA66: =IF(B66='Employee Review'!$C$3,1+MAX('BackEnd Data'!$BA$1:BA65),"") ->  | BB66: 0 | BC66: 0 | BD66: 0 | BE66: 0 | BF66: 0 | BG66: =(COUNTIFS($E66:$AW66,"Greatly Below Expectations",$E$116:$AW$116,BG$1)*1)+(COUNTIFS($E66:$AW66,"Below Expectations",$E$116:$AW$116,BG$1)*2)+(COUNTIFS($E66:$AW66,"Meet Expectations",$E$116:$AW$116,BG$1)*3)+(COUNTIFS($E66:$AW66,"Exceed Expectations",$E$116:$AW$116,BG$1)*4)+(COUNTIFS($E66:$AW66,"Truly Outstanding",$E185:$AW185,BG$1)*5) -> 0 | BH66: 0 | BI66: 0 | BJ66: 0 | BK66: 0 | BL66: 0 | BM66: 0 | BN66: 0 | BO66: 0 | BP66: 0 | BQ66: 0 | BR66: 0 | BS66: 0 | BT66: 0 | BU66: 0
BA67: =IF(B67='Employee Review'!$C$3,1+MAX('BackEnd Data'!$BA$1:BA66),"") ->  | BB67: 0 | BC67: 0 | BD67: 0 | BE67: 0 | BF67: 0 | BG67: =(COUNTIFS($E67:$AW67,"Greatly Below Expectations",$E$116:$AW$116,BG$1)*1)+(COUNTIFS($E67:$AW67,"Below Expectations",$E$116:$AW$116,BG$1)*2)+(COUNTIFS($E67:$AW67,"Meet Expectations",$E$116:$AW$116,BG$1)*3)+(COUNTIFS($E67:$AW67,"Exceed Expectations",$E$116:$AW$116,BG$1)*4)+(COUNTIFS($E67:$AW67,"Truly Outstanding",$E186:$AW186,BG$1)*5) -> 0 | BH67: 0 | BI67: 0 | BJ67: 0 | BK67: 0 | BL67: 0 | BM67: 0 | BN67: 0 | BO67: 0 | BP67: 0 | BQ67: 0 | BR67: 0 | BS67: 0 | BT67: 0 | BU67: 0
BA68: =IF(B68='Employee Review'!$C$3,1+MAX('BackEnd Data'!$BA$1:BA67),"") ->  | BB68: 0 | BC68: 0 | BD68: 0 | BE68: 0 | BF68: 0 | BG68: =(COUNTIFS($E68:$AW68,"Greatly Below Expectations",$E$116:$AW$116,BG$1)*1)+(COUNTIFS($E68:$AW68,"Below Expectations",$E$116:$AW$116,BG$1)*2)+(COUNTIFS($E68:$AW68,"Meet Expectations",$E$116:$AW$116,BG$1)*3)+(COUNTIFS($E68:$AW68,"Exceed Expectations",$E$116:$AW$116,BG$1)*4)+(COUNTIFS($E68:$AW68,"Truly Outstanding",$E187:$AW187,BG$1)*5) -> 0 | BH68: 0 | BI68: 0 | BJ68: 0 | BK68: 0 | BL68: 0 | BM68: 0 | BN68: 0 | BO68: 0 | BP68: 0 | BQ68: 0 | BR68: 0 | BS68: 0 | BT68: 0 | BU68: 0
BA69: =IF(B69='Employee Review'!$C$3,1+MAX('BackEnd Data'!$BA$1:BA68),"") ->  | BB69: 0 | BC69: 0 | BD69: 0 | BE69: 0 | BF69: 0 | BG69: =(COUNTIFS($E69:$AW69,"Greatly Below Expectations",$E$116:$AW$116,BG$1)*1)+(COUNTIFS($E69:$AW69,"Below Expectations",$E$116:$AW$116,BG$1)*2)+(COUNTIFS($E69:$AW69,"Meet Expectations",$E$116:$AW$116,BG$1)*3)+(COUNTIFS($E69:$AW69,"Exceed Expectations",$E$116:$AW$116,BG$1)*4)+(COUNTIFS($E69:$AW69,"Truly Outstanding",$E188:$AW188,BG$1)*5) -> 0 | BH69: 0 | BI69: 0 | BJ69: 0 | BK69: 0 | BL69: 0 | BM69: 0 | BN69: 0 | BO69: 0 | BP69: 0 | BQ69: 0 | BR69: 0 | BS69: 0 | BT69: 0 | BU69: 0
BA70: =IF(B70='Employee Review'!$C$3,1+MAX('BackEnd Data'!$BA$1:BA69),"") ->  | BB70: 0 | BC70: 0 | BD70: 0 | BE70: 0 | BF70: 0 | BG70: =(COUNTIFS($E70:$AW70,"Greatly Below Expectations",$E$116:$AW$116,BG$1)*1)+(COUNTIFS($E70:$AW70,"Below Expectations",$E$116:$AW$116,BG$1)*2)+(COUNTIFS($E70:$AW70,"Meet Expectations",$E$116:$AW$116,BG$1)*3)+(COUNTIFS($E70:$AW70,"Exceed Expectations",$E$116:$AW$116,BG$1)*4)+(COUNTIFS($E70:$AW70,"Truly Outstanding",$E189:$AW189,BG$1)*5) -> 0 | BH70: 0 | BI70: 0 | BJ70: 0 | BK70: 0 | BL70: 0 | BM70: 0 | BN70: 0 | BO70: 0 | BP70: 0 | BQ70: 0 | BR70: 0 | BS70: 0 | BT70: 0 | BU70: 0
BA71: =IF(B71='Employee Review'!$C$3,1+MAX('BackEnd Data'!$BA$1:BA70),"") ->  | BB71: 0 | BC71: 0 | BD71: 0 | BE71: 0 | BF71: 0 | BG71: =(COUNTIFS($E71:$AW71,"Greatly Below Expectations",$E$116:$AW$116,BG$1)*1)+(COUNTIFS($E71:$AW71,"Below Expectations",$E$116:$AW$116,BG$1)*2)+(COUNTIFS($E71:$AW71,"Meet Expectations",$E$116:$AW$116,BG$1)*3)+(COUNTIFS($E71:$AW71,"Exceed Expectations",$E$116:$AW$116,BG$1)*4)+(COUNTIFS($E71:$AW71,"Truly Outstanding",$E190:$AW190,BG$1)*5) -> 0 | BH71: 0 | BI71: 0 | BJ71: 0 | BK71: 0 | BL71: 0 | BM71: 0 | BN71: 0 | BO71: 0 | BP71: 0 | BQ71: 0 | BR71: 0 | BS71: 0 | BT71: 0 | BU71: 0
BA72: =IF(B72='Employee Review'!$C$3,1+MAX('BackEnd Data'!$BA$1:BA71),"") ->  | BB72: 0 | BC72: 0 | BD72: 0 | BE72: 0 | BF72: 0 | BG72: =(COUNTIFS($E72:$AW72,"Greatly Below Expectations",$E$116:$AW$116,BG$1)*1)+(COUNTIFS($E72:$AW72,"Below Expectations",$E$116:$AW$116,BG$1)*2)+(COUNTIFS($E72:$AW72,"Meet Expectations",$E$116:$AW$116,BG$1)*3)+(COUNTIFS($E72:$AW72,"Exceed Expectations",$E$116:$AW$116,BG$1)*4)+(COUNTIFS($E72:$AW72,"Truly Outstanding",$E191:$AW191,BG$1)*5) -> 0 | BH72: 0 | BI72: 0 | BJ72: 0 | BK72: 0 | BL72: 0 | BM72: 0 | BN72: 0 | BO72: 0 | BP72: 0 | BQ72: 0 | BR72: 0 | BS72: 0 | BT72: 0 | BU72: 0
BA73: =IF(B73='Employee Review'!$C$3,1+MAX('BackEnd Data'!$BA$1:BA72),"") ->  | BB73: 0 | BC73: 0 | BD73: 0 | BE73: 0 | BF73: 0 | BG73: =(COUNTIFS($E73:$AW73,"Greatly Below Expectations",$E$116:$AW$116,BG$1)*1)+(COUNTIFS($E73:$AW73,"Below Expectations",$E$116:$AW$116,BG$1)*2)+(COUNTIFS($E73:$AW73,"Meet Expectations",$E$116:$AW$116,BG$1)*3)+(COUNTIFS($E73:$AW73,"Exceed Expectations",$E$116:$AW$116,BG$1)*4)+(COUNTIFS($E73:$AW73,"Truly Outstanding",$E192:$AW192,BG$1)*5) -> 0 | BH73: 0 | BI73: 0 | BJ73: 0 | BK73: 0 | BL73: 0 | BM73: 0 | BN73: 0 | BO73: 0 | BP73: 0 | BQ73: 0 | BR73: 0 | BS73: 0 | BT73: 0 | BU73: 0
BA74: =IF(B74='Employee Review'!$C$3,1+MAX('BackEnd Data'!$BA$1:BA73),"") ->  | BB74: 0 | BC74: 0 | BD74: 0 | BE74: 0 | BF74: 0 | BG74: =(COUNTIFS($E74:$AW74,"Greatly Below Expectations",$E$116:$AW$116,BG$1)*1)+(COUNTIFS($E74:$AW74,"Below Expectations",$E$116:$AW$116,BG$1)*2)+(COUNTIFS($E74:$AW74,"Meet Expectations",$E$116:$AW$116,BG$1)*3)+(COUNTIFS($E74:$AW74,"Exceed Expectations",$E$116:$AW$116,BG$1)*4)+(COUNTIFS($E74:$AW74,"Truly Outstanding",$E193:$AW193,BG$1)*5) -> 0 | BH74: 0 | BI74: 0 | BJ74: 0 | BK74: 0 | BL74: 0 | BM74: 0 | BN74: 0 | BO74: 0 | BP74: 0 | BQ74: 0 | BR74: 0 | BS74: 0 | BT74: 0 | BU74: 0
BA75: =IF(B75='Employee Review'!$C$3,1+MAX('BackEnd Data'!$BA$1:BA74),"") ->  | BB75: 0 | BC75: 0 | BD75: 0 | BE75: 0 | BF75: 0 | BG75: =(COUNTIFS($E75:$AW75,"Greatly Below Expectations",$E$116:$AW$116,BG$1)*1)+(COUNTIFS($E75:$AW75,"Below Expectations",$E$116:$AW$116,BG$1)*2)+(COUNTIFS($E75:$AW75,"Meet Expectations",$E$116:$AW$116,BG$1)*3)+(COUNTIFS($E75:$AW75,"Exceed Expectations",$E$116:$AW$116,BG$1)*4)+(COUNTIFS($E75:$AW75,"Truly Outstanding",$E194:$AW194,BG$1)*5) -> 0 | BH75: 0 | BI75: 0 | BJ75: 0 | BK75: 0 | BL75: 0 | BM75: 0 | BN75: 0 | BO75: 0 | BP75: 0 | BQ75: 0 | BR75: 0 | BS75: 0 | BT75: 0 | BU75: 0
BA76: =IF(B76='Employee Review'!$C$3,1+MAX('BackEnd Data'!$BA$1:BA75),"") ->  | BB76: 0 | BC76: 0 | BD76: 0 | BE76: 0 | BF76: 0 | BG76: =(COUNTIFS($E76:$AW76,"Greatly Below Expectations",$E$116:$AW$116,BG$1)*1)+(COUNTIFS($E76:$AW76,"Below Expectations",$E$116:$AW$116,BG$1)*2)+(COUNTIFS($E76:$AW76,"Meet Expectations",$E$116:$AW$116,BG$1)*3)+(COUNTIFS($E76:$AW76,"Exceed Expectations",$E$116:$AW$116,BG$1)*4)+(COUNTIFS($E76:$AW76,"Truly Outstanding",$E195:$AW195,BG$1)*5) -> 0 | BH76: 0 | BI76: 0 | BJ76: 0 | BK76: 0 | BL76: 0 | BM76: 0 | BN76: 0 | BO76: 0 | BP76: 0 | BQ76: 0 | BR76: 0 | BS76: 0 | BT76: 0 | BU76: 0
BA77: =IF(B77='Employee Review'!$C$3,1+MAX('BackEnd Data'!$BA$1:BA76),"") ->  | BB77: 0 | BC77: 0 | BD77: 0 | BE77: 0 | BF77: 0 | BG77: =(COUNTIFS($E77:$AW77,"Greatly Below Expectations",$E$116:$AW$116,BG$1)*1)+(COUNTIFS($E77:$AW77,"Below Expectations",$E$116:$AW$116,BG$1)*2)+(COUNTIFS($E77:$AW77,"Meet Expectations",$E$116:$AW$116,BG$1)*3)+(COUNTIFS($E77:$AW77,"Exceed Expectations",$E$116:$AW$116,BG$1)*4)+(COUNTIFS($E77:$AW77,"Truly Outstanding",$E196:$AW196,BG$1)*5) -> 0 | BH77: 0 | BI77: 0 | BJ77: 0 | BK77: 0 | BL77: 0 | BM77: 0 | BN77: 0 | BO77: 0 | BP77: 0 | BQ77: 0 | BR77: 0 | BS77: 0 | BT77: 0 | BU77: 0
BA78: =IF(B78='Employee Review'!$C$3,1+MAX('BackEnd Data'!$BA$1:BA77),"") ->  | BB78: 0 | BC78: 0 | BD78: 0 | BE78: 0 | BF78: 0 | BG78: =(COUNTIFS($E78:$AW78,"Greatly Below Expectations",$E$116:$AW$116,BG$1)*1)+(COUNTIFS($E78:$AW78,"Below Expectations",$E$116:$AW$116,BG$1)*2)+(COUNTIFS($E78:$AW78,"Meet Expectations",$E$116:$AW$116,BG$1)*3)+(COUNTIFS($E78:$AW78,"Exceed Expectations",$E$116:$AW$116,BG$1)*4)+(COUNTIFS($E78:$AW78,"Truly Outstanding",$E197:$AW197,BG$1)*5) -> 0 | BH78: 0 | BI78: 0 | BJ78: 0 | BK78: 0 | BL78: 0 | BM78: 0 | BN78: 0 | BO78: 0 | BP78: 0 | BQ78: 0 | BR78: 0 | BS78: 0 | BT78: 0 | BU78: 0
BA79: =IF(B79='Employee Review'!$C$3,1+MAX('BackEnd Data'!$BA$1:BA78),"") ->  | BB79: 0 | BC79: 0 | BD79: 0 | BE79: 0 | BF79: 0 | BG79: =(COUNTIFS($E79:$AW79,"Greatly Below Expectations",$E$116:$AW$116,BG$1)*1)+(COUNTIFS($E79:$AW79,"Below Expectations",$E$116:$AW$116,BG$1)*2)+(COUNTIFS($E79:$AW79,"Meet Expectations",$E$116:$AW$116,BG$1)*3)+(COUNTIFS($E79:$AW79,"Exceed Expectations",$E$116:$AW$116,BG$1)*4)+(COUNTIFS($E79:$AW79,"Truly Outstanding",$E198:$AW198,BG$1)*5) -> 0 | BH79: 0 | BI79: 0 | BJ79: 0 | BK79: 0 | BL79: 0 | BM79: 0 | BN79: 0 | BO79: 0 | BP79: 0 | BQ79: 0 | BR79: 0 | BS79: 0 | BT79: 0 | BU79: 0
BA80: =IF(B80='Employee Review'!$C$3,1+MAX('BackEnd Data'!$BA$1:BA79),"") ->  | BB80: 0 | BC80: 0 | BD80: 0 | BE80: 0 | BF80: 0 | BG80: =(COUNTIFS($E80:$AW80,"Greatly Below Expectations",$E$116:$AW$116,BG$1)*1)+(COUNTIFS($E80:$AW80,"Below Expectations",$E$116:$AW$116,BG$1)*2)+(COUNTIFS($E80:$AW80,"Meet Expectations",$E$116:$AW$116,BG$1)*3)+(COUNTIFS($E80:$AW80,"Exceed Expectations",$E$116:$AW$116,BG$1)*4)+(COUNTIFS($E80:$AW80,"Truly Outstanding",$E199:$AW199,BG$1)*5) -> 0 | BH80: 0 | BI80: 0 | BJ80: 0 | BK80: 0 | BL80: 0 | BM80: 0 | BN80: 0 | BO80: 0 | BP80: 0 | BQ80: 0 | BR80: 0 | BS80: 0 | BT80: 0 | BU80: 0
BA81: =IF(B81='Employee Review'!$C$3,1+MAX('BackEnd Data'!$BA$1:BA80),"") ->  | BB81: 0 | BC81: 0 | BD81: 0 | BE81: 0 | BF81: 0 | BG81: =(COUNTIFS($E81:$AW81,"Greatly Below Expectations",$E$116:$AW$116,BG$1)*1)+(COUNTIFS($E81:$AW81,"Below Expectations",$E$116:$AW$116,BG$1)*2)+(COUNTIFS($E81:$AW81,"Meet Expectations",$E$116:$AW$116,BG$1)*3)+(COUNTIFS($E81:$AW81,"Exceed Expectations",$E$116:$AW$116,BG$1)*4)+(COUNTIFS($E81:$AW81,"Truly Outstanding",$E200:$AW200,BG$1)*5) -> 0 | BH81: 0 | BI81: 0 | BJ81: 0 | BK81: 0 | BL81: 0 | BM81: 0 | BN81: 0 | BO81: 0 | BP81: 0 | BQ81: 0 | BR81: 0 | BS81: 0 | BT81: 0 | BU81: 0
BA82: =IF(B82='Employee Review'!$C$3,1+MAX('BackEnd Data'!$BA$1:BA81),"") ->  | BB82: 0 | BC82: 0 | BD82: 0 | BE82: 0 | BF82: 0 | BG82: =(COUNTIFS($E82:$AW82,"Greatly Below Expectations",$E$116:$AW$116,BG$1)*1)+(COUNTIFS($E82:$AW82,"Below Expectations",$E$116:$AW$116,BG$1)*2)+(COUNTIFS($E82:$AW82,"Meet Expectations",$E$116:$AW$116,BG$1)*3)+(COUNTIFS($E82:$AW82,"Exceed Expectations",$E$116:$AW$116,BG$1)*4)+(COUNTIFS($E82:$AW82,"Truly Outstanding",$E201:$AW201,BG$1)*5) -> 0 | BH82: 0 | BI82: 0 | BJ82: 0 | BK82: 0 | BL82: 0 | BM82: 0 | BN82: 0 | BO82: 0 | BP82: 0 | BQ82: 0 | BR82: 0 | BS82: 0 | BT82: 0 | BU82: 0
BA83: =IF(B83='Employee Review'!$C$3,1+MAX('BackEnd Data'!$BA$1:BA82),"") ->  | BB83: 0 | BC83: 0 | BD83: 0 | BE83: 0 | BF83: 0 | BG83: =(COUNTIFS($E83:$AW83,"Greatly Below Expectations",$E$116:$AW$116,BG$1)*1)+(COUNTIFS($E83:$AW83,"Below Expectations",$E$116:$AW$116,BG$1)*2)+(COUNTIFS($E83:$AW83,"Meet Expectations",$E$116:$AW$116,BG$1)*3)+(COUNTIFS($E83:$AW83,"Exceed Expectations",$E$116:$AW$116,BG$1)*4)+(COUNTIFS($E83:$AW83,"Truly Outstanding",$E202:$AW202,BG$1)*5) -> 0 | BH83: 0 | BI83: 0 | BJ83: 0 | BK83: 0 | BL83: 0 | BM83: 0 | BN83: 0 | BO83: 0 | BP83: 0 | BQ83: 0 | BR83: 0 | BS83: 0 | BT83: 0 | BU83: 0
BA84: =IF(B84='Employee Review'!$C$3,1+MAX('BackEnd Data'!$BA$1:BA83),"") ->  | BB84: 0 | BC84: 0 | BD84: 0 | BE84: 0 | BF84: 0 | BG84: =(COUNTIFS($E84:$AW84,"Greatly Below Expectations",$E$116:$AW$116,BG$1)*1)+(COUNTIFS($E84:$AW84,"Below Expectations",$E$116:$AW$116,BG$1)*2)+(COUNTIFS($E84:$AW84,"Meet Expectations",$E$116:$AW$116,BG$1)*3)+(COUNTIFS($E84:$AW84,"Exceed Expectations",$E$116:$AW$116,BG$1)*4)+(COUNTIFS($E84:$AW84,"Truly Outstanding",$E203:$AW203,BG$1)*5) -> 0 | BH84: 0 | BI84: 0 | BJ84: 0 | BK84: 0 | BL84: 0 | BM84: 0 | BN84: 0 | BO84: 0 | BP84: 0 | BQ84: 0 | BR84: 0 | BS84: 0 | BT84: 0 | BU84: 0
BA85: =IF(B85='Employee Review'!$C$3,1+MAX('BackEnd Data'!$BA$1:BA84),"") ->  | BB85: 0 | BC85: 0 | BD85: 0 | BE85: 0 | BF85: 0 | BG85: =(COUNTIFS($E85:$AW85,"Greatly Below Expectations",$E$116:$AW$116,BG$1)*1)+(COUNTIFS($E85:$AW85,"Below Expectations",$E$116:$AW$116,BG$1)*2)+(COUNTIFS($E85:$AW85,"Meet Expectations",$E$116:$AW$116,BG$1)*3)+(COUNTIFS($E85:$AW85,"Exceed Expectations",$E$116:$AW$116,BG$1)*4)+(COUNTIFS($E85:$AW85,"Truly Outstanding",$E204:$AW204,BG$1)*5) -> 0 | BH85: 0 | BI85: 0 | BJ85: 0 | BK85: 0 | BL85: 0 | BM85: 0 | BN85: 0 | BO85: 0 | BP85: 0 | BQ85: 0 | BR85: 0 | BS85: 0 | BT85: 0 | BU85: 0
BA86: =IF(B86='Employee Review'!$C$3,1+MAX('BackEnd Data'!$BA$1:BA85),"") ->  | BB86: 0 | BC86: 0 | BD86: 0 | BE86: 0 | BF86: 0 | BG86: =(COUNTIFS($E86:$AW86,"Greatly Below Expectations",$E$116:$AW$116,BG$1)*1)+(COUNTIFS($E86:$AW86,"Below Expectations",$E$116:$AW$116,BG$1)*2)+(COUNTIFS($E86:$AW86,"Meet Expectations",$E$116:$AW$116,BG$1)*3)+(COUNTIFS($E86:$AW86,"Exceed Expectations",$E$116:$AW$116,BG$1)*4)+(COUNTIFS($E86:$AW86,"Truly Outstanding",$E205:$AW205,BG$1)*5) -> 0 | BH86: 0 | BI86: 0 | BJ86: 0 | BK86: 0 | BL86: 0 | BM86: 0 | BN86: 0 | BO86: 0 | BP86: 0 | BQ86: 0 | BR86: 0 | BS86: 0 | BT86: 0 | BU86: 0
BA87: =IF(B87='Employee Review'!$C$3,1+MAX('BackEnd Data'!$BA$1:BA86),"") ->  | BB87: 0 | BC87: 0 | BD87: 0 | BE87: 0 | BF87: 0 | BG87: =(COUNTIFS($E87:$AW87,"Greatly Below Expectations",$E$116:$AW$116,BG$1)*1)+(COUNTIFS($E87:$AW87,"Below Expectations",$E$116:$AW$116,BG$1)*2)+(COUNTIFS($E87:$AW87,"Meet Expectations",$E$116:$AW$116,BG$1)*3)+(COUNTIFS($E87:$AW87,"Exceed Expectations",$E$116:$AW$116,BG$1)*4)+(COUNTIFS($E87:$AW87,"Truly Outstanding",$E206:$AW206,BG$1)*5) -> 0 | BH87: 0 | BI87: 0 | BJ87: 0 | BK87: 0 | BL87: 0 | BM87: 0 | BN87: 0 | BO87: 0 | BP87: 0 | BQ87: 0 | BR87: 0 | BS87: 0 | BT87: 0 | BU87: 0
BA88: =IF(B88='Employee Review'!$C$3,1+MAX('BackEnd Data'!$BA$1:BA87),"") ->  | BB88: 0 | BC88: 0 | BD88: 0 | BE88: 0 | BF88: 0 | BG88: =(COUNTIFS($E88:$AW88,"Greatly Below Expectations",$E$116:$AW$116,BG$1)*1)+(COUNTIFS($E88:$AW88,"Below Expectations",$E$116:$AW$116,BG$1)*2)+(COUNTIFS($E88:$AW88,"Meet Expectations",$E$116:$AW$116,BG$1)*3)+(COUNTIFS($E88:$AW88,"Exceed Expectations",$E$116:$AW$116,BG$1)*4)+(COUNTIFS($E88:$AW88,"Truly Outstanding",$E207:$AW207,BG$1)*5) -> 0 | BH88: 0 | BI88: 0 | BJ88: 0 | BK88: 0 | BL88: 0 | BM88: 0 | BN88: 0 | BO88: 0 | BP88: 0 | BQ88: 0 | BR88: 0 | BS88: 0 | BT88: 0 | BU88: 0
BA89: =IF(B89='Employee Review'!$C$3,1+MAX('BackEnd Data'!$BA$1:BA88),"") ->  | BB89: 0 | BC89: 0 | BD89: 0 | BE89: 0 | BF89: 0 | BG89: =(COUNTIFS($E89:$AW89,"Greatly Below Expectations",$E$116:$AW$116,BG$1)*1)+(COUNTIFS($E89:$AW89,"Below Expectations",$E$116:$AW$116,BG$1)*2)+(COUNTIFS($E89:$AW89,"Meet Expectations",$E$116:$AW$116,BG$1)*3)+(COUNTIFS($E89:$AW89,"Exceed Expectations",$E$116:$AW$116,BG$1)*4)+(COUNTIFS($E89:$AW89,"Truly Outstanding",$E208:$AW208,BG$1)*5) -> 0 | BH89: 0 | BI89: 0 | BJ89: 0 | BK89: 0 | BL89: 0 | BM89: 0 | BN89: 0 | BO89: 0 | BP89: 0 | BQ89: 0 | BR89: 0 | BS89: 0 | BT89: 0 | BU89: 0
BA90: =IF(B90='Employee Review'!$C$3,1+MAX('BackEnd Data'!$BA$1:BA89),"") ->  | BB90: 0 | BC90: 0 | BD90: 0 | BE90: 0 | BF90: 0 | BG90: =(COUNTIFS($E90:$AW90,"Greatly Below Expectations",$E$116:$AW$116,BG$1)*1)+(COUNTIFS($E90:$AW90,"Below Expectations",$E$116:$AW$116,BG$1)*2)+(COUNTIFS($E90:$AW90,"Meet Expectations",$E$116:$AW$116,BG$1)*3)+(COUNTIFS($E90:$AW90,"Exceed Expectations",$E$116:$AW$116,BG$1)*4)+(COUNTIFS($E90:$AW90,"Truly Outstanding",$E209:$AW209,BG$1)*5) -> 0 | BH90: 0 | BI90: 0 | BJ90: 0 | BK90: 0 | BL90: 0 | BM90: 0 | BN90: 0 | BO90: 0 | BP90: 0 | BQ90: 0 | BR90: 0 | BS90: 0 | BT90: 0 | BU90: 0
BA91: =IF(B91='Employee Review'!$C$3,1+MAX('BackEnd Data'!$BA$1:BA90),"") ->  | BB91: 0 | BC91: 0 | BD91: 0 | BE91: 0 | BF91: 0 | BG91: =(COUNTIFS($E91:$AW91,"Greatly Below Expectations",$E$116:$AW$116,BG$1)*1)+(COUNTIFS($E91:$AW91,"Below Expectations",$E$116:$AW$116,BG$1)*2)+(COUNTIFS($E91:$AW91,"Meet Expectations",$E$116:$AW$116,BG$1)*3)+(COUNTIFS($E91:$AW91,"Exceed Expectations",$E$116:$AW$116,BG$1)*4)+(COUNTIFS($E91:$AW91,"Truly Outstanding",$E210:$AW210,BG$1)*5) -> 0 | BH91: 0 | BI91: 0 | BJ91: 0 | BK91: 0 | BL91: 0 | BM91: 0 | BN91: 0 | BO91: 0 | BP91: 0 | BQ91: 0 | BR91: 0 | BS91: 0 | BT91: 0 | BU91: 0
BA92: =IF(B92='Employee Review'!$C$3,1+MAX('BackEnd Data'!$BA$1:BA91),"") ->  | BB92: 0 | BC92: 0 | BD92: 0 | BE92: 0 | BF92: 0 | BG92: =(COUNTIFS($E92:$AW92,"Greatly Below Expectations",$E$116:$AW$116,BG$1)*1)+(COUNTIFS($E92:$AW92,"Below Expectations",$E$116:$AW$116,BG$1)*2)+(COUNTIFS($E92:$AW92,"Meet Expectations",$E$116:$AW$116,BG$1)*3)+(COUNTIFS($E92:$AW92,"Exceed Expectations",$E$116:$AW$116,BG$1)*4)+(COUNTIFS($E92:$AW92,"Truly Outstanding",$E211:$AW211,BG$1)*5) -> 0 | BH92: 0 | BI92: 0 | BJ92: 0 | BK92: 0 | BL92: 0 | BM92: 0 | BN92: 0 | BO92: 0 | BP92: 0 | BQ92: 0 | BR92: 0 | BS92: 0 | BT92: 0 | BU92: 0
BA93: =IF(B93='Employee Review'!$C$3,1+MAX('BackEnd Data'!$BA$1:BA92),"") ->  | BB93: 0 | BC93: 0 | BD93: 0 | BE93: 0 | BF93: 0 | BG93: =(COUNTIFS($E93:$AW93,"Greatly Below Expectations",$E$116:$AW$116,BG$1)*1)+(COUNTIFS($E93:$AW93,"Below Expectations",$E$116:$AW$116,BG$1)*2)+(COUNTIFS($E93:$AW93,"Meet Expectations",$E$116:$AW$116,BG$1)*3)+(COUNTIFS($E93:$AW93,"Exceed Expectations",$E$116:$AW$116,BG$1)*4)+(COUNTIFS($E93:$AW93,"Truly Outstanding",$E212:$AW212,BG$1)*5) -> 0 | BH93: 0 | BI93: 0 | BJ93: 0 | BK93: 0 | BL93: 0 | BM93: 0 | BN93: 0 | BO93: 0 | BP93: 0 | BQ93: 0 | BR93: 0 | BS93: 0 | BT93: 0 | BU93: 0
BA94: =IF(B94='Employee Review'!$C$3,1+MAX('BackEnd Data'!$BA$1:BA93),"") ->  | BB94: 0 | BC94: 0 | BD94: 0 | BE94: 0 | BF94: 0 | BG94: =(COUNTIFS($E94:$AW94,"Greatly Below Expectations",$E$116:$AW$116,BG$1)*1)+(COUNTIFS($E94:$AW94,"Below Expectations",$E$116:$AW$116,BG$1)*2)+(COUNTIFS($E94:$AW94,"Meet Expectations",$E$116:$AW$116,BG$1)*3)+(COUNTIFS($E94:$AW94,"Exceed Expectations",$E$116:$AW$116,BG$1)*4)+(COUNTIFS($E94:$AW94,"Truly Outstanding",$E213:$AW213,BG$1)*5) -> 0 | BH94: 0 | BI94: 0 | BJ94: 0 | BK94: 0 | BL94: 0 | BM94: 0 | BN94: 0 | BO94: 0 | BP94: 0 | BQ94: 0 | BR94: 0 | BS94: 0 | BT94: 0 | BU94: 0
BA95: =IF(B95='Employee Review'!$C$3,1+MAX('BackEnd Data'!$BA$1:BA94),"") ->  | BB95: 0 | BC95: 0 | BD95: 0 | BE95: 0 | BF95: 0 | BG95: =(COUNTIFS($E95:$AW95,"Greatly Below Expectations",$E$116:$AW$116,BG$1)*1)+(COUNTIFS($E95:$AW95,"Below Expectations",$E$116:$AW$116,BG$1)*2)+(COUNTIFS($E95:$AW95,"Meet Expectations",$E$116:$AW$116,BG$1)*3)+(COUNTIFS($E95:$AW95,"Exceed Expectations",$E$116:$AW$116,BG$1)*4)+(COUNTIFS($E95:$AW95,"Truly Outstanding",$E214:$AW214,BG$1)*5) -> 0 | BH95: 0 | BI95: 0 | BJ95: 0 | BK95: 0 | BL95: 0 | BM95: 0 | BN95: 0 | BO95: 0 | BP95: 0 | BQ95: 0 | BR95: 0 | BS95: 0 | BT95: 0 | BU95: 0
BA96: =IF(B96='Employee Review'!$C$3,1+MAX('BackEnd Data'!$BA$1:BA95),"") ->  | BB96: 0 | BC96: 0 | BD96: 0 | BE96: 0 | BF96: 0 | BG96: =(COUNTIFS($E96:$AW96,"Greatly Below Expectations",$E$116:$AW$116,BG$1)*1)+(COUNTIFS($E96:$AW96,"Below Expectations",$E$116:$AW$116,BG$1)*2)+(COUNTIFS($E96:$AW96,"Meet Expectations",$E$116:$AW$116,BG$1)*3)+(COUNTIFS($E96:$AW96,"Exceed Expectations",$E$116:$AW$116,BG$1)*4)+(COUNTIFS($E96:$AW96,"Truly Outstanding",$E215:$AW215,BG$1)*5) -> 0 | BH96: 0 | BI96: 0 | BJ96: 0 | BK96: 0 | BL96: 0 | BM96: 0 | BN96: 0 | BO96: 0 | BP96: 0 | BQ96: 0 | BR96: 0 | BS96: 0 | BT96: 0 | BU96: 0
BA97: =IF(B97='Employee Review'!$C$3,1+MAX('BackEnd Data'!$BA$1:BA96),"") ->  | BB97: 0 | BC97: 0 | BD97: 0 | BE97: 0 | BF97: 0 | BG97: =(COUNTIFS($E97:$AW97,"Greatly Below Expectations",$E$116:$AW$116,BG$1)*1)+(COUNTIFS($E97:$AW97,"Below Expectations",$E$116:$AW$116,BG$1)*2)+(COUNTIFS($E97:$AW97,"Meet Expectations",$E$116:$AW$116,BG$1)*3)+(COUNTIFS($E97:$AW97,"Exceed Expectations",$E$116:$AW$116,BG$1)*4)+(COUNTIFS($E97:$AW97,"Truly Outstanding",$E216:$AW216,BG$1)*5) -> 0 | BH97: 0 | BI97: 0 | BJ97: 0 | BK97: 0 | BL97: 0 | BM97: 0 | BN97: 0 | BO97: 0 | BP97: 0 | BQ97: 0 | BR97: 0 | BS97: 0 | BT97: 0 | BU97: 0
BA98: =IF(B98='Employee Review'!$C$3,1+MAX('BackEnd Data'!$BA$1:BA97),"") ->  | BB98: 0 | BC98: 0 | BD98: 0 | BE98: 0 | BF98: 0 | BG98: =(COUNTIFS($E98:$AW98,"Greatly Below Expectations",$E$116:$AW$116,BG$1)*1)+(COUNTIFS($E98:$AW98,"Below Expectations",$E$116:$AW$116,BG$1)*2)+(COUNTIFS($E98:$AW98,"Meet Expectations",$E$116:$AW$116,BG$1)*3)+(COUNTIFS($E98:$AW98,"Exceed Expectations",$E$116:$AW$116,BG$1)*4)+(COUNTIFS($E98:$AW98,"Truly Outstanding",$E217:$AW217,BG$1)*5) -> 0 | BH98: 0 | BI98: 0 | BJ98: 0 | BK98: 0 | BL98: 0 | BM98: 0 | BN98: 0 | BO98: 0 | BP98: 0 | BQ98: 0 | BR98: 0 | BS98: 0 | BT98: 0 | BU98: 0
BA99: =IF(B99='Employee Review'!$C$3,1+MAX('BackEnd Data'!$BA$1:BA98),"") ->  | BB99: 0 | BC99: 0 | BD99: 0 | BE99: 0 | BF99: 0 | BG99: =(COUNTIFS($E99:$AW99,"Greatly Below Expectations",$E$116:$AW$116,BG$1)*1)+(COUNTIFS($E99:$AW99,"Below Expectations",$E$116:$AW$116,BG$1)*2)+(COUNTIFS($E99:$AW99,"Meet Expectations",$E$116:$AW$116,BG$1)*3)+(COUNTIFS($E99:$AW99,"Exceed Expectations",$E$116:$AW$116,BG$1)*4)+(COUNTIFS($E99:$AW99,"Truly Outstanding",$E218:$AW218,BG$1)*5) -> 0 | BH99: 0 | BI99: 0 | BJ99: 0 | BK99: 0 | BL99: 0 | BM99: 0 | BN99: 0 | BO99: 0 | BP99: 0 | BQ99: 0 | BR99: 0 | BS99: 0 | BT99: 0 | BU99: 0
BA100: =IF(B100='Employee Review'!$C$3,1+MAX('BackEnd Data'!$BA$1:BA99),"") ->  | BB100: 0 | BC100: 0 | BD100: 0 | BE100: 0 | BF100: 0 | BG100: =(COUNTIFS($E100:$AW100,"Greatly Below Expectations",$E$116:$AW$116,BG$1)*1)+(COUNTIFS($E100:$AW100,"Below Expectations",$E$116:$AW$116,BG$1)*2)+(COUNTIFS($E100:$AW100,"Meet Expectations",$E$116:$AW$116,BG$1)*3)+(COUNTIFS($E100:$AW100,"Exceed Expectations",$E$116:$AW$116,BG$1)*4)+(COUNTIFS($E100:$AW100,"Truly Outstanding",$E219:$AW219,BG$1)*5) -> 0 | BH100: 0 | BI100: 0 | BJ100: 0 | BK100: 0 | BL100: 0 | BM100: 0 | BN100: 0 | BO100: 0 | BP100: 0 | BQ100: 0 | BR100: 0 | BS100: 0 | BT100: 0 | BU100: 0
BA101: =IF(B101='Employee Review'!$C$3,1+MAX('BackEnd Data'!$BA$1:BA100),"") ->  | BB101: 0 | BC101: 0 | BD101: 0 | BE101: 0 | BF101: 0 | BG101: =(COUNTIFS($E101:$AW101,"Greatly Below Expectations",$E$116:$AW$116,BG$1)*1)+(COUNTIFS($E101:$AW101,"Below Expectations",$E$116:$AW$116,BG$1)*2)+(COUNTIFS($E101:$AW101,"Meet Expectations",$E$116:$AW$116,BG$1)*3)+(COUNTIFS($E101:$AW101,"Exceed Expectations",$E$116:$AW$116,BG$1)*4)+(COUNTIFS($E101:$AW101,"Truly Outstanding",$E220:$AW220,BG$1)*5) -> 0 | BH101: 0 | BI101: 0 | BJ101: 0 | BK101: 0 | BL101: 0 | BM101: 0 | BN101: 0 | BO101: 0 | BP101: 0 | BQ101: 0 | BR101: 0 | BS101: 0 | BT101: 0 | BU101: 0
BA102: =IF(B102='Employee Review'!$C$3,1+MAX('BackEnd Data'!$BA$1:BA101),"") ->  | BB102: 0 | BC102: 0 | BD102: 0 | BE102: 0 | BF102: 0 | BG102: =(COUNTIFS($E102:$AW102,"Greatly Below Expectations",$E$116:$AW$116,BG$1)*1)+(COUNTIFS($E102:$AW102,"Below Expectations",$E$116:$AW$116,BG$1)*2)+(COUNTIFS($E102:$AW102,"Meet Expectations",$E$116:$AW$116,BG$1)*3)+(COUNTIFS($E102:$AW102,"Exceed Expectations",$E$116:$AW$116,BG$1)*4)+(COUNTIFS($E102:$AW102,"Truly Outstanding",$E221:$AW221,BG$1)*5) -> 0 | BH102: 0 | BI102: 0 | BJ102: 0 | BK102: 0 | BL102: 0 | BM102: 0 | BN102: 0 | BO102: 0 | BP102: 0 | BQ102: 0 | BR102: 0 | BS102: 0 | BT102: 0 | BU102: 0
BA103: =IF(B103='Employee Review'!$C$3,1+MAX('BackEnd Data'!$BA$1:BA102),"") ->  | BB103: 0 | BC103: 0 | BD103: 0 | BE103: 0 | BF103: 0 | BG103: =(COUNTIFS($E103:$AW103,"Greatly Below Expectations",$E$116:$AW$116,BG$1)*1)+(COUNTIFS($E103:$AW103,"Below Expectations",$E$116:$AW$116,BG$1)*2)+(COUNTIFS($E103:$AW103,"Meet Expectations",$E$116:$AW$116,BG$1)*3)+(COUNTIFS($E103:$AW103,"Exceed Expectations",$E$116:$AW$116,BG$1)*4)+(COUNTIFS($E103:$AW103,"Truly Outstanding",$E222:$AW222,BG$1)*5) -> 0 | BH103: 0 | BI103: 0 | BJ103: 0 | BK103: 0 | BL103: 0 | BM103: 0 | BN103: 0 | BO103: 0 | BP103: 0 | BQ103: 0 | BR103: 0 | BS103: 0 | BT103: 0 | BU103: 0
BA104: =IF(B104='Employee Review'!$C$3,1+MAX('BackEnd Data'!$BA$1:BA103),"") ->  | BB104: 0 | BC104: 0 | BD104: 0 | BE104: 0 | BF104: 0 | BG104: =(COUNTIFS($E104:$AW104,"Greatly Below Expectations",$E$116:$AW$116,BG$1)*1)+(COUNTIFS($E104:$AW104,"Below Expectations",$E$116:$AW$116,BG$1)*2)+(COUNTIFS($E104:$AW104,"Meet Expectations",$E$116:$AW$116,BG$1)*3)+(COUNTIFS($E104:$AW104,"Exceed Expectations",$E$116:$AW$116,BG$1)*4)+(COUNTIFS($E104:$AW104,"Truly Outstanding",$E223:$AW223,BG$1)*5) -> 0 | BH104: 0 | BI104: 0 | BJ104: 0 | BK104: 0 | BL104: 0 | BM104: 0 | BN104: 0 | BO104: 0 | BP104: 0 | BQ104: 0 | BR104: 0 | BS104: 0 | BT104: 0 | BU104: 0
BA105: =IF(B105='Employee Review'!$C$3,1+MAX('BackEnd Data'!$BA$1:BA104),"") ->  | BB105: 0 | BC105: 0 | BD105: 0 | BE105: 0 | BF105: 0 | BG105: =(COUNTIFS($E105:$AW105,"Greatly Below Expectations",$E$116:$AW$116,BG$1)*1)+(COUNTIFS($E105:$AW105,"Below Expectations",$E$116:$AW$116,BG$1)*2)+(COUNTIFS($E105:$AW105,"Meet Expectations",$E$116:$AW$116,BG$1)*3)+(COUNTIFS($E105:$AW105,"Exceed Expectations",$E$116:$AW$116,BG$1)*4)+(COUNTIFS($E105:$AW105,"Truly Outstanding",$E224:$AW224,BG$1)*5) -> 0 | BH105: 0 | BI105: 0 | BJ105: 0 | BK105: 0 | BL105: 0 | BM105: 0 | BN105: 0 | BO105: 0 | BP105: 0 | BQ105: 0 | BR105: 0 | BS105: 0 | BT105: 0 | BU105: 0
BA106: =IF(B106='Employee Review'!$C$3,1+MAX('BackEnd Data'!$BA$1:BA105),"") ->  | BB106: 0 | BC106: 0 | BD106: 0 | BE106: 0 | BF106: 0 | BG106: =(COUNTIFS($E106:$AW106,"Greatly Below Expectations",$E$116:$AW$116,BG$1)*1)+(COUNTIFS($E106:$AW106,"Below Expectations",$E$116:$AW$116,BG$1)*2)+(COUNTIFS($E106:$AW106,"Meet Expectations",$E$116:$AW$116,BG$1)*3)+(COUNTIFS($E106:$AW106,"Exceed Expectations",$E$116:$AW$116,BG$1)*4)+(COUNTIFS($E106:$AW106,"Truly Outstanding",$E225:$AW225,BG$1)*5) -> 0 | BH106: 0 | BI106: 0 | BJ106: 0 | BK106: 0 | BL106: 0 | BM106: 0 | BN106: 0 | BO106: 0 | BP106: 0 | BQ106: 0 | BR106: 0 | BS106: 0 | BT106: 0 | BU106: 0
BA107: =IF(B107='Employee Review'!$C$3,1+MAX('BackEnd Data'!$BA$1:BA106),"") ->  | BB107: 0 | BC107: 0 | BD107: 0 | BE107: 0 | BF107: 0 | BG107: =(COUNTIFS($E107:$AW107,"Greatly Below Expectations",$E$116:$AW$116,BG$1)*1)+(COUNTIFS($E107:$AW107,"Below Expectations",$E$116:$AW$116,BG$1)*2)+(COUNTIFS($E107:$AW107,"Meet Expectations",$E$116:$AW$116,BG$1)*3)+(COUNTIFS($E107:$AW107,"Exceed Expectations",$E$116:$AW$116,BG$1)*4)+(COUNTIFS($E107:$AW107,"Truly Outstanding",$E226:$AW226,BG$1)*5) -> 0 | BH107: 0 | BI107: 0 | BJ107: 0 | BK107: 0 | BL107: 0 | BM107: 0 | BN107: 0 | BO107: 0 | BP107: 0 | BQ107: 0 | BR107: 0 | BS107: 0 | BT107: 0 | BU107: 0
BA108: =IF(B108='Employee Review'!$C$3,1+MAX('BackEnd Data'!$BA$1:BA107),"") ->  | BB108: 0 | BC108: 0 | BD108: 0 | BE108: 0 | BF108: 0 | BG108: =(COUNTIFS($E108:$AW108,"Greatly Below Expectations",$E$116:$AW$116,BG$1)*1)+(COUNTIFS($E108:$AW108,"Below Expectations",$E$116:$AW$116,BG$1)*2)+(COUNTIFS($E108:$AW108,"Meet Expectations",$E$116:$AW$116,BG$1)*3)+(COUNTIFS($E108:$AW108,"Exceed Expectations",$E$116:$AW$116,BG$1)*4)+(COUNTIFS($E108:$AW108,"Truly Outstanding",$E227:$AW227,BG$1)*5) -> 0 | BH108: 0 | BI108: 0 | BJ108: 0 | BK108: 0 | BL108: 0 | BM108: 0 | BN108: 0 | BO108: 0 | BP108: 0 | BQ108: 0 | BR108: 0 | BS108: 0 | BT108: 0 | BU108: 0
BA109: =IF(B109='Employee Review'!$C$3,1+MAX('BackEnd Data'!$BA$1:BA108),"") ->  | BB109: 0 | BC109: 0 | BD109: 0 | BE109: 0 | BF109: 0 | BG109: =(COUNTIFS($E109:$AW109,"Greatly Below Expectations",$E$116:$AW$116,BG$1)*1)+(COUNTIFS($E109:$AW109,"Below Expectations",$E$116:$AW$116,BG$1)*2)+(COUNTIFS($E109:$AW109,"Meet Expectations",$E$116:$AW$116,BG$1)*3)+(COUNTIFS($E109:$AW109,"Exceed Expectations",$E$116:$AW$116,BG$1)*4)+(COUNTIFS($E109:$AW109,"Truly Outstanding",$E228:$AW228,BG$1)*5) -> 0 | BH109: 0 | BI109: 0 | BJ109: 0 | BK109: 0 | BL109: 0 | BM109: 0 | BN109: 0 | BO109: 0 | BP109: 0 | BQ109: 0 | BR109: 0 | BS109: 0 | BT109: 0 | BU109: 0
BA110: =IF(B110='Employee Review'!$C$3,1+MAX('BackEnd Data'!$BA$1:BA109),"") ->  | BB110: 0 | BC110: 0 | BD110: 0 | BE110: 0 | BF110: 0 | BG110: =(COUNTIFS($E110:$AW110,"Greatly Below Expectations",$E$116:$AW$116,BG$1)*1)+(COUNTIFS($E110:$AW110,"Below Expectations",$E$116:$AW$116,BG$1)*2)+(COUNTIFS($E110:$AW110,"Meet Expectations",$E$116:$AW$116,BG$1)*3)+(COUNTIFS($E110:$AW110,"Exceed Expectations",$E$116:$AW$116,BG$1)*4)+(COUNTIFS($E110:$AW110,"Truly Outstanding",$E229:$AW229,BG$1)*5) -> 0 | BH110: 0 | BI110: 0 | BJ110: 0 | BK110: 0 | BL110: 0 | BM110: 0 | BN110: 0 | BO110: 0 | BP110: 0 | BQ110: 0 | BR110: 0 | BS110: 0 | BT110: 0 | BU110: 0
BA111: =IF(B111='Employee Review'!$C$3,1+MAX('BackEnd Data'!$BA$1:BA110),"") ->  | BB111: 0 | BC111: 0 | BD111: 0 | BE111: 0 | BF111: 0 | BG111: =(COUNTIFS($E111:$AW111,"Greatly Below Expectations",$E$116:$AW$116,BG$1)*1)+(COUNTIFS($E111:$AW111,"Below Expectations",$E$116:$AW$116,BG$1)*2)+(COUNTIFS($E111:$AW111,"Meet Expectations",$E$116:$AW$116,BG$1)*3)+(COUNTIFS($E111:$AW111,"Exceed Expectations",$E$116:$AW$116,BG$1)*4)+(COUNTIFS($E111:$AW111,"Truly Outstanding",$E230:$AW230,BG$1)*5) -> 0 | BH111: 0 | BI111: 0 | BJ111: 0 | BK111: 0 | BL111: 0 | BM111: 0 | BN111: 0 | BO111: 0 | BP111: 0 | BQ111: 0 | BR111: 0 | BS111: 0 | BT111: 0 | BU111: 0
BA112: =IF(B112='Employee Review'!$C$3,1+MAX('BackEnd Data'!$BA$1:BA111),"") ->  | BB112: 0 | BC112: 0 | BD112: 0 | BE112: 0 | BF112: 0 | BG112: =(COUNTIFS($E112:$AW112,"Greatly Below Expectations",$E$116:$AW$116,BG$1)*1)+(COUNTIFS($E112:$AW112,"Below Expectations",$E$116:$AW$116,BG$1)*2)+(COUNTIFS($E112:$AW112,"Meet Expectations",$E$116:$AW$116,BG$1)*3)+(COUNTIFS($E112:$AW112,"Exceed Expectations",$E$116:$AW$116,BG$1)*4)+(COUNTIFS($E112:$AW112,"Truly Outstanding",$E231:$AW231,BG$1)*5) -> 0 | BH112: 0 | BI112: 0 | BJ112: 0 | BK112: 0 | BL112: 0 | BM112: 0 | BN112: 0 | BO112: 0 | BP112: 0 | BQ112: 0 | BR112: 0 | BS112: 0 | BT112: 0 | BU112: 0
BA113: =IF(B113='Employee Review'!$C$3,1+MAX('BackEnd Data'!$BA$1:BA112),"") ->  | BB113: 0 | BC113: 0 | BD113: 0 | BE113: 0 | BF113: 0 | BG113: =(COUNTIFS($E113:$AW113,"Greatly Below Expectations",$E$116:$AW$116,BG$1)*1)+(COUNTIFS($E113:$AW113,"Below Expectations",$E$116:$AW$116,BG$1)*2)+(COUNTIFS($E113:$AW113,"Meet Expectations",$E$116:$AW$116,BG$1)*3)+(COUNTIFS($E113:$AW113,"Exceed Expectations",$E$116:$AW$116,BG$1)*4)+(COUNTIFS($E113:$AW113,"Truly Outstanding",$E232:$AW232,BG$1)*5) -> 0 | BH113: 0 | BI113: 0 | BJ113: 0 | BK113: 0 | BL113: 0 | BM113: 0 | BN113: 0 | BO113: 0 | BP113: 0 | BQ113: 0 | BR113: 0 | BS113: 0 | BT113: 0 | BU113: 0
BA114: =IF(B114='Employee Review'!$C$3,1+MAX('BackEnd Data'!$BA$1:BA113),"") ->  | BB114: 0 | BC114: 0 | BD114: 0 | BE114: 0 | BF114: 0 | BG114: =(COUNTIFS($E114:$AW114,"Greatly Below Expectations",$E$116:$AW$116,BG$1)*1)+(COUNTIFS($E114:$AW114,"Below Expectations",$E$116:$AW$116,BG$1)*2)+(COUNTIFS($E114:$AW114,"Meet Expectations",$E$116:$AW$116,BG$1)*3)+(COUNTIFS($E114:$AW114,"Exceed Expectations",$E$116:$AW$116,BG$1)*4)+(COUNTIFS($E114:$AW114,"Truly Outstanding",$E233:$AW233,BG$1)*5) -> 0 | BH114: 0 | BI114: 0 | BJ114: 0 | BK114: 0 | BL114: 0 | BM114: 0 | BN114: 0 | BO114: 0 | BP114: 0 | BQ114: 0 | BR114: 0 | BS114: 0 | BT114: 0 | BU114: 0
BA115: =IF(B115='Employee Review'!$C$3,1+MAX('BackEnd Data'!$BA$1:BA114),"") ->  | BB115: =COUNTIF($E115:$AW115,BB$1) -> 0 | BC115: 0 | BD115: 0 | BE115: 0 | BF115: 0 | BG115: =(COUNTIFS($E115:$AW115,"Greatly Below Expectations",$E$116:$AW$116,BG$1)*1)+(COUNTIFS($E115:$AW115,"Below Expectations",$E$116:$AW$116,BG$1)*2)+(COUNTIFS($E115:$AW115,"Meet Expectations",$E$116:$AW$116,BG$1)*3)+(COUNTIFS($E115:$AW115,"Exceed Expectations",$E$116:$AW$116,BG$1)*4)+(COUNTIFS($E115:$AW115,"Truly Outstanding",$E234:$AW234,BG$1)*5) -> 0 | BH115: 0 | BI115: 0 | BJ115: 0 | BK115: 0 | BL115: 0 | BM115: 0 | BN115: 0 | BO115: 0 | BP115: 0 | BQ115: 0 | BR115: 0 | BS115: 0 | BT115: 0 | BU115: 0
E116: =VLOOKUP('BackEnd Data'!E$1,'Set Up'!$B$25:$E$69,4,0) -> Produktivität | F116: =VLOOKUP('BackEnd Data'!F$1,'Set Up'!$B$25:$E$69,4,0) -> Produktivität | G116: =VLOOKUP('BackEnd Data'!G$1,'Set Up'!$B$25:$E$69,4,0) -> Produktivität | H116: =VLOOKUP('BackEnd Data'!H$1,'Set Up'!$B$25:$E$69,4,0) -> Effizienz | I116: =VLOOKUP('BackEnd Data'!I$1,'Set Up'!$B$25:$E$69,4,0) -> Effizienz | J116: =VLOOKUP('BackEnd Data'!J$1,'Set Up'!$B$25:$E$69,4,0) -> Effizienz | K116: =VLOOKUP('BackEnd Data'!K$1,'Set Up'!$B$25:$E$69,4,0) -> Organisationstalent | L116: =VLOOKUP('BackEnd Data'!L$1,'Set Up'!$B$25:$E$69,4,0) -> Organisationstalent | M116: =VLOOKUP('BackEnd Data'!M$1,'Set Up'!$B$25:$E$69,4,0) -> Organisationsfähigkeiten | N116: =VLOOKUP('BackEnd Data'!N$1,'Set Up'!$B$25:$E$69,4,0) -> Lernen und Entwicklung | O116: =VLOOKUP('BackEnd Data'!O$1,'Set Up'!$B$25:$E$69,4,0) -> Lernen und Entwicklung | P116: =VLOOKUP('BackEnd Data'!P$1,'Set Up'!$B$25:$E$69,4,0) -> Lernen und Entwicklung | Q116: =VLOOKUP('BackEnd Data'!Q$1,'Set Up'!$B$25:$E$69,4,0) -> Kommunikation | R116: =VLOOKUP('BackEnd Data'!R$1,'Set Up'!$B$25:$E$69,4,0) -> Kommunikation | S116: =VLOOKUP('BackEnd Data'!S$1,'Set Up'!$B$25:$E$69,4,0) -> Kommunikation | T116: =VLOOKUP('BackEnd Data'!T$1,'Set Up'!$B$25:$E$69,4,0) -> Interne Beziehungen | U116: =VLOOKUP('BackEnd Data'!U$1,'Set Up'!$B$25:$E$69,4,0) -> Interne Beziehungen | V116: =VLOOKUP('BackEnd Data'!V$1,'Set Up'!$B$25:$E$69,4,0) -> Interne Beziehungen | W116: =VLOOKUP('BackEnd Data'!W$1,'Set Up'!$B$25:$E$69,4,0) -> Anwesenheit | X116: =VLOOKUP('BackEnd Data'!X$1,'Set Up'!$B$25:$E$69,4,0) -> Anwesenheit | Y116: =VLOOKUP('BackEnd Data'!Y$1,'Set Up'!$B$25:$E$69,4,0) -> 0 | Z116: =VLOOKUP('BackEnd Data'!Z$1,'Set Up'!$B$25:$E$69,4,0) -> 0 | AA116: =VLOOKUP('BackEnd Data'!AA$1,'Set Up'!$B$25:$E$69,4,0) -> 0 | AB116: =VLOOKUP('BackEnd Data'!AB$1,'Set Up'!$B$25:$E$69,4,0) -> 0 | AC116: =VLOOKUP('BackEnd Data'!AC$1,'Set Up'!$B$25:$E$69,4,0) -> 0 | AD116: =VLOOKUP('BackEnd Data'!AD$1,'Set Up'!$B$25:$E$69,4,0) -> 0 | AE116: =VLOOKUP('BackEnd Data'!AE$1,'Set Up'!$B$25:$E$69,4,0) -> 0 | AF116: =VLOOKUP('BackEnd Data'!AF$1,'Set Up'!$B$25:$E$69,4,0) -> 0 | AG116: =VLOOKUP('BackEnd Data'!AG$1,'Set Up'!$B$25:$E$69,4,0) -> 0 | AH116: =VLOOKUP('BackEnd Data'!AH$1,'Set Up'!$B$25:$E$69,4,0) -> 0 | AI116: =VLOOKUP('BackEnd Data'!AI$1,'Set Up'!$B$25:$E$69,4,0) -> 0 | AJ116: =VLOOKUP('BackEnd Data'!AJ$1,'Set Up'!$B$25:$E$69,4,0) -> 0 | AK116: =VLOOKUP('BackEnd Data'!AK$1,'Set Up'!$B$25:$E$69,4,0) -> 0 | AL116: =VLOOKUP('BackEnd Data'!AL$1,'Set Up'!$B$25:$E$69,4,0) -> 0 | AM116: =VLOOKUP('BackEnd Data'!AM$1,'Set Up'!$B$25:$E$69,4,0) -> 0 | AN116: =VLOOKUP('BackEnd Data'!AN$1,'Set Up'!$B$25:$E$69,4,0) -> 0 | AO116: =VLOOKUP('BackEnd Data'!AO$1,'Set Up'!$B$25:$E$69,4,0) -> 0 | AP116: =VLOOKUP('BackEnd Data'!AP$1,'Set Up'!$B$25:$E$69,4,0) -> 0 | AQ116: =VLOOKUP('BackEnd Data'!AQ$1,'Set Up'!$B$25:$E$69,4,0) -> 0 | AR116: =VLOOKUP('BackEnd Data'!AR$1,'Set Up'!$B$25:$E$69,4,0) -> 0 | AS116: =VLOOKUP('BackEnd Data'!AS$1,'Set Up'!$B$25:$E$69,4,0) -> 0 | AT116: =VLOOKUP('BackEnd Data'!AT$1,'Set Up'!$B$25:$E$69,4,0) -> 0 | AU116: =VLOOKUP('BackEnd Data'!AU$1,'Set Up'!$B$25:$E$69,4,0) -> 0 | AV116: =VLOOKUP('BackEnd Data'!AV$1,'Set Up'!$B$25:$E$69,4,0) -> 0 | AW116: =VLOOKUP('BackEnd Data'!AW$1,'Set Up'!$B$25:$E$69,4,0) -> 0

Sheet Employee Database
C3: # | D3: Name | E3: Stelle | F3: Manager | G3: Abteilung | H3: Eintrittsdatum | I3: Anzahl der Überprüfungen | J3: Bewertung
C4: 1 | D4: Carlos Gonzalez | E4: Praktikant | F4: Bobby Cox | G4: Planung | H4: 2017-03-14 | I4: =IF(D4<>"",COUNTIF('[1]BackEnd Data'!$B$2:$B$118,C4),"") -> 2 | J4: Gehe zu Mitarbeiterbewertung | K4: =IFERROR(AVERAGEIF('[1]BackEnd Data'!$B$2:$B$115,[1]Mitarbeiterdatenbank!$C4,'[1]BackEnd Data'!$AX$2:$AX$115),"") -> 83
C5: 2 | D5: Jose Altuve | E5: Haushaltsanalyst | F5: Bobby Cox | G5: Planung | H5: 2016-02-02 | I5: =IF(D5<>"",COUNTIF('[1]BackEnd Data'!$B$2:$B$118,C5),"") -> 2 | J5: Gehe zu Mitarbeiterbewertung | K5: =IFERROR(AVERAGEIF('[1]BackEnd Data'!$B$2:$B$115,[1]Mitarbeiterdatenbank!$C5,'[1]BackEnd Data'!$AX$2:$AX$115),"") -> 65.5
C6: 3 | D6: Todd Helton | E6: Planungsanalyst | F6: Jim Leyland | G6: HR | H6: 2018-09-05 | I6: =IF(D6<>"",COUNTIF('[1]BackEnd Data'!$B$2:$B$118,C6),"") -> 3 | J6: Gehe zu Mitarbeiterbewertung | K6: =IFERROR(AVERAGEIF('[1]BackEnd Data'!$B$2:$B$115,[1]Mitarbeiterdatenbank!$C6,'[1]BackEnd Data'!$AX$2:$AX$115),"") -> 70.33333333 | M6: Fandest du diese Excel-Vorlage nützlich, um Leistungsbeurteilungen durchzuführen? Möchtest du vollen Zugriff auf ein digitales Tool haben, mit dem du in deinem Unternehmen bessere Leistungsbewertungen durchführen kannst? Teste unsere kostenlose Testversion
C7: 4 | D7: Clayton Kershaw | E7: Schatzanalyst | F7: Jim Leyland | G7: HR | H7: 2018-07-01 | I7: =IF(D7<>"",COUNTIF('[1]BackEnd Data'!$B$2:$B$118,C7),"") -> 2 | J7: Gehe zu Mitarbeiterbewertung | K7: =IFERROR(AVERAGEIF('[1]BackEnd Data'!$B$2:$B$115,[1]Mitarbeiterdatenbank!$C7,'[1]BackEnd Data'!$AX$2:$AX$115),"") -> 45
C8: 5 | D8: Max Scherzer | E8: Praktikant | F8: Jim Leyland | G8: HR | H8: 2017-11-25 | I8: =IF(D8<>"",COUNTIF('[1]BackEnd Data'!$B$2:$B$118,C8),"") -> 2 | J8: Gehe zu Mitarbeiterbewertung | K8: =IFERROR(AVERAGEIF('[1]BackEnd Data'!$B$2:$B$115,[1]Mitarbeiterdatenbank!$C8,'[1]BackEnd Data'!$AX$2:$AX$115),"") -> 49
C9: 6 | I9: =IF(D9<>"",COUNTIF('[1]BackEnd Data'!$B$2:$B$118,C9),"") ->  | J9: =IF(D9<>"","Go to Employee Review","") ->  | K9: =IFERROR(AVERAGEIF('[1]BackEnd Data'!$B$2:$B$115,[1]Mitarbeiterdatenbank!$C9,'[1]BackEnd Data'!$AX$2:$AX$115),"") -> 
C10: 7 | I10: =IF(D10<>"",COUNTIF('[1]BackEnd Data'!$B$2:$B$118,C10),"") ->  | K10: =IFERROR(AVERAGEIF('[1]BackEnd Data'!$B$2:$B$115,[1]Mitarbeiterdatenbank!$C10,'[1]BackEnd Data'!$AX$2:$AX$115),"") -> 
C11: 8 | D11: Steffan Zickler | E11: Techniker | F11: Charles Kabore | G11: Betrieb | H11: 2016-01-15 | I11: =IF(D11<>"",COUNTIF('[1]BackEnd Data'!$B$2:$B$118,C11),"") -> 2 | J11: Gehe zu Mitarbeiterbewertung | K11: =IFERROR(AVERAGEIF('[1]BackEnd Data'!$B$2:$B$115,[1]Mitarbeiterdatenbank!$C11,'[1]BackEnd Data'!$AX$2:$AX$115),"") -> 60
C12: 9 | D12: Jeff Kent | E12: Techniker | F12: Charles Kabore | G12: Betrieb | H12: 2017-12-01 | I12: =IF(D12<>"",COUNTIF('[1]BackEnd Data'!$B$2:$B$118,C12),"") -> 2 | J12: Gehe zu Mitarbeiterbewertung | K12: =IFERROR(AVERAGEIF('[1]BackEnd Data'!$B$2:$B$115,[1]Mitarbeiterdatenbank!$C12,'[1]BackEnd Data'!$AX$2:$AX$115),"") -> 57.5
C13: 10 | D13: Charles Kabore | E13: Betriebsleiter | F13: Tony LR | G13: Exekutivdirektion | H13: 2016-01-02 | I13: =IF(D13<>"",COUNTIF('[1]BackEnd Data'!$B$2:$B$118,C13),"") -> 2 | J13: Gehe zu Mitarbeiterbewertung | K13: =IFERROR(AVERAGEIF('[1]BackEnd Data'!$B$2:$B$115,[1]Mitarbeiterdatenbank!$C13,'[1]BackEnd Data'!$AX$2:$AX$115),"") -> 72
C14: 11 | D14: Bobby Cox | E14: Planungsleiter | F14: Tony LR | G14: Exekutivdirektion | H14: 2015-06-01 | I14: =IF(D14<>"",COUNTIF('[1]BackEnd Data'!$B$2:$B$118,C14),"") -> 2 | J14: Gehe zu Mitarbeiterbewertung | K14: =IFERROR(AVERAGEIF('[1]BackEnd Data'!$B$2:$B$115,[1]Mitarbeiterdatenbank!$C14,'[1]BackEnd Data'!$AX$2:$AX$115),"") -> 92.5
C15: 12 | D15: Gary Sanchez | E15: Praktikant | F15: Bobby Cox | G15: Planung | H15: 2019-01-01 | I15: =IF(D15<>"",COUNTIF('[1]BackEnd Data'!$B$2:$B$118,C15),"") -> 0 | J15: Gehe zu Mitarbeiterbewertung | K15: =IFERROR(AVERAGEIF('[1]BackEnd Data'!$B$2:$B$115,[1]Mitarbeiterdatenbank!$C15,'[1]BackEnd Data'!$AX$2:$AX$115),"") ->  | M15: Wenn du mehr über Kenjo, die All-in-One-Personalverwaltungssoftware, erfahren möchtest
I16: =IF(D16<>"",COUNTIF('[1]BackEnd Data'!$B$2:$B$118,C16),"") ->  | K16: =IFERROR(AVERAGEIF('[1]BackEnd Data'!$B$2:$B$115,[1]Mitarbeiterdatenbank!$C16,'[1]BackEnd Data'!$AX$2:$AX$115),"") -> 
I17: =IF(D17<>"",COUNTIF('[1]BackEnd Data'!$B$2:$B$118,C17),"") ->  | K17: =IFERROR(AVERAGEIF('[1]BackEnd Data'!$B$2:$B$115,[1]Mitarbeiterdatenbank!$C17,'[1]BackEnd Data'!$AX$2:$AX$115),"") -> 
I18: =IF(D18<>"",COUNTIF('[1]BackEnd Data'!$B$2:$B$118,C18),"") ->  | K18: =IFERROR(AVERAGEIF('[1]BackEnd Data'!$B$2:$B$115,[1]Mitarbeiterdatenbank!$C18,'[1]BackEnd Data'!$AX$2:$AX$115),"") -> 
I19: =IF(D19<>"",COUNTIF('[1]BackEnd Data'!$B$2:$B$118,C19),"") ->  | K19: =IFERROR(AVERAGEIF('[1]BackEnd Data'!$B$2:$B$115,[1]Mitarbeiterdatenbank!$C19,'[1]BackEnd Data'!$AX$2:$AX$115),"") -> 
I20: =IF(D20<>"",COUNTIF('[1]BackEnd Data'!$B$2:$B$118,C20),"") ->  | K20: =IFERROR(AVERAGEIF('[1]BackEnd Data'!$B$2:$B$115,[1]Mitarbeiterdatenbank!$C20,'[1]BackEnd Data'!$AX$2:$AX$115),"") -> 
I21: =IF(D21<>"",COUNTIF('[1]BackEnd Data'!$B$2:$B$118,C21),"") ->  | K21: =IFERROR(AVERAGEIF('[1]BackEnd Data'!$B$2:$B$115,[1]Mitarbeiterdatenbank!$C21,'[1]BackEnd Data'!$AX$2:$AX$115),"") -> 
I22: =IF(D22<>"",COUNTIF('[1]BackEnd Data'!$B$2:$B$118,C22),"") ->  | K22: =IFERROR(AVERAGEIF('[1]BackEnd Data'!$B$2:$B$115,[1]Mitarbeiterdatenbank!$C22,'[1]BackEnd Data'!$AX$2:$AX$115),"") -> 
I23: =IF(D23<>"",COUNTIF('[1]BackEnd Data'!$B$2:$B$118,C23),"") ->  | K23: =IFERROR(AVERAGEIF('[1]BackEnd Data'!$B$2:$B$115,[1]Mitarbeiterdatenbank!$C23,'[1]BackEnd Data'!$AX$2:$AX$115),"") -> 
I24: =IF(D24<>"",COUNTIF('[1]BackEnd Data'!$B$2:$B$118,C24),"") ->  | K24: =IFERROR(AVERAGEIF('[1]BackEnd Data'!$B$2:$B$115,[1]Mitarbeiterdatenbank!$C24,'[1]BackEnd Data'!$AX$2:$AX$115),"") -> 
I25: =IF(D25<>"",COUNTIF('[1]BackEnd Data'!$B$2:$B$118,C25),"") ->  | K25: =IFERROR(AVERAGEIF('[1]BackEnd Data'!$B$2:$B$115,[1]Mitarbeiterdatenbank!$C25,'[1]BackEnd Data'!$AX$2:$AX$115),"") -> 
I26: =IF(D26<>"",COUNTIF('[1]BackEnd Data'!$B$2:$B$118,C26),"") ->  | K26: =IFERROR(AVERAGEIF('[1]BackEnd Data'!$B$2:$B$115,[1]Mitarbeiterdatenbank!$C26,'[1]BackEnd Data'!$AX$2:$AX$115),"") -> 
I27: =IF(D27<>"",COUNTIF('[1]BackEnd Data'!$B$2:$B$118,C27),"") ->  | K27: =IFERROR(AVERAGEIF('[1]BackEnd Data'!$B$2:$B$115,[1]Mitarbeiterdatenbank!$C27,'[1]BackEnd Data'!$AX$2:$AX$115),"") -> 
I28: =IF(D28<>"",COUNTIF('[1]BackEnd Data'!$B$2:$B$118,C28),"") ->  | K28: =IFERROR(AVERAGEIF('[1]BackEnd Data'!$B$2:$B$115,[1]Mitarbeiterdatenbank!$C28,'[1]BackEnd Data'!$AX$2:$AX$115),"") -> 
I29: =IF(D29<>"",COUNTIF('[1]BackEnd Data'!$B$2:$B$118,C29),"") ->  | K29: =IFERROR(AVERAGEIF('[1]BackEnd Data'!$B$2:$B$115,[1]Mitarbeiterdatenbank!$C29,'[1]BackEnd Data'!$AX$2:$AX$115),"") -> 
I30: =IF(D30<>"",COUNTIF('[1]BackEnd Data'!$B$2:$B$118,C30),"") ->  | K30: =IFERROR(AVERAGEIF('[1]BackEnd Data'!$B$2:$B$115,[1]Mitarbeiterdatenbank!$C30,'[1]BackEnd Data'!$AX$2:$AX$115),"") -> 
I31: =IF(D31<>"",COUNTIF('[1]BackEnd Data'!$B$2:$B$118,C31),"") ->  | K31: =IFERROR(AVERAGEIF('[1]BackEnd Data'!$B$2:$B$115,[1]Mitarbeiterdatenbank!$C31,'[1]BackEnd Data'!$AX$2:$AX$115),"") -> 
I32: =IF(D32<>"",COUNTIF('[1]BackEnd Data'!$B$2:$B$118,C32),"") ->  | K32: =IFERROR(AVERAGEIF('[1]BackEnd Data'!$B$2:$B$115,[1]Mitarbeiterdatenbank!$C32,'[1]BackEnd Data'!$AX$2:$AX$115),"") -> 
I33: =IF(D33<>"",COUNTIF('[1]BackEnd Data'!$B$2:$B$118,C33),"") ->  | K33: =IFERROR(AVERAGEIF('[1]BackEnd Data'!$B$2:$B$115,[1]Mitarbeiterdatenbank!$C33,'[1]BackEnd Data'!$AX$2:$AX$115),"") -> 
I34: =IF(D34<>"",COUNTIF('[1]BackEnd Data'!$B$2:$B$118,C34),"") ->  | K34: =IFERROR(AVERAGEIF('[1]BackEnd Data'!$B$2:$B$115,[1]Mitarbeiterdatenbank!$C34,'[1]BackEnd Data'!$AX$2:$AX$115),"") -> 
I35: =IF(D35<>"",COUNTIF('[1]BackEnd Data'!$B$2:$B$118,C35),"") ->  | K35: =IFERROR(AVERAGEIF('[1]BackEnd Data'!$B$2:$B$115,[1]Mitarbeiterdatenbank!$C35,'[1]BackEnd Data'!$AX$2:$AX$115),"") -> 
I36: =IF(D36<>"",COUNTIF('[1]BackEnd Data'!$B$2:$B$118,C36),"") ->  | K36: =IFERROR(AVERAGEIF('[1]BackEnd Data'!$B$2:$B$115,[1]Mitarbeiterdatenbank!$C36,'[1]BackEnd Data'!$AX$2:$AX$115),"") -> 
I37: =IF(D37<>"",COUNTIF('BackEnd Data'!$B$2:$B$118,C37),"") ->  | J37: =IF(D37<>"","Go to Employee Review","") ->  | K37: =IFERROR(AVERAGEIF('BackEnd Data'!$B$2:$B$115,'Employee Database'!$C37,'BackEnd Data'!$AX$2:$AX$115),"") -> 
I38: =IF(D38<>"",COUNTIF('BackEnd Data'!$B$2:$B$118,C38),"") ->  | K38: =IFERROR(AVERAGEIF('BackEnd Data'!$B$2:$B$115,'Employee Database'!$C38,'BackEnd Data'!$AX$2:$AX$115),"") -> 
I39: =IF(D39<>"",COUNTIF('BackEnd Data'!$B$2:$B$118,C39),"") ->  | K39: =IFERROR(AVERAGEIF('BackEnd Data'!$B$2:$B$115,'Employee Database'!$C39,'BackEnd Data'!$AX$2:$AX$115),"") -> 
I40: =IF(D40<>"",COUNTIF('BackEnd Data'!$B$2:$B$118,C40),"") ->  | K40: =IFERROR(AVERAGEIF('BackEnd Data'!$B$2:$B$115,'Employee Database'!$C40,'BackEnd Data'!$AX$2:$AX$115),"") -> 
I41: =IF(D41<>"",COUNTIF('BackEnd Data'!$B$2:$B$118,C41),"") ->  | K41: =IFERROR(AVERAGEIF('BackEnd Data'!$B$2:$B$115,'Employee Database'!$C41,'BackEnd Data'!$AX$2:$AX$115),"") -> 
I42: =IF(D42<>"",COUNTIF('BackEnd Data'!$B$2:$B$118,C42),"") ->  | K42: =IFERROR(AVERAGEIF('BackEnd Data'!$B$2:$B$115,'Employee Database'!$C42,'BackEnd Data'!$AX$2:$AX$115),"") -> 
I43: =IF(D43<>"",COUNTIF('BackEnd Data'!$B$2:$B$118,C43),"") ->  | K43: =IFERROR(AVERAGEIF('BackEnd Data'!$B$2:$B$115,'Employee Database'!$C43,'BackEnd Data'!$AX$2:$AX$115),"") -> 
I44: =IF(D44<>"",COUNTIF('BackEnd Data'!$B$2:$B$118,C44),"") ->  | K44: =IFERROR(AVERAGEIF('BackEnd Data'!$B$2:$B$115,'Employee Database'!$C44,'BackEnd Data'!$AX$2:$AX$115),"") -> 
I45: =IF(D45<>"",COUNTIF('BackEnd Data'!$B$2:$B$118,C45),"") ->  | K45: =IFERROR(AVERAGEIF('BackEnd Data'!$B$2:$B$115,'Employee Database'!$C45,'BackEnd Data'!$AX$2:$AX$115),"") -> 
I46: =IF(D46<>"",COUNTIF('BackEnd Data'!$B$2:$B$118,C46),"") ->  | K46: =IFERROR(AVERAGEIF('BackEnd Data'!$B$2:$B$115,'Employee Database'!$C46,'BackEnd Data'!$AX$2:$AX$115),"") -> 
I47: =IF(D47<>"",COUNTIF('BackEnd Data'!$B$2:$B$118,C47),"") ->  | K47: =IFERROR(AVERAGEIF('BackEnd Data'!$B$2:$B$115,'Employee Database'!$C47,'BackEnd Data'!$AX$2:$AX$115),"") -> 
I48: =IF(D48<>"",COUNTIF('BackEnd Data'!$B$2:$B$118,C48),"") ->  | K48: =IFERROR(AVERAGEIF('BackEnd Data'!$B$2:$B$115,'Employee Database'!$C48,'BackEnd Data'!$AX$2:$AX$115),"") -> 
I49: =IF(D49<>"",COUNTIF('BackEnd Data'!$B$2:$B$118,C49),"") ->  | K49: =IFERROR(AVERAGEIF('BackEnd Data'!$B$2:$B$115,'Employee Database'!$C49,'BackEnd Data'!$AX$2:$AX$115),"") -> 
I50: =IF(D50<>"",COUNTIF('BackEnd Data'!$B$2:$B$118,C50),"") ->  | K50: =IFERROR(AVERAGEIF('BackEnd Data'!$B$2:$B$115,'Employee Database'!$C50,'BackEnd Data'!$AX$2:$AX$115),"") -> 
I51: =IF(D51<>"",COUNTIF('BackEnd Data'!$B$2:$B$118,C51),"") ->  | K51: =IFERROR(AVERAGEIF('BackEnd Data'!$B$2:$B$115,'Employee Database'!$C51,'BackEnd Data'!$AX$2:$AX$115),"") -> 
K52: =IFERROR(AVERAGEIF('BackEnd Data'!$B$2:$B$115,'Employee Database'!$C52,'BackEnd Data'!$AX$2:$AX$115),"") -> 
K53: =IFERROR(AVERAGEIF('BackEnd Data'!$B$2:$B$115,'Employee Database'!$C53,'BackEnd Data'!$AX$2:$AX$115),"") -> 

Sheet Employee Review
A1: MITARBEITERPROFIL | G1: Vorgestellt von KENJO
B3: Mita. #: | C3: 11 | D3: Position: | E3: =IFERROR(VLOOKUP(C3,'Employee Database'!$C$4:$H$53,3,0),"") -> Planungsleiter | F3: Manager: | G3: =IFERROR(VLOOKUP(C3,'Employee Database'!$C$4:$H$53,4,0),"") -> Tony LR
B5: Name: | C5: =IFERROR(VLOOKUP(C3,'Employee Database'!$C$4:$H$53,2,0),"") -> Bobby Cox | D5: Einstellungsdatum: | E5: =IFERROR(VLOOKUP(C3,'Employee Database'!$C$4:$H$53,5,0),"") -> Exekutivdirektion | F5: Abteilung: | G5: =IFERROR(VLOOKUP(C3,'Employee Database'!$C$4:$H$53,5,0),"") -> Exekutivdirektion
C7: # | D7: Datum der Überprüfung | E7: Gesamtnote | F7: Performance | G7: Check
C8: 1 | D8: =IFERROR(INDEX('BackEnd Data'!$C$2:$C$115,MATCH('Employee Review'!$C8,'BackEnd Data'!$BA$2:$BA$115,0)),"") -> 2019-03-31 | E8: =IFERROR(INDEX('BackEnd Data'!$AX$2:$AX$115,MATCH('Employee Review'!$C8,'BackEnd Data'!$BA$2:$BA$115,0)),"") -> 86 | F8: =IFERROR(INDEX('BackEnd Data'!$AY$2:$AY$115,MATCH('Employee Review'!$C8,'BackEnd Data'!$BA$2:$BA$115,0)),"") -> Truly Outstanding | G8: =IF(D8<>"","Check","") -> Check
C9: 2 | D9: =IFERROR(INDEX('BackEnd Data'!$C$2:$C$115,MATCH('Employee Review'!$C9,'BackEnd Data'!$BA$2:$BA$115,0)),"") -> 2020-01-24T01:45:54 | E9: =IFERROR(INDEX('BackEnd Data'!$AX$2:$AX$115,MATCH('Employee Review'!$C9,'BackEnd Data'!$BA$2:$BA$115,0)),"") -> 99 | F9: =IFERROR(INDEX('BackEnd Data'!$AY$2:$AY$115,MATCH('Employee Review'!$C9,'BackEnd Data'!$BA$2:$BA$115,0)),"") -> Truly Outstanding | G9: =IF(D9<>"","Check","") -> Check
C10: 3 | D10: =IFERROR(INDEX('BackEnd Data'!$C$2:$C$115,MATCH('Employee Review'!$C10,'BackEnd Data'!$BA$2:$BA$115,0)),"") ->  | E10: =IFERROR(INDEX('BackEnd Data'!$AX$2:$AX$115,MATCH('Employee Review'!$C10,'BackEnd Data'!$BA$2:$BA$115,0)),"") ->  | F10: =IFERROR(INDEX('BackEnd Data'!$AY$2:$AY$115,MATCH('Employee Review'!$C10,'BackEnd Data'!$BA$2:$BA$115,0)),"") ->  | G10: =IF(D10<>"","Check","") -> 
C11: 4 | D11: =IFERROR(INDEX('BackEnd Data'!$C$2:$C$115,MATCH('Employee Review'!$C11,'BackEnd Data'!$BA$2:$BA$115,0)),"") ->  | E11: =IFERROR(INDEX('BackEnd Data'!$AX$2:$AX$115,MATCH('Employee Review'!$C11,'BackEnd Data'!$BA$2:$BA$115,0)),"") ->  | F11: =IFERROR(INDEX('BackEnd Data'!$AY$2:$AY$115,MATCH('Employee Review'!$C11,'BackEnd Data'!$BA$2:$BA$115,0)),"") -> 
C12: 5 | D12: =IFERROR(INDEX('BackEnd Data'!$C$2:$C$115,MATCH('Employee Review'!$C12,'BackEnd Data'!$BA$2:$BA$115,0)),"") ->  | E12: =IFERROR(INDEX('BackEnd Data'!$AX$2:$AX$115,MATCH('Employee Review'!$C12,'BackEnd Data'!$BA$2:$BA$115,0)),"") ->  | F12: =IFERROR(INDEX('BackEnd Data'!$AY$2:$AY$115,MATCH('Employee Review'!$C12,'BackEnd Data'!$BA$2:$BA$115,0)),"") -> 
C13: 6 | D13: =IFERROR(INDEX('BackEnd Data'!$C$2:$C$115,MATCH('Employee Review'!$C13,'BackEnd Data'!$BA$2:$BA$115,0)),"") ->  | E13: =IFERROR(INDEX('BackEnd Data'!$AX$2:$AX$115,MATCH('Employee Review'!$C13,'BackEnd Data'!$BA$2:$BA$115,0)),"") ->  | F13: =IFERROR(INDEX('BackEnd Data'!$AY$2:$AY$115,MATCH('Employee Review'!$C13,'BackEnd Data'!$BA$2:$BA$115,0)),"") -> 
C14: 7 | D14: =IFERROR(INDEX('BackEnd Data'!$C$2:$C$115,MATCH('Employee Review'!$C14,'BackEnd Data'!$BA$2:$BA$115,0)),"") ->  | E14: =IFERROR(INDEX('BackEnd Data'!$AX$2:$AX$115,MATCH('Employee Review'!$C14,'BackEnd Data'!$BA$2:$BA$115,0)),"") ->  | F14: =IFERROR(INDEX('BackEnd Data'!$AY$2:$AY$115,MATCH('Employee Review'!$C14,'BackEnd Data'!$BA$2:$BA$115,0)),"") -> 
C15: 8 | D15: =IFERROR(INDEX('BackEnd Data'!$C$2:$C$115,MATCH('Employee Review'!$C15,'BackEnd Data'!$BA$2:$BA$115,0)),"") ->  | E15: =IFERROR(INDEX('BackEnd Data'!$AX$2:$AX$115,MATCH('Employee Review'!$C15,'BackEnd Data'!$BA$2:$BA$115,0)),"") ->  | F15: =IFERROR(INDEX('BackEnd Data'!$AY$2:$AY$115,MATCH('Employee Review'!$C15,'BackEnd Data'!$BA$2:$BA$115,0)),"") -> 
C16: 9 | D16: =IFERROR(INDEX('BackEnd Data'!$C$2:$C$115,MATCH('Employee Review'!$C16,'BackEnd Data'!$BA$2:$BA$115,0)),"") ->  | E16: =IFERROR(INDEX('BackEnd Data'!$AX$2:$AX$115,MATCH('Employee Review'!$C16,'BackEnd Data'!$BA$2:$BA$115,0)),"") ->  | F16: =IFERROR(INDEX('BackEnd Data'!$AY$2:$AY$115,MATCH('Employee Review'!$C16,'BackEnd Data'!$BA$2:$BA$115,0)),"") -> 
C17: 10 | D17: =IFERROR(INDEX('BackEnd Data'!$C$2:$C$115,MATCH('Employee Review'!$C17,'BackEnd Data'!$BA$2:$BA$115,0)),"") ->  | E17: =IFERROR(INDEX('BackEnd Data'!$AX$2:$AX$115,MATCH('Employee Review'!$C17,'BackEnd Data'!$BA$2:$BA$115,0)),"") ->  | F17: =IFERROR(INDEX('BackEnd Data'!$AY$2:$AY$115,MATCH('Employee Review'!$C17,'BackEnd Data'!$BA$2:$BA$115,0)),"") -> 
C18: 11 | D18: =IFERROR(INDEX('BackEnd Data'!$C$2:$C$115,MATCH('Employee Review'!$C18,'BackEnd Data'!$BA$2:$BA$115,0)),"") ->  | E18: =IFERROR(INDEX('BackEnd Data'!$AX$2:$AX$115,MATCH('Employee Review'!$C18,'BackEnd Data'!$BA$2:$BA$115,0)),"") ->  | F18: =IFERROR(INDEX('BackEnd Data'!$AY$2:$AY$115,MATCH('Employee Review'!$C18,'BackEnd Data'!$BA$2:$BA$115,0)),"") -> 
C19: 12 | D19: =IFERROR(INDEX('BackEnd Data'!$C$2:$C$115,MATCH('Employee Review'!$C19,'BackEnd Data'!$BA$2:$BA$115,0)),"") ->  | E19: =IFERROR(INDEX('BackEnd Data'!$AX$2:$AX$115,MATCH('Employee Review'!$C19,'BackEnd Data'!$BA$2:$BA$115,0)),"") ->  | F19: =IFERROR(INDEX('BackEnd Data'!$AY$2:$AY$115,MATCH('Employee Review'!$C19,'BackEnd Data'!$BA$2:$BA$115,0)),"") -> 
C20: 13 | D20: =IFERROR(INDEX('BackEnd Data'!$C$2:$C$115,MATCH('Employee Review'!$C20,'BackEnd Data'!$BA$2:$BA$115,0)),"") ->  | E20: =IFERROR(INDEX('BackEnd Data'!$AX$2:$AX$115,MATCH('Employee Review'!$C20,'BackEnd Data'!$BA$2:$BA$115,0)),"") ->  | F20: =IFERROR(INDEX('BackEnd Data'!$AY$2:$AY$115,MATCH('Employee Review'!$C20,'BackEnd Data'!$BA$2:$BA$115,0)),"") -> 
C21: 14 | D21: =IFERROR(INDEX('BackEnd Data'!$C$2:$C$115,MATCH('Employee Review'!$C21,'BackEnd Data'!$BA$2:$BA$115,0)),"") ->  | E21: =IFERROR(INDEX('BackEnd Data'!$AX$2:$AX$115,MATCH('Employee Review'!$C21,'BackEnd Data'!$BA$2:$BA$115,0)),"") ->  | F21: =IFERROR(INDEX('BackEnd Data'!$AY$2:$AY$115,MATCH('Employee Review'!$C21,'BackEnd Data'!$BA$2:$BA$115,0)),"") -> 
C22: 15 | D22: =IFERROR(INDEX('BackEnd Data'!$C$2:$C$115,MATCH('Employee Review'!$C22,'BackEnd Data'!$BA$2:$BA$115,0)),"") ->  | E22: =IFERROR(INDEX('BackEnd Data'!$AX$2:$AX$115,MATCH('Employee Review'!$C22,'BackEnd Data'!$BA$2:$BA$115,0)),"") ->  | F22: =IFERROR(INDEX('BackEnd Data'!$AY$2:$AY$115,MATCH('Employee Review'!$C22,'BackEnd Data'!$BA$2:$BA$115,0)),"") -> 
C23: 16 | D23: =IFERROR(INDEX('BackEnd Data'!$C$2:$C$115,MATCH('Employee Review'!$C23,'BackEnd Data'!$BA$2:$BA$115,0)),"") ->  | E23: =IFERROR(INDEX('BackEnd Data'!$AX$2:$AX$115,MATCH('Employee Review'!$C23,'BackEnd Data'!$BA$2:$BA$115,0)),"") ->  | F23: =IFERROR(INDEX('BackEnd Data'!$AY$2:$AY$115,MATCH('Employee Review'!$C23,'BackEnd Data'!$BA$2:$BA$115,0)),"") -> 
C24: 17 | D24: =IFERROR(INDEX('BackEnd Data'!$C$2:$C$115,MATCH('Employee Review'!$C24,'BackEnd Data'!$BA$2:$BA$115,0)),"") ->  | E24: =IFERROR(INDEX('BackEnd Data'!$AX$2:$AX$115,MATCH('Employee Review'!$C24,'BackEnd Data'!$BA$2:$BA$115,0)),"") ->  | F24: =IFERROR(INDEX('BackEnd Data'!$AY$2:$AY$115,MATCH('Employee Review'!$C24,'BackEnd Data'!$BA$2:$BA$115,0)),"") -> 
C25: 18 | D25: =IFERROR(INDEX('BackEnd Data'!$C$2:$C$115,MATCH('Employee Review'!$C25,'BackEnd Data'!$BA$2:$BA$115,0)),"") ->  | E25: =IFERROR(INDEX('BackEnd Data'!$AX$2:$AX$115,MATCH('Employee Review'!$C25,'BackEnd Data'!$BA$2:$BA$115,0)),"") ->  | F25: =IFERROR(INDEX('BackEnd Data'!$AY$2:$AY$115,MATCH('Employee Review'!$C25,'BackEnd Data'!$BA$2:$BA$115,0)),"") -> 
C26: 19 | D26: =IFERROR(INDEX('BackEnd Data'!$C$2:$C$115,MATCH('Employee Review'!$C26,'BackEnd Data'!$BA$2:$BA$115,0)),"") ->  | E26: =IFERROR(INDEX('BackEnd Data'!$AX$2:$AX$115,MATCH('Employee Review'!$C26,'BackEnd Data'!$BA$2:$BA$115,0)),"") ->  | F26: =IFERROR(INDEX('BackEnd Data'!$AY$2:$AY$115,MATCH('Employee Review'!$C26,'BackEnd Data'!$BA$2:$BA$115,0)),"") -> 
C27: 20 | D27: =IFERROR(INDEX('BackEnd Data'!$C$2:$C$115,MATCH('Employee Review'!$C27,'BackEnd Data'!$BA$2:$BA$115,0)),"") ->  | E27: =IFERROR(INDEX('BackEnd Data'!$AX$2:$AX$115,MATCH('Employee Review'!$C27,'BackEnd Data'!$BA$2:$BA$115,0)),"") ->  | F27: =IFERROR(INDEX('BackEnd Data'!$AY$2:$AY$115,MATCH('Employee Review'!$C27,'BackEnd Data'!$BA$2:$BA$115,0)),"") -> 

Sheet Review
A1: ÜBERPRÜFUNG | C1: 1
I3: GESAMTERGEBNIS | K3: =SUMPRODUCT(L21:L25,M21:M25) -> 0
A4: =IFERROR(INDEX('Employee Database'!$C$4:$C$53,MATCH('Review Sheet'!C4,'Employee Database'!D4:D51,0)),"") ->  | B4: Name: | C4: =VLOOKUP(INDEX('BackEnd Data'!$B$2:$B$115,MATCH(Review!C1,'BackEnd Data'!$BA$2:$BA$115,0)),'Employee Database'!$C$4:$D$53,2,0) -> Bobby Cox | D4: Position: | E4: =IFERROR(VLOOKUP(C4,'Employee Database'!$D$4:$H$51,2,0),"") -> Planungsleiter | F4: Manager: | G4: =IFERROR(VLOOKUP(C4,'Employee Database'!$D$4:$H$51,3,0),"") -> Tony LR
B6: Datum der Überprüfung: | C6: =IFERROR(INDEX('BackEnd Data'!$C$2:$C$115,MATCH(Review!C1,'BackEnd Data'!$BA$2:$BA$115,0)),"") -> 2019-03-31 | D6: Einstellungsdatum: | E6: =IFERROR(VLOOKUP(C4,'Employee Database'!$D$4:$H$51,5,0),"") -> 2015-06-01 | F6: Abteilung: | G6: =IFERROR(VLOOKUP(C4,'Employee Database'!$D$4:$H$51,4,0),"") -> Exekutivdirektion | I6: PERFORMANCE | K6: =VLOOKUP(K3,J21:K25,2,TRUE) -> Deutlich unter den Erwartungen
A8: Kategorien
C9: Deutlich unter den Erwartungen | D9: Unter den Erwartungshaltung | E9: Erfüllt Erwartungen | F9: Übertrifft Erwartungen | G9: Herausragend
B10: ='Set Up'!D5 -> Produktivität | C10: =IF($B10="","",COUNTIFS($H$29:$H$73,$B10,C$29:C$73,"X")) -> 0 | D10: =IF($B10="","",COUNTIFS($H$29:$H$73,$B10,D$29:D$73,"X")) -> 0 | E10: 0 | F10: 0 | G10: 0 | I10: Anmerkungen:
B11: =IF(OR(B10="",'Set Up'!D6=""),"",'Set Up'!D6) -> Effizienz | C11: =IF($B11="","",COUNTIFS($H$29:$H$73,$B11,C$29:C$73,"X")) -> 0 | D11: 0 | E11: 0 | F11: 0 | G11: 0 | I11: =IFERROR(INDEX('BackEnd Data'!$AZ$2:$AZ$115,MATCH(Review!C1,'BackEnd Data'!$BA$2:$BA$115,0)),"") -> 0
B12: =IF(OR(B11="",'Set Up'!D7=""),"",'Set Up'!D7) -> Organisationsfähigkeiten | C12: 0 | D12: 0 | E12: 0 | F12: 0 | G12: 0
B13: =IF(OR(B12="",'Set Up'!D8=""),"",'Set Up'!D8) -> Lernen und Entwicklung | C13: 0 | D13: 0 | E13: 0 | F13: 0 | G13: 0
B14: =IF(OR(B13="",'Set Up'!D9=""),"",'Set Up'!D9) -> Kommunikation | C14: 0 | D14: 0 | E14: 0 | F14: 0 | G14: 0
B15: =IF(OR(B14="",'Set Up'!D10=""),"",'Set Up'!D10) -> Interne Beziehungen | C15: 0 | D15: 0 | E15: 0 | F15: 0 | G15: 0
B16: =IF(OR(B15="",'Set Up'!D11=""),"",'Set Up'!D11) -> Anwesenheit | C16: 0 | D16: 0 | E16: 0 | F16: 0 | G16: 0
B17: =IF(OR(B16="",'Set Up'!D12=""),"",'Set Up'!D12) -> 
B18: =IF(OR(B17="",'Set Up'!D13=""),"",'Set Up'!D13) -> 
B19: =IF(OR(B18="",'Set Up'!D14=""),"",'Set Up'!D14) ->  | I19: Einstellungen
B20: =IF(OR(B19="",'Set Up'!D15=""),"",'Set Up'!D15) ->  | J20: Gesamtpunkte | K20: Performance | L20: Punkt
B21: =IF(OR(B20="",'Set Up'!D16=""),"",'Set Up'!D16) ->  | J21: 0 | K21: Deutlich unter den Erwartungen | L21: 1 | M21: =COUNTIF(C29:C73,"X") -> 0
B22: =IF(OR(B21="",'Set Up'!D17=""),"",'Set Up'!D17) ->  | J22: =(J26/5)*1+1 -> 21 | K22: Unter den Erwartungen | L22: 2 | M22: =COUNTIF(D29:D73,"X") -> 0
B23: =IF(OR(B22="",'Set Up'!D18=""),"",'Set Up'!D18) ->  | J23: =(J26/5)*2+1 -> 41 | K23: Erfüllt die Erwartungen | L23: 3 | M23: =COUNTIF(E29:E73,"X") -> 0
B24: =IF(OR(B23="",'Set Up'!D19=""),"",'Set Up'!D19) ->  | J24: =(J26/5)*3+1 -> 61 | K24: Übertrifft die Erwartungen | L24: 4 | M24: =+COUNTIF(F29:F73,"X") -> 0
J25: =(J26/5)*4+1 -> 81 | K25: Herausragend | L25: 5 | M25: =+COUNTIF(G29:G73,"X") -> 0
A26: Fragen | J26: =5*MAX('Set Up'!C25:C69) -> 100 | K26: =MAX('Set Up'!C25:C69) -> 20
A28: Kategorie | B28: Fragen | C28: Weit unter den Erwartungen | D28: Unter den Erwartungen | E28: Erfüllt die Erwartungen | F28: Übertrifft die Erwartungen | G28: Herausragend
A29: =IF(H29="","",H29) -> Produktivität | B29: ='Set Up'!D25 -> Erfüllt das erwartete Arbeitspensum und erzielt die angestrebten Ergebnisse | C29: =IF(HLOOKUP($J29,'BackEnd Data'!$E$1:$AW$115,MATCH(Review!$C$1,'BackEnd Data'!$BA$1:$BA$115,0),0)=C$28,"X","") ->  | D29: =IF(HLOOKUP($J29,'BackEnd Data'!$E$1:$AW$115,MATCH(Review!$C$1,'BackEnd Data'!$BA$1:$BA$115,0),0)=D$28,"X","") ->  | E29: =IF(HLOOKUP($J29,'BackEnd Data'!$E$1:$AW$115,MATCH(Review!$C$1,'BackEnd Data'!$BA$1:$BA$115,0),0)=E$28,"X","") ->  | F29: =IF(HLOOKUP($J29,'BackEnd Data'!$E$1:$AW$115,MATCH(Review!$C$1,'BackEnd Data'!$BA$1:$BA$115,0),0)=F$28,"X","") ->  | G29: =IF(HLOOKUP($J29,'BackEnd Data'!$E$1:$AW$115,MATCH(Review!$C$1,'BackEnd Data'!$BA$1:$BA$115,0),0)=G$28,"X","") ->  | H29: ='Set Up'!E25 -> Produktivität | J29: ans1
A30: =IF(H30="","",H30) -> Produktivität | B30: =IF(OR('Set Up'!D26="",'Review Sheet'!B29=""),"",'Set Up'!D26) -> Erledigt seine Aufgaben und Pflichten gründlich und zuverlässig | C30: =IF(HLOOKUP($J30,'BackEnd Data'!$E$1:$AW$115,MATCH(Review!$C$1,'BackEnd Data'!$BA$1:$BA$115,0),0)=C$28,"X","") ->  | D30: =IF(HLOOKUP($J30,'BackEnd Data'!$E$1:$AW$115,MATCH(Review!$C$1,'BackEnd Data'!$BA$1:$BA$115,0),0)=D$28,"X","") ->  | E30: =IF(HLOOKUP($J30,'BackEnd Data'!$E$1:$AW$115,MATCH(Review!$C$1,'BackEnd Data'!$BA$1:$BA$115,0),0)=E$28,"X","") ->  | F30: =IF(HLOOKUP($J30,'BackEnd Data'!$E$1:$AW$115,MATCH(Review!$C$1,'BackEnd Data'!$BA$1:$BA$115,0),0)=F$28,"X","") ->  | G30: =IF(HLOOKUP($J30,'BackEnd Data'!$E$1:$AW$115,MATCH(Review!$C$1,'BackEnd Data'!$BA$1:$BA$115,0),0)=G$28,"X","") ->  | H30: =IF(OR('Set Up'!E26="",'Review Sheet'!H29=""),"",'Set Up'!E26) -> Produktivität | J30: ans2
A31: Produktivität | B31: =IF(OR('Set Up'!D27="",'Review Sheet'!B30=""),"",'Set Up'!D27) -> Trägt zum Erreichen der Ziele und Prioritäten der Abteilung bei | C31: =IF(HLOOKUP($J31,'BackEnd Data'!$E$1:$AW$115,MATCH(Review!$C$1,'BackEnd Data'!$BA$1:$BA$115,0),0)=C$28,"X","") ->  | D31: =IF(HLOOKUP($J31,'BackEnd Data'!$E$1:$AW$115,MATCH(Review!$C$1,'BackEnd Data'!$BA$1:$BA$115,0),0)=D$28,"X","") ->  | E31: =IF(HLOOKUP($J31,'BackEnd Data'!$E$1:$AW$115,MATCH(Review!$C$1,'BackEnd Data'!$BA$1:$BA$115,0),0)=E$28,"X","") ->  | F31: =IF(HLOOKUP($J31,'BackEnd Data'!$E$1:$AW$115,MATCH(Review!$C$1,'BackEnd Data'!$BA$1:$BA$115,0),0)=F$28,"X","") ->  | G31: =IF(HLOOKUP($J31,'BackEnd Data'!$E$1:$AW$115,MATCH(Review!$C$1,'BackEnd Data'!$BA$1:$BA$115,0),0)=G$28,"X","") ->  | H31: =IF(OR('Set Up'!E27="",'Review Sheet'!H30=""),"",'Set Up'!E27) -> Produktivität | J31: ans3
A32: Effizienz | B32: =IF(OR('Set Up'!D28="",'Review Sheet'!B31=""),"",'Set Up'!D28) -> Bietet qualitativ hochwertige Produkte, Programme, Verfahren und Dienstleistungen an; zeigt Engagement für kontinuierliche Verbesserung | C32: =IF(HLOOKUP($J32,'BackEnd Data'!$E$1:$AW$115,MATCH(Review!$C$1,'BackEnd Data'!$BA$1:$BA$115,0),0)=C$28,"X","") ->  | D32: =IF(HLOOKUP($J32,'BackEnd Data'!$E$1:$AW$115,MATCH(Review!$C$1,'BackEnd Data'!$BA$1:$BA$115,0),0)=D$28,"X","") ->  | E32: =IF(HLOOKUP($J32,'BackEnd Data'!$E$1:$AW$115,MATCH(Review!$C$1,'BackEnd Data'!$BA$1:$BA$115,0),0)=E$28,"X","") ->  | F32: =IF(HLOOKUP($J32,'BackEnd Data'!$E$1:$AW$115,MATCH(Review!$C$1,'BackEnd Data'!$BA$1:$BA$115,0),0)=F$28,"X","") ->  | G32: =IF(HLOOKUP($J32,'BackEnd Data'!$E$1:$AW$115,MATCH(Review!$C$1,'BackEnd Data'!$BA$1:$BA$115,0),0)=G$28,"X","") ->  | H32: =IF(OR('Set Up'!E28="",'Review Sheet'!H31=""),"",'Set Up'!E28) -> Effizienz | J32: ans4
A33: Effizienz | B33: =IF(OR('Set Up'!D29="",'Review Sheet'!B32=""),"",'Set Up'!D29) -> Ist bei seiner/ihrer Arbeit einfallsreich und innovativ | C33: =IF(HLOOKUP($J33,'BackEnd Data'!$E$1:$AW$115,MATCH(Review!$C$1,'BackEnd Data'!$BA$1:$BA$115,0),0)=C$28,"X","") ->  | D33: =IF(HLOOKUP($J33,'BackEnd Data'!$E$1:$AW$115,MATCH(Review!$C$1,'BackEnd Data'!$BA$1:$BA$115,0),0)=D$28,"X","") ->  | E33: =IF(HLOOKUP($J33,'BackEnd Data'!$E$1:$AW$115,MATCH(Review!$C$1,'BackEnd Data'!$BA$1:$BA$115,0),0)=E$28,"X","") ->  | F33: =IF(HLOOKUP($J33,'BackEnd Data'!$E$1:$AW$115,MATCH(Review!$C$1,'BackEnd Data'!$BA$1:$BA$115,0),0)=F$28,"X","") ->  | G33: =IF(HLOOKUP($J33,'BackEnd Data'!$E$1:$AW$115,MATCH(Review!$C$1,'BackEnd Data'!$BA$1:$BA$115,0),0)=G$28,"X","") ->  | H33: =IF(OR('Set Up'!E29="",'Review Sheet'!H32=""),"",'Set Up'!E29) -> Effizienz | J33: ans5
A34: Effizienz | B34: =IF(OR('Set Up'!D30="",'Review Sheet'!B33=""),"",'Set Up'!D30) -> Trifft zeitnah und fundiert arbeitsbezogene Entscheidungen | C34: =IF(HLOOKUP($J34,'BackEnd Data'!$E$1:$AW$115,MATCH(Review!$C$1,'BackEnd Data'!$BA$1:$BA$115,0),0)=C$28,"X","") ->  | D34: =IF(HLOOKUP($J34,'BackEnd Data'!$E$1:$AW$115,MATCH(Review!$C$1,'BackEnd Data'!$BA$1:$BA$115,0),0)=D$28,"X","") ->  | E34: =IF(HLOOKUP($J34,'BackEnd Data'!$E$1:$AW$115,MATCH(Review!$C$1,'BackEnd Data'!$BA$1:$BA$115,0),0)=E$28,"X","") ->  | F34: =IF(HLOOKUP($J34,'BackEnd Data'!$E$1:$AW$115,MATCH(Review!$C$1,'BackEnd Data'!$BA$1:$BA$115,0),0)=F$28,"X","") ->  | G34: =IF(HLOOKUP($J34,'BackEnd Data'!$E$1:$AW$115,MATCH(Review!$C$1,'BackEnd Data'!$BA$1:$BA$115,0),0)=G$28,"X","") ->  | H34: =IF(OR('Set Up'!E30="",'Review Sheet'!H33=""),"",'Set Up'!E30) -> Effizienz | J34: ans6
A35: Organisationstalent | B35: =IF(OR('Set Up'!D31="",'Review Sheet'!B34=""),"",'Set Up'!D31) -> Plant, setzt Prioritäten und organisiert seine Arbeit in angemessener Weise | C35: =IF(HLOOKUP($J35,'BackEnd Data'!$E$1:$AW$115,MATCH(Review!$C$1,'BackEnd Data'!$BA$1:$BA$115,0),0)=C$28,"X","") ->  | D35: =IF(HLOOKUP($J35,'BackEnd Data'!$E$1:$AW$115,MATCH(Review!$C$1,'BackEnd Data'!$BA$1:$BA$115,0),0)=D$28,"X","") ->  | E35: =IF(HLOOKUP($J35,'BackEnd Data'!$E$1:$AW$115,MATCH(Review!$C$1,'BackEnd Data'!$BA$1:$BA$115,0),0)=E$28,"X","") ->  | F35: =IF(HLOOKUP($J35,'BackEnd Data'!$E$1:$AW$115,MATCH(Review!$C$1,'BackEnd Data'!$BA$1:$BA$115,0),0)=F$28,"X","") ->  | G35: =IF(HLOOKUP($J35,'BackEnd Data'!$E$1:$AW$115,MATCH(Review!$C$1,'BackEnd Data'!$BA$1:$BA$115,0),0)=G$28,"X","") ->  | H35: =IF(OR('Set Up'!E31="",'Review Sheet'!H34=""),"",'Set Up'!E31) -> Organisationstalent | J35: ans7
A36: Organisationstalent | B36: =IF(OR('Set Up'!D32="",'Review Sheet'!B35=""),"",'Set Up'!D32) -> Identifiziert und nutzt Ressourcen effektiv und verantwortungsbewusst | C36: =IF(HLOOKUP($J36,'BackEnd Data'!$E$1:$AW$115,MATCH(Review!$C$1,'BackEnd Data'!$BA$1:$BA$115,0),0)=C$28,"X","") ->  | D36: =IF(HLOOKUP($J36,'BackEnd Data'!$E$1:$AW$115,MATCH(Review!$C$1,'BackEnd Data'!$BA$1:$BA$115,0),0)=D$28,"X","") ->  | E36: =IF(HLOOKUP($J36,'BackEnd Data'!$E$1:$AW$115,MATCH(Review!$C$1,'BackEnd Data'!$BA$1:$BA$115,0),0)=E$28,"X","") ->  | F36: =IF(HLOOKUP($J36,'BackEnd Data'!$E$1:$AW$115,MATCH(Review!$C$1,'BackEnd Data'!$BA$1:$BA$115,0),0)=F$28,"X","") ->  | G36: =IF(HLOOKUP($J36,'BackEnd Data'!$E$1:$AW$115,MATCH(Review!$C$1,'BackEnd Data'!$BA$1:$BA$115,0),0)=G$28,"X","") ->  | H36: =IF(OR('Set Up'!E32="",'Review Sheet'!H35=""),"",'Set Up'!E32) -> Organisationstalent | J36: ans8
A37: Organisationsfähigkeiten | B37: =IF(OR('Set Up'!D33="",'Review Sheet'!B36=""),"",'Set Up'!D33) -> Ist selbständig und arbeitet gut mit minimaler Aufsicht | C37: =IF(HLOOKUP($J37,'BackEnd Data'!$E$1:$AW$115,MATCH(Review!$C$1,'BackEnd Data'!$BA$1:$BA$115,0),0)=C$28,"X","") ->  | D37: =IF(HLOOKUP($J37,'BackEnd Data'!$E$1:$AW$115,MATCH(Review!$C$1,'BackEnd Data'!$BA$1:$BA$115,0),0)=D$28,"X","") ->  | E37: =IF(HLOOKUP($J37,'BackEnd Data'!$E$1:$AW$115,MATCH(Review!$C$1,'BackEnd Data'!$BA$1:$BA$115,0),0)=E$28,"X","") ->  | F37: =IF(HLOOKUP($J37,'BackEnd Data'!$E$1:$AW$115,MATCH(Review!$C$1,'BackEnd Data'!$BA$1:$BA$115,0),0)=F$28,"X","") ->  | G37: =IF(HLOOKUP($J37,'BackEnd Data'!$E$1:$AW$115,MATCH(Review!$C$1,'BackEnd Data'!$BA$1:$BA$115,0),0)=G$28,"X","") ->  | H37: =IF(OR('Set Up'!E33="",'Review Sheet'!H36=""),"",'Set Up'!E33) -> Organisationsfähigkeiten | J37: ans9
A38: Lernen und Entwicklung | B38: =IF(OR('Set Up'!D34="",'Review Sheet'!B37=""),"",'Set Up'!D34) -> Zeigt Flexibilität und passt sich gut an Veränderungen an | C38: =IF(HLOOKUP($J38,'BackEnd Data'!$E$1:$AW$115,MATCH(Review!$C$1,'BackEnd Data'!$BA$1:$BA$115,0),0)=C$28,"X","") ->  | D38: =IF(HLOOKUP($J38,'BackEnd Data'!$E$1:$AW$115,MATCH(Review!$C$1,'BackEnd Data'!$BA$1:$BA$115,0),0)=D$28,"X","") ->  | E38: =IF(HLOOKUP($J38,'BackEnd Data'!$E$1:$AW$115,MATCH(Review!$C$1,'BackEnd Data'!$BA$1:$BA$115,0),0)=E$28,"X","") ->  | F38: =IF(HLOOKUP($J38,'BackEnd Data'!$E$1:$AW$115,MATCH(Review!$C$1,'BackEnd Data'!$BA$1:$BA$115,0),0)=F$28,"X","") ->  | G38: =IF(HLOOKUP($J38,'BackEnd Data'!$E$1:$AW$115,MATCH(Review!$C$1,'BackEnd Data'!$BA$1:$BA$115,0),0)=G$28,"X","") ->  | H38: =IF(OR('Set Up'!E34="",'Review Sheet'!H37=""),"",'Set Up'!E34) -> Lernen und Entwicklung | J38: ans10
A39: Lernen und Entwicklung | B39: =IF(OR('Set Up'!D35="",'Review Sheet'!B38=""),"",'Set Up'!D35) -> Übernimmt die Verantwortung für sein eigenes Handeln und lernt kontinuierlich aus seinen Erfahrungen | C39: =IF(HLOOKUP($J39,'BackEnd Data'!$E$1:$AW$115,MATCH(Review!$C$1,'BackEnd Data'!$BA$1:$BA$115,0),0)=C$28,"X","") ->  | D39: =IF(HLOOKUP($J39,'BackEnd Data'!$E$1:$AW$115,MATCH(Review!$C$1,'BackEnd Data'!$BA$1:$BA$115,0),0)=D$28,"X","") ->  | E39: =IF(HLOOKUP($J39,'BackEnd Data'!$E$1:$AW$115,MATCH(Review!$C$1,'BackEnd Data'!$BA$1:$BA$115,0),0)=E$28,"X","") ->  | F39: =IF(HLOOKUP($J39,'BackEnd Data'!$E$1:$AW$115,MATCH(Review!$C$1,'BackEnd Data'!$BA$1:$BA$115,0),0)=F$28,"X","") ->  | G39: =IF(HLOOKUP($J39,'BackEnd Data'!$E$1:$AW$115,MATCH(Review!$C$1,'BackEnd Data'!$BA$1:$BA$115,0),0)=G$28,"X","") ->  | H39: =IF(OR('Set Up'!E35="",'Review Sheet'!H38=""),"",'Set Up'!E35) -> Lernen und Entwicklung | J39: ans11
A40: Lernen und Entwicklung | B40: =IF(OR('Set Up'!D36="",'Review Sheet'!B39=""),"",'Set Up'!D36) -> Zeigt, dass er kontinuierlich lernt, indem er sich über neue Entwicklungen auf dem Laufenden hält und sich neue berufsbezogene Fähigkeiten aneignet | C40: =IF(HLOOKUP($J40,'BackEnd Data'!$E$1:$AW$115,MATCH(Review!$C$1,'BackEnd Data'!$BA$1:$BA$115,0),0)=C$28,"X","") ->  | D40: =IF(HLOOKUP($J40,'BackEnd Data'!$E$1:$AW$115,MATCH(Review!$C$1,'BackEnd Data'!$BA$1:$BA$115,0),0)=D$28,"X","") ->  | E40: =IF(HLOOKUP($J40,'BackEnd Data'!$E$1:$AW$115,MATCH(Review!$C$1,'BackEnd Data'!$BA$1:$BA$115,0),0)=E$28,"X","") ->  | F40: =IF(HLOOKUP($J40,'BackEnd Data'!$E$1:$AW$115,MATCH(Review!$C$1,'BackEnd Data'!$BA$1:$BA$115,0),0)=F$28,"X","") ->  | G40: =IF(HLOOKUP($J40,'BackEnd Data'!$E$1:$AW$115,MATCH(Review!$C$1,'BackEnd Data'!$BA$1:$BA$115,0),0)=G$28,"X","") ->  | H40: =IF(OR('Set Up'!E36="",'Review Sheet'!H39=""),"",'Set Up'!E36) -> Lernen und Entwicklung | J40: ans12
A41: Kommunikation | B41: =IF(OR('Set Up'!D37="",'Review Sheet'!B40=""),"",'Set Up'!D37) -> Kommuniziert klar und effektiv, sowohl mündlich als auch schriftlich | C41: =IF(HLOOKUP($J41,'BackEnd Data'!$E$1:$AW$115,MATCH(Review!$C$1,'BackEnd Data'!$BA$1:$BA$115,0),0)=C$28,"X","") ->  | D41: =IF(HLOOKUP($J41,'BackEnd Data'!$E$1:$AW$115,MATCH(Review!$C$1,'BackEnd Data'!$BA$1:$BA$115,0),0)=D$28,"X","") ->  | E41: =IF(HLOOKUP($J41,'BackEnd Data'!$E$1:$AW$115,MATCH(Review!$C$1,'BackEnd Data'!$BA$1:$BA$115,0),0)=E$28,"X","") ->  | F41: =IF(HLOOKUP($J41,'BackEnd Data'!$E$1:$AW$115,MATCH(Review!$C$1,'BackEnd Data'!$BA$1:$BA$115,0),0)=F$28,"X","") ->  | G41: =IF(HLOOKUP($J41,'BackEnd Data'!$E$1:$AW$115,MATCH(Review!$C$1,'BackEnd Data'!$BA$1:$BA$115,0),0)=G$28,"X","") ->  | H41: =IF(OR('Set Up'!E37="",'Review Sheet'!H40=""),"",'Set Up'!E37) -> Kommunikation | J41: ans13
A42: Kommunikation | B42: =IF(OR('Set Up'!D38="",'Review Sheet'!B41=""),"",'Set Up'!D38) -> Nimmt konstruktives Feedback an und gibt es weiter | C42: =IF(HLOOKUP($J42,'BackEnd Data'!$E$1:$AW$115,MATCH(Review!$C$1,'BackEnd Data'!$BA$1:$BA$115,0),0)=C$28,"X","") ->  | D42: =IF(HLOOKUP($J42,'BackEnd Data'!$E$1:$AW$115,MATCH(Review!$C$1,'BackEnd Data'!$BA$1:$BA$115,0),0)=D$28,"X","") ->  | E42: =IF(HLOOKUP($J42,'BackEnd Data'!$E$1:$AW$115,MATCH(Review!$C$1,'BackEnd Data'!$BA$1:$BA$115,0),0)=E$28,"X","") ->  | F42: =IF(HLOOKUP($J42,'BackEnd Data'!$E$1:$AW$115,MATCH(Review!$C$1,'BackEnd Data'!$BA$1:$BA$115,0),0)=F$28,"X","") ->  | G42: =IF(HLOOKUP($J42,'BackEnd Data'!$E$1:$AW$115,MATCH(Review!$C$1,'BackEnd Data'!$BA$1:$BA$115,0),0)=G$28,"X","") ->  | H42: =IF(OR('Set Up'!E38="",'Review Sheet'!H41=""),"",'Set Up'!E38) -> Kommunikation | J42: ans14
A43: Kommunikation | B43: =IF(OR('Set Up'!D39="",'Review Sheet'!B42=""),"",'Set Up'!D39) -> Nutzt geeignete Kommunikationskanäle, um Informationen und Ideen zeitnah zu vermitteln und zu verbreiten | C43: =IF(HLOOKUP($J43,'BackEnd Data'!$E$1:$AW$115,MATCH(Review!$C$1,'BackEnd Data'!$BA$1:$BA$115,0),0)=C$28,"X","") ->  | D43: =IF(HLOOKUP($J43,'BackEnd Data'!$E$1:$AW$115,MATCH(Review!$C$1,'BackEnd Data'!$BA$1:$BA$115,0),0)=D$28,"X","") ->  | E43: =IF(HLOOKUP($J43,'BackEnd Data'!$E$1:$AW$115,MATCH(Review!$C$1,'BackEnd Data'!$BA$1:$BA$115,0),0)=E$28,"X","") ->  | F43: =IF(HLOOKUP($J43,'BackEnd Data'!$E$1:$AW$115,MATCH(Review!$C$1,'BackEnd Data'!$BA$1:$BA$115,0),0)=F$28,"X","") ->  | G43: =IF(HLOOKUP($J43,'BackEnd Data'!$E$1:$AW$115,MATCH(Review!$C$1,'BackEnd Data'!$BA$1:$BA$115,0),0)=G$28,"X","") ->  | H43: =IF(OR('Set Up'!E39="",'Review Sheet'!H42=""),"",'Set Up'!E39) -> Kommunikation | J43: ans15
A44: Interne Beziehungen | B44: =IF(OR('Set Up'!D40="",'Review Sheet'!B43=""),"",'Set Up'!D40) -> Nimmt aktiv an der Arbeit teil und leistet einen Beitrag als Mitglied eines effektiven Arbeitsteams | C44: =IF(HLOOKUP($J44,'BackEnd Data'!$E$1:$AW$115,MATCH(Review!$C$1,'BackEnd Data'!$BA$1:$BA$115,0),0)=C$28,"X","") ->  | D44: =IF(HLOOKUP($J44,'BackEnd Data'!$E$1:$AW$115,MATCH(Review!$C$1,'BackEnd Data'!$BA$1:$BA$115,0),0)=D$28,"X","") ->  | E44: =IF(HLOOKUP($J44,'BackEnd Data'!$E$1:$AW$115,MATCH(Review!$C$1,'BackEnd Data'!$BA$1:$BA$115,0),0)=E$28,"X","") ->  | F44: =IF(HLOOKUP($J44,'BackEnd Data'!$E$1:$AW$115,MATCH(Review!$C$1,'BackEnd Data'!$BA$1:$BA$115,0),0)=F$28,"X","") ->  | G44: =IF(HLOOKUP($J44,'BackEnd Data'!$E$1:$AW$115,MATCH(Review!$C$1,'BackEnd Data'!$BA$1:$BA$115,0),0)=G$28,"X","") ->  | H44: =IF(OR('Set Up'!E40="",'Review Sheet'!H43=""),"",'Set Up'!E40) -> Interne Beziehungen | J44: ans16
A45: Interne Beziehungen | B45: =IF(OR('Set Up'!D41="",'Review Sheet'!B44=""),"",'Set Up'!D41) -> Baut kooperative Arbeitsbeziehungen auf und trägt zur Lösung von Konflikten am Arbeitsplatz bei | C45: =IF(HLOOKUP($J45,'BackEnd Data'!$E$1:$AW$115,MATCH(Review!$C$1,'BackEnd Data'!$BA$1:$BA$115,0),0)=C$28,"X","") ->  | D45: =IF(HLOOKUP($J45,'BackEnd Data'!$E$1:$AW$115,MATCH(Review!$C$1,'BackEnd Data'!$BA$1:$BA$115,0),0)=D$28,"X","") ->  | E45: =IF(HLOOKUP($J45,'BackEnd Data'!$E$1:$AW$115,MATCH(Review!$C$1,'BackEnd Data'!$BA$1:$BA$115,0),0)=E$28,"X","") ->  | F45: =IF(HLOOKUP($J45,'BackEnd Data'!$E$1:$AW$115,MATCH(Review!$C$1,'BackEnd Data'!$BA$1:$BA$115,0),0)=F$28,"X","") ->  | G45: =IF(HLOOKUP($J45,'BackEnd Data'!$E$1:$AW$115,MATCH(Review!$C$1,'BackEnd Data'!$BA$1:$BA$115,0),0)=G$28,"X","") ->  | H45: =IF(OR('Set Up'!E41="",'Review Sheet'!H44=""),"",'Set Up'!E41) -> Interne Beziehungen | J45: ans17
A46: Interne Beziehungen | B46: =IF(OR('Set Up'!D42="",'Review Sheet'!B45=""),"",'Set Up'!D42) -> Fördert und unterstützt Vielfalt; zeigt Respekt für andere; behandelt alle fair und gerecht | C46: =IF(HLOOKUP($J46,'BackEnd Data'!$E$1:$AW$115,MATCH(Review!$C$1,'BackEnd Data'!$BA$1:$BA$115,0),0)=C$28,"X","") ->  | D46: =IF(HLOOKUP($J46,'BackEnd Data'!$E$1:$AW$115,MATCH(Review!$C$1,'BackEnd Data'!$BA$1:$BA$115,0),0)=D$28,"X","") ->  | E46: =IF(HLOOKUP($J46,'BackEnd Data'!$E$1:$AW$115,MATCH(Review!$C$1,'BackEnd Data'!$BA$1:$BA$115,0),0)=E$28,"X","") ->  | F46: =IF(HLOOKUP($J46,'BackEnd Data'!$E$1:$AW$115,MATCH(Review!$C$1,'BackEnd Data'!$BA$1:$BA$115,0),0)=F$28,"X","") ->  | G46: =IF(HLOOKUP($J46,'BackEnd Data'!$E$1:$AW$115,MATCH(Review!$C$1,'BackEnd Data'!$BA$1:$BA$115,0),0)=G$28,"X","") ->  | H46: =IF(OR('Set Up'!E42="",'Review Sheet'!H45=""),"",'Set Up'!E42) -> Interne Beziehungen | J46: ans18
A47: Anwesenheit | B47: =IF(OR('Set Up'!D43="",'Review Sheet'!B46=""),"",'Set Up'!D43) -> Erscheint in der Regel pünktlich zur Arbeit | C47: =IF(HLOOKUP($J47,'BackEnd Data'!$E$1:$AW$115,MATCH(Review!$C$1,'BackEnd Data'!$BA$1:$BA$115,0),0)=C$28,"X","") ->  | D47: =IF(HLOOKUP($J47,'BackEnd Data'!$E$1:$AW$115,MATCH(Review!$C$1,'BackEnd Data'!$BA$1:$BA$115,0),0)=D$28,"X","") ->  | E47: =IF(HLOOKUP($J47,'BackEnd Data'!$E$1:$AW$115,MATCH(Review!$C$1,'BackEnd Data'!$BA$1:$BA$115,0),0)=E$28,"X","") ->  | F47: =IF(HLOOKUP($J47,'BackEnd Data'!$E$1:$AW$115,MATCH(Review!$C$1,'BackEnd Data'!$BA$1:$BA$115,0),0)=F$28,"X","") ->  | G47: =IF(HLOOKUP($J47,'BackEnd Data'!$E$1:$AW$115,MATCH(Review!$C$1,'BackEnd Data'!$BA$1:$BA$115,0),0)=G$28,"X","") ->  | H47: =IF(OR('Set Up'!E43="",'Review Sheet'!H46=""),"",'Set Up'!E43) -> Anwesenheit | J47: ans19
A48: Anwesenheit | B48: =IF(OR('Set Up'!D44="",'Review Sheet'!B47=""),"",'Set Up'!D44) -> Befolge das Verfahren, wenn du Urlaub beantragst oder deine Anwesenheit rechtfertigst | C48: =IF(HLOOKUP($J48,'BackEnd Data'!$E$1:$AW$115,MATCH(Review!$C$1,'BackEnd Data'!$BA$1:$BA$115,0),0)=C$28,"X","") ->  | D48: =IF(HLOOKUP($J48,'BackEnd Data'!$E$1:$AW$115,MATCH(Review!$C$1,'BackEnd Data'!$BA$1:$BA$115,0),0)=D$28,"X","") ->  | E48: =IF(HLOOKUP($J48,'BackEnd Data'!$E$1:$AW$115,MATCH(Review!$C$1,'BackEnd Data'!$BA$1:$BA$115,0),0)=E$28,"X","") ->  | F48: =IF(HLOOKUP($J48,'BackEnd Data'!$E$1:$AW$115,MATCH(Review!$C$1,'BackEnd Data'!$BA$1:$BA$115,0),0)=F$28,"X","") ->  | G48: =IF(HLOOKUP($J48,'BackEnd Data'!$E$1:$AW$115,MATCH(Review!$C$1,'BackEnd Data'!$BA$1:$BA$115,0),0)=G$28,"X","") ->  | H48: =IF(OR('Set Up'!E44="",'Review Sheet'!H47=""),"",'Set Up'!E44) -> Anwesenheit | J48: ans20
B49: =IF(OR('Set Up'!D45="",'Review Sheet'!B48=""),"",'Set Up'!D45) ->  | C49: =IF(HLOOKUP($J49,'BackEnd Data'!$E$1:$AW$115,MATCH(Review!$C$1,'BackEnd Data'!$BA$1:$BA$115,0),0)=C$28,"X","") ->  | D49: =IF(HLOOKUP($J49,'BackEnd Data'!$E$1:$AW$115,MATCH(Review!$C$1,'BackEnd Data'!$BA$1:$BA$115,0),0)=D$28,"X","") ->  | E49: =IF(HLOOKUP($J49,'BackEnd Data'!$E$1:$AW$115,MATCH(Review!$C$1,'BackEnd Data'!$BA$1:$BA$115,0),0)=E$28,"X","") ->  | F49: =IF(HLOOKUP($J49,'BackEnd Data'!$E$1:$AW$115,MATCH(Review!$C$1,'BackEnd Data'!$BA$1:$BA$115,0),0)=F$28,"X","") ->  | G49: =IF(HLOOKUP($J49,'BackEnd Data'!$E$1:$AW$115,MATCH(Review!$C$1,'BackEnd Data'!$BA$1:$BA$115,0),0)=G$28,"X","") ->  | H49: =IF(OR('Set Up'!E45="",'Review Sheet'!H48=""),"",'Set Up'!E45) ->  | J49: ans21
B50: =IF(OR('Set Up'!D46="",'Review Sheet'!B49=""),"",'Set Up'!D46) ->  | C50: =IF(HLOOKUP($J50,'BackEnd Data'!$E$1:$AW$115,MATCH(Review!$C$1,'BackEnd Data'!$BA$1:$BA$115,0),0)=C$28,"X","") ->  | D50: =IF(HLOOKUP($J50,'BackEnd Data'!$E$1:$AW$115,MATCH(Review!$C$1,'BackEnd Data'!$BA$1:$BA$115,0),0)=D$28,"X","") ->  | E50: =IF(HLOOKUP($J50,'BackEnd Data'!$E$1:$AW$115,MATCH(Review!$C$1,'BackEnd Data'!$BA$1:$BA$115,0),0)=E$28,"X","") ->  | F50: =IF(HLOOKUP($J50,'BackEnd Data'!$E$1:$AW$115,MATCH(Review!$C$1,'BackEnd Data'!$BA$1:$BA$115,0),0)=F$28,"X","") ->  | G50: =IF(HLOOKUP($J50,'BackEnd Data'!$E$1:$AW$115,MATCH(Review!$C$1,'BackEnd Data'!$BA$1:$BA$115,0),0)=G$28,"X","") ->  | H50: =IF(OR('Set Up'!E46="",'Review Sheet'!H49=""),"",'Set Up'!E46) ->  | J50: ans22
B51: =IF(OR('Set Up'!D47="",'Review Sheet'!B50=""),"",'Set Up'!D47) ->  | C51: =IF(HLOOKUP($J51,'BackEnd Data'!$E$1:$AW$115,MATCH(Review!$C$1,'BackEnd Data'!$BA$1:$BA$115,0),0)=C$28,"X","") ->  | D51: =IF(HLOOKUP($J51,'BackEnd Data'!$E$1:$AW$115,MATCH(Review!$C$1,'BackEnd Data'!$BA$1:$BA$115,0),0)=D$28,"X","") ->  | E51: =IF(HLOOKUP($J51,'BackEnd Data'!$E$1:$AW$115,MATCH(Review!$C$1,'BackEnd Data'!$BA$1:$BA$115,0),0)=E$28,"X","") ->  | F51: =IF(HLOOKUP($J51,'BackEnd Data'!$E$1:$AW$115,MATCH(Review!$C$1,'BackEnd Data'!$BA$1:$BA$115,0),0)=F$28,"X","") ->  | G51: =IF(HLOOKUP($J51,'BackEnd Data'!$E$1:$AW$115,MATCH(Review!$C$1,'BackEnd Data'!$BA$1:$BA$115,0),0)=G$28,"X","") ->  | H51: =IF(OR('Set Up'!E47="",'Review Sheet'!H50=""),"",'Set Up'!E47) ->  | J51: ans23
B52: =IF(OR('Set Up'!D48="",'Review Sheet'!B51=""),"",'Set Up'!D48) ->  | C52: =IF(HLOOKUP($J52,'BackEnd Data'!$E$1:$AW$115,MATCH(Review!$C$1,'BackEnd Data'!$BA$1:$BA$115,0),0)=C$28,"X","") ->  | D52: =IF(HLOOKUP($J52,'BackEnd Data'!$E$1:$AW$115,MATCH(Review!$C$1,'BackEnd Data'!$BA$1:$BA$115,0),0)=D$28,"X","") ->  | E52: =IF(HLOOKUP($J52,'BackEnd Data'!$E$1:$AW$115,MATCH(Review!$C$1,'BackEnd Data'!$BA$1:$BA$115,0),0)=E$28,"X","") ->  | F52: =IF(HLOOKUP($J52,'BackEnd Data'!$E$1:$AW$115,MATCH(Review!$C$1,'BackEnd Data'!$BA$1:$BA$115,0),0)=F$28,"X","") ->  | G52: =IF(HLOOKUP($J52,'BackEnd Data'!$E$1:$AW$115,MATCH(Review!$C$1,'BackEnd Data'!$BA$1:$BA$115,0),0)=G$28,"X","") ->  | H52: =IF(OR('Set Up'!E48="",'Review Sheet'!H51=""),"",'Set Up'!E48) ->  | J52: ans24
B53: =IF(OR('Set Up'!D49="",'Review Sheet'!B52=""),"",'Set Up'!D49) ->  | C53: =IF(HLOOKUP($J53,'BackEnd Data'!$E$1:$AW$115,MATCH(Review!$C$1,'BackEnd Data'!$BA$1:$BA$115,0),0)=C$28,"X","") ->  | D53: =IF(HLOOKUP($J53,'BackEnd Data'!$E$1:$AW$115,MATCH(Review!$C$1,'BackEnd Data'!$BA$1:$BA$115,0),0)=D$28,"X","") ->  | E53: =IF(HLOOKUP($J53,'BackEnd Data'!$E$1:$AW$115,MATCH(Review!$C$1,'BackEnd Data'!$BA$1:$BA$115,0),0)=E$28,"X","") ->  | F53: =IF(HLOOKUP($J53,'BackEnd Data'!$E$1:$AW$115,MATCH(Review!$C$1,'BackEnd Data'!$BA$1:$BA$115,0),0)=F$28,"X","") ->  | G53: =IF(HLOOKUP($J53,'BackEnd Data'!$E$1:$AW$115,MATCH(Review!$C$1,'BackEnd Data'!$BA$1:$BA$115,0),0)=G$28,"X","") ->  | H53: =IF(OR('Set Up'!E49="",'Review Sheet'!H52=""),"",'Set Up'!E49) ->  | J53: ans25
B54: =IF(OR('Set Up'!D50="",'Review Sheet'!B53=""),"",'Set Up'!D50) ->  | C54: =IF(HLOOKUP($J54,'BackEnd Data'!$E$1:$AW$115,MATCH(Review!$C$1,'BackEnd Data'!$BA$1:$BA$115,0),0)=C$28,"X","") ->  | D54: =IF(HLOOKUP($J54,'BackEnd Data'!$E$1:$AW$115,MATCH(Review!$C$1,'BackEnd Data'!$BA$1:$BA$115,0),0)=D$28,"X","") ->  | E54: =IF(HLOOKUP($J54,'BackEnd Data'!$E$1:$AW$115,MATCH(Review!$C$1,'BackEnd Data'!$BA$1:$BA$115,0),0)=E$28,"X","") ->  | F54: =IF(HLOOKUP($J54,'BackEnd Data'!$E$1:$AW$115,MATCH(Review!$C$1,'BackEnd Data'!$BA$1:$BA$115,0),0)=F$28,"X","") ->  | G54: =IF(HLOOKUP($J54,'BackEnd Data'!$E$1:$AW$115,MATCH(Review!$C$1,'BackEnd Data'!$BA$1:$BA$115,0),0)=G$28,"X","") ->  | H54: =IF(OR('Set Up'!E50="",'Review Sheet'!H53=""),"",'Set Up'!E50) ->  | J54: ans26
B55: =IF(OR('Set Up'!D51="",'Review Sheet'!B54=""),"",'Set Up'!D51) ->  | C55: =IF(HLOOKUP($J55,'BackEnd Data'!$E$1:$AW$115,MATCH(Review!$C$1,'BackEnd Data'!$BA$1:$BA$115,0),0)=C$28,"X","") ->  | D55: =IF(HLOOKUP($J55,'BackEnd Data'!$E$1:$AW$115,MATCH(Review!$C$1,'BackEnd Data'!$BA$1:$BA$115,0),0)=D$28,"X","") ->  | E55: =IF(HLOOKUP($J55,'BackEnd Data'!$E$1:$AW$115,MATCH(Review!$C$1,'BackEnd Data'!$BA$1:$BA$115,0),0)=E$28,"X","") ->  | F55: =IF(HLOOKUP($J55,'BackEnd Data'!$E$1:$AW$115,MATCH(Review!$C$1,'BackEnd Data'!$BA$1:$BA$115,0),0)=F$28,"X","") ->  | G55: =IF(HLOOKUP($J55,'BackEnd Data'!$E$1:$AW$115,MATCH(Review!$C$1,'BackEnd Data'!$BA$1:$BA$115,0),0)=G$28,"X","") ->  | H55: =IF(OR('Set Up'!E51="",'Review Sheet'!H54=""),"",'Set Up'!E51) ->  | J55: ans27
B56: =IF(OR('Set Up'!D52="",'Review Sheet'!B55=""),"",'Set Up'!D52) ->  | C56: =IF(HLOOKUP($J56,'BackEnd Data'!$E$1:$AW$115,MATCH(Review!$C$1,'BackEnd Data'!$BA$1:$BA$115,0),0)=C$28,"X","") ->  | D56: =IF(HLOOKUP($J56,'BackEnd Data'!$E$1:$AW$115,MATCH(Review!$C$1,'BackEnd Data'!$BA$1:$BA$115,0),0)=D$28,"X","") ->  | E56: =IF(HLOOKUP($J56,'BackEnd Data'!$E$1:$AW$115,MATCH(Review!$C$1,'BackEnd Data'!$BA$1:$BA$115,0),0)=E$28,"X","") ->  | F56: =IF(HLOOKUP($J56,'BackEnd Data'!$E$1:$AW$115,MATCH(Review!$C$1,'BackEnd Data'!$BA$1:$BA$115,0),0)=F$28,"X","") ->  | G56: =IF(HLOOKUP($J56,'BackEnd Data'!$E$1:$AW$115,MATCH(Review!$C$1,'BackEnd Data'!$BA$1:$BA$115,0),0)=G$28,"X","") ->  | H56: =IF(OR('Set Up'!E52="",'Review Sheet'!H55=""),"",'Set Up'!E52) ->  | J56: ans28
B57: =IF(OR('Set Up'!D53="",'Review Sheet'!B56=""),"",'Set Up'!D53) ->  | C57: =IF(HLOOKUP($J57,'BackEnd Data'!$E$1:$AW$115,MATCH(Review!$C$1,'BackEnd Data'!$BA$1:$BA$115,0),0)=C$28,"X","") ->  | D57: =IF(HLOOKUP($J57,'BackEnd Data'!$E$1:$AW$115,MATCH(Review!$C$1,'BackEnd Data'!$BA$1:$BA$115,0),0)=D$28,"X","") ->  | E57: =IF(HLOOKUP($J57,'BackEnd Data'!$E$1:$AW$115,MATCH(Review!$C$1,'BackEnd Data'!$BA$1:$BA$115,0),0)=E$28,"X","") ->  | F57: =IF(HLOOKUP($J57,'BackEnd Data'!$E$1:$AW$115,MATCH(Review!$C$1,'BackEnd Data'!$BA$1:$BA$115,0),0)=F$28,"X","") ->  | G57: =IF(HLOOKUP($J57,'BackEnd Data'!$E$1:$AW$115,MATCH(Review!$C$1,'BackEnd Data'!$BA$1:$BA$115,0),0)=G$28,"X","") ->  | H57: =IF(OR('Set Up'!E53="",'Review Sheet'!H56=""),"",'Set Up'!E53) ->  | J57: ans29
B58: =IF(OR('Set Up'!D54="",'Review Sheet'!B57=""),"",'Set Up'!D54) ->  | C58: =IF(HLOOKUP($J58,'BackEnd Data'!$E$1:$AW$115,MATCH(Review!$C$1,'BackEnd Data'!$BA$1:$BA$115,0),0)=C$28,"X","") ->  | D58: =IF(HLOOKUP($J58,'BackEnd Data'!$E$1:$AW$115,MATCH(Review!$C$1,'BackEnd Data'!$BA$1:$BA$115,0),0)=D$28,"X","") ->  | E58: =IF(HLOOKUP($J58,'BackEnd Data'!$E$1:$AW$115,MATCH(Review!$C$1,'BackEnd Data'!$BA$1:$BA$115,0),0)=E$28,"X","") ->  | F58: =IF(HLOOKUP($J58,'BackEnd Data'!$E$1:$AW$115,MATCH(Review!$C$1,'BackEnd Data'!$BA$1:$BA$115,0),0)=F$28,"X","") ->  | G58: =IF(HLOOKUP($J58,'BackEnd Data'!$E$1:$AW$115,MATCH(Review!$C$1,'BackEnd Data'!$BA$1:$BA$115,0),0)=G$28,"X","") ->  | H58: =IF(OR('Set Up'!E54="",'Review Sheet'!H57=""),"",'Set Up'!E54) ->  | J58: ans30
B59: =IF(OR('Set Up'!D55="",'Review Sheet'!B58=""),"",'Set Up'!D55) ->  | C59: =IF(HLOOKUP($J59,'BackEnd Data'!$E$1:$AW$115,MATCH(Review!$C$1,'BackEnd Data'!$BA$1:$BA$115,0),0)=C$28,"X","") ->  | D59: =IF(HLOOKUP($J59,'BackEnd Data'!$E$1:$AW$115,MATCH(Review!$C$1,'BackEnd Data'!$BA$1:$BA$115,0),0)=D$28,"X","") ->  | E59: =IF(HLOOKUP($J59,'BackEnd Data'!$E$1:$AW$115,MATCH(Review!$C$1,'BackEnd Data'!$BA$1:$BA$115,0),0)=E$28,"X","") ->  | F59: =IF(HLOOKUP($J59,'BackEnd Data'!$E$1:$AW$115,MATCH(Review!$C$1,'BackEnd Data'!$BA$1:$BA$115,0),0)=F$28,"X","") ->  | G59: =IF(HLOOKUP($J59,'BackEnd Data'!$E$1:$AW$115,MATCH(Review!$C$1,'BackEnd Data'!$BA$1:$BA$115,0),0)=G$28,"X","") ->  | H59: =IF(OR('Set Up'!E55="",'Review Sheet'!H58=""),"",'Set Up'!E55) ->  | J59: ans31
B60: =IF(OR('Set Up'!D56="",'Review Sheet'!B59=""),"",'Set Up'!D56) ->  | C60: =IF(HLOOKUP($J60,'BackEnd Data'!$E$1:$AW$115,MATCH(Review!$C$1,'BackEnd Data'!$BA$1:$BA$115,0),0)=C$28,"X","") ->  | D60: =IF(HLOOKUP($J60,'BackEnd Data'!$E$1:$AW$115,MATCH(Review!$C$1,'BackEnd Data'!$BA$1:$BA$115,0),0)=D$28,"X","") ->  | E60: =IF(HLOOKUP($J60,'BackEnd Data'!$E$1:$AW$115,MATCH(Review!$C$1,'BackEnd Data'!$BA$1:$BA$115,0),0)=E$28,"X","") ->  | F60: =IF(HLOOKUP($J60,'BackEnd Data'!$E$1:$AW$115,MATCH(Review!$C$1,'BackEnd Data'!$BA$1:$BA$115,0),0)=F$28,"X","") ->  | G60: =IF(HLOOKUP($J60,'BackEnd Data'!$E$1:$AW$115,MATCH(Review!$C$1,'BackEnd Data'!$BA$1:$BA$115,0),0)=G$28,"X","") ->  | H60: =IF(OR('Set Up'!E56="",'Review Sheet'!H59=""),"",'Set Up'!E56) ->  | J60: ans32
B61: =IF(OR('Set Up'!D57="",'Review Sheet'!B60=""),"",'Set Up'!D57) ->  | C61: =IF(HLOOKUP($J61,'BackEnd Data'!$E$1:$AW$115,MATCH(Review!$C$1,'BackEnd Data'!$BA$1:$BA$115,0),0)=C$28,"X","") ->  | D61: =IF(HLOOKUP($J61,'BackEnd Data'!$E$1:$AW$115,MATCH(Review!$C$1,'BackEnd Data'!$BA$1:$BA$115,0),0)=D$28,"X","") ->  | E61: =IF(HLOOKUP($J61,'BackEnd Data'!$E$1:$AW$115,MATCH(Review!$C$1,'BackEnd Data'!$BA$1:$BA$115,0),0)=E$28,"X","") ->  | F61: =IF(HLOOKUP($J61,'BackEnd Data'!$E$1:$AW$115,MATCH(Review!$C$1,'BackEnd Data'!$BA$1:$BA$115,0),0)=F$28,"X","") ->  | G61: =IF(HLOOKUP($J61,'BackEnd Data'!$E$1:$AW$115,MATCH(Review!$C$1,'BackEnd Data'!$BA$1:$BA$115,0),0)=G$28,"X","") ->  | H61: =IF(OR('Set Up'!E57="",'Review Sheet'!H60=""),"",'Set Up'!E57) ->  | J61: ans33
B62: =IF(OR('Set Up'!D58="",'Review Sheet'!B61=""),"",'Set Up'!D58) ->  | C62: =IF(HLOOKUP($J62,'BackEnd Data'!$E$1:$AW$115,MATCH(Review!$C$1,'BackEnd Data'!$BA$1:$BA$115,0),0)=C$28,"X","") ->  | D62: =IF(HLOOKUP($J62,'BackEnd Data'!$E$1:$AW$115,MATCH(Review!$C$1,'BackEnd Data'!$BA$1:$BA$115,0),0)=D$28,"X","") ->  | E62: =IF(HLOOKUP($J62,'BackEnd Data'!$E$1:$AW$115,MATCH(Review!$C$1,'BackEnd Data'!$BA$1:$BA$115,0),0)=E$28,"X","") ->  | F62: =IF(HLOOKUP($J62,'BackEnd Data'!$E$1:$AW$115,MATCH(Review!$C$1,'BackEnd Data'!$BA$1:$BA$115,0),0)=F$28,"X","") ->  | G62: =IF(HLOOKUP($J62,'BackEnd Data'!$E$1:$AW$115,MATCH(Review!$C$1,'BackEnd Data'!$BA$1:$BA$115,0),0)=G$28,"X","") ->  | H62: =IF(OR('Set Up'!E58="",'Review Sheet'!H61=""),"",'Set Up'!E58) ->  | J62: ans34
B63: =IF(OR('Set Up'!D59="",'Review Sheet'!B62=""),"",'Set Up'!D59) ->  | C63: =IF(HLOOKUP($J63,'BackEnd Data'!$E$1:$AW$115,MATCH(Review!$C$1,'BackEnd Data'!$BA$1:$BA$115,0),0)=C$28,"X","") ->  | D63: =IF(HLOOKUP($J63,'BackEnd Data'!$E$1:$AW$115,MATCH(Review!$C$1,'BackEnd Data'!$BA$1:$BA$115,0),0)=D$28,"X","") ->  | E63: =IF(HLOOKUP($J63,'BackEnd Data'!$E$1:$AW$115,MATCH(Review!$C$1,'BackEnd Data'!$BA$1:$BA$115,0),0)=E$28,"X","") ->  | F63: =IF(HLOOKUP($J63,'BackEnd Data'!$E$1:$AW$115,MATCH(Review!$C$1,'BackEnd Data'!$BA$1:$BA$115,0),0)=F$28,"X","") ->  | G63: =IF(HLOOKUP($J63,'BackEnd Data'!$E$1:$AW$115,MATCH(Review!$C$1,'BackEnd Data'!$BA$1:$BA$115,0),0)=G$28,"X","") ->  | H63: =IF(OR('Set Up'!E59="",'Review Sheet'!H62=""),"",'Set Up'!E59) ->  | J63: ans35
B64: =IF(OR('Set Up'!D60="",'Review Sheet'!B63=""),"",'Set Up'!D60) ->  | C64: =IF(HLOOKUP($J64,'BackEnd Data'!$E$1:$AW$115,MATCH(Review!$C$1,'BackEnd Data'!$BA$1:$BA$115,0),0)=C$28,"X","") ->  | D64: =IF(HLOOKUP($J64,'BackEnd Data'!$E$1:$AW$115,MATCH(Review!$C$1,'BackEnd Data'!$BA$1:$BA$115,0),0)=D$28,"X","") ->  | E64: =IF(HLOOKUP($J64,'BackEnd Data'!$E$1:$AW$115,MATCH(Review!$C$1,'BackEnd Data'!$BA$1:$BA$115,0),0)=E$28,"X","") ->  | F64: =IF(HLOOKUP($J64,'BackEnd Data'!$E$1:$AW$115,MATCH(Review!$C$1,'BackEnd Data'!$BA$1:$BA$115,0),0)=F$28,"X","") ->  | G64: =IF(HLOOKUP($J64,'BackEnd Data'!$E$1:$AW$115,MATCH(Review!$C$1,'BackEnd Data'!$BA$1:$BA$115,0),0)=G$28,"X","") ->  | H64: =IF(OR('Set Up'!E60="",'Review Sheet'!H63=""),"",'Set Up'!E60) ->  | J64: ans36
B65: =IF(OR('Set Up'!D61="",'Review Sheet'!B64=""),"",'Set Up'!D61) ->  | C65: =IF(HLOOKUP($J65,'BackEnd Data'!$E$1:$AW$115,MATCH(Review!$C$1,'BackEnd Data'!$BA$1:$BA$115,0),0)=C$28,"X","") ->  | D65: =IF(HLOOKUP($J65,'BackEnd Data'!$E$1:$AW$115,MATCH(Review!$C$1,'BackEnd Data'!$BA$1:$BA$115,0),0)=D$28,"X","") ->  | E65: =IF(HLOOKUP($J65,'BackEnd Data'!$E$1:$AW$115,MATCH(Review!$C$1,'BackEnd Data'!$BA$1:$BA$115,0),0)=E$28,"X","") ->  | F65: =IF(HLOOKUP($J65,'BackEnd Data'!$E$1:$AW$115,MATCH(Review!$C$1,'BackEnd Data'!$BA$1:$BA$115,0),0)=F$28,"X","") ->  | G65: =IF(HLOOKUP($J65,'BackEnd Data'!$E$1:$AW$115,MATCH(Review!$C$1,'BackEnd Data'!$BA$1:$BA$115,0),0)=G$28,"X","") ->  | H65: =IF(OR('Set Up'!E61="",'Review Sheet'!H64=""),"",'Set Up'!E61) ->  | J65: ans37
B66: =IF(OR('Set Up'!D62="",'Review Sheet'!B65=""),"",'Set Up'!D62) ->  | C66: =IF(HLOOKUP($J66,'BackEnd Data'!$E$1:$AW$115,MATCH(Review!$C$1,'BackEnd Data'!$BA$1:$BA$115,0),0)=C$28,"X","") ->  | D66: =IF(HLOOKUP($J66,'BackEnd Data'!$E$1:$AW$115,MATCH(Review!$C$1,'BackEnd Data'!$BA$1:$BA$115,0),0)=D$28,"X","") ->  | E66: =IF(HLOOKUP($J66,'BackEnd Data'!$E$1:$AW$115,MATCH(Review!$C$1,'BackEnd Data'!$BA$1:$BA$115,0),0)=E$28,"X","") ->  | F66: =IF(HLOOKUP($J66,'BackEnd Data'!$E$1:$AW$115,MATCH(Review!$C$1,'BackEnd Data'!$BA$1:$BA$115,0),0)=F$28,"X","") ->  | G66: =IF(HLOOKUP($J66,'BackEnd Data'!$E$1:$AW$115,MATCH(Review!$C$1,'BackEnd Data'!$BA$1:$BA$115,0),0)=G$28,"X","") ->  | H66: =IF(OR('Set Up'!E62="",'Review Sheet'!H65=""),"",'Set Up'!E62) ->  | J66: ans38
B67: =IF(OR('Set Up'!D63="",'Review Sheet'!B66=""),"",'Set Up'!D63) ->  | C67: =IF(HLOOKUP($J67,'BackEnd Data'!$E$1:$AW$115,MATCH(Review!$C$1,'BackEnd Data'!$BA$1:$BA$115,0),0)=C$28,"X","") ->  | D67: =IF(HLOOKUP($J67,'BackEnd Data'!$E$1:$AW$115,MATCH(Review!$C$1,'BackEnd Data'!$BA$1:$BA$115,0),0)=D$28,"X","") ->  | E67: =IF(HLOOKUP($J67,'BackEnd Data'!$E$1:$AW$115,MATCH(Review!$C$1,'BackEnd Data'!$BA$1:$BA$115,0),0)=E$28,"X","") ->  | F67: =IF(HLOOKUP($J67,'BackEnd Data'!$E$1:$AW$115,MATCH(Review!$C$1,'BackEnd Data'!$BA$1:$BA$115,0),0)=F$28,"X","") ->  | G67: =IF(HLOOKUP($J67,'BackEnd Data'!$E$1:$AW$115,MATCH(Review!$C$1,'BackEnd Data'!$BA$1:$BA$115,0),0)=G$28,"X","") ->  | H67: =IF(OR('Set Up'!E63="",'Review Sheet'!H66=""),"",'Set Up'!E63) ->  | J67: ans39
B68: =IF(OR('Set Up'!D64="",'Review Sheet'!B67=""),"",'Set Up'!D64) ->  | C68: =IF(HLOOKUP($J68,'BackEnd Data'!$E$1:$AW$115,MATCH(Review!$C$1,'BackEnd Data'!$BA$1:$BA$115,0),0)=C$28,"X","") ->  | D68: =IF(HLOOKUP($J68,'BackEnd Data'!$E$1:$AW$115,MATCH(Review!$C$1,'BackEnd Data'!$BA$1:$BA$115,0),0)=D$28,"X","") ->  | E68: =IF(HLOOKUP($J68,'BackEnd Data'!$E$1:$AW$115,MATCH(Review!$C$1,'BackEnd Data'!$BA$1:$BA$115,0),0)=E$28,"X","") ->  | F68: =IF(HLOOKUP($J68,'BackEnd Data'!$E$1:$AW$115,MATCH(Review!$C$1,'BackEnd Data'!$BA$1:$BA$115,0),0)=F$28,"X","") ->  | G68: =IF(HLOOKUP($J68,'BackEnd Data'!$E$1:$AW$115,MATCH(Review!$C$1,'BackEnd Data'!$BA$1:$BA$115,0),0)=G$28,"X","") ->  | H68: =IF(OR('Set Up'!E64="",'Review Sheet'!H67=""),"",'Set Up'!E64) ->  | J68: ans40
B69: =IF(OR('Set Up'!D65="",'Review Sheet'!B68=""),"",'Set Up'!D65) ->  | C69: =IF(HLOOKUP($J69,'BackEnd Data'!$E$1:$AW$115,MATCH(Review!$C$1,'BackEnd Data'!$BA$1:$BA$115,0),0)=C$28,"X","") ->  | D69: =IF(HLOOKUP($J69,'BackEnd Data'!$E$1:$AW$115,MATCH(Review!$C$1,'BackEnd Data'!$BA$1:$BA$115,0),0)=D$28,"X","") ->  | E69: =IF(HLOOKUP($J69,'BackEnd Data'!$E$1:$AW$115,MATCH(Review!$C$1,'BackEnd Data'!$BA$1:$BA$115,0),0)=E$28,"X","") ->  | F69: =IF(HLOOKUP($J69,'BackEnd Data'!$E$1:$AW$115,MATCH(Review!$C$1,'BackEnd Data'!$BA$1:$BA$115,0),0)=F$28,"X","") ->  | G69: =IF(HLOOKUP($J69,'BackEnd Data'!$E$1:$AW$115,MATCH(Review!$C$1,'BackEnd Data'!$BA$1:$BA$115,0),0)=G$28,"X","") ->  | H69: =IF(OR('Set Up'!E65="",'Review Sheet'!H68=""),"",'Set Up'!E65) ->  | J69: ans41
B70: =IF(OR('Set Up'!D66="",'Review Sheet'!B69=""),"",'Set Up'!D66) ->  | C70: =IF(HLOOKUP($J70,'BackEnd Data'!$E$1:$AW$115,MATCH(Review!$C$1,'BackEnd Data'!$BA$1:$BA$115,0),0)=C$28,"X","") ->  | D70: =IF(HLOOKUP($J70,'BackEnd Data'!$E$1:$AW$115,MATCH(Review!$C$1,'BackEnd Data'!$BA$1:$BA$115,0),0)=D$28,"X","") ->  | E70: =IF(HLOOKUP($J70,'BackEnd Data'!$E$1:$AW$115,MATCH(Review!$C$1,'BackEnd Data'!$BA$1:$BA$115,0),0)=E$28,"X","") ->  | F70: =IF(HLOOKUP($J70,'BackEnd Data'!$E$1:$AW$115,MATCH(Review!$C$1,'BackEnd Data'!$BA$1:$BA$115,0),0)=F$28,"X","") ->  | G70: =IF(HLOOKUP($J70,'BackEnd Data'!$E$1:$AW$115,MATCH(Review!$C$1,'BackEnd Data'!$BA$1:$BA$115,0),0)=G$28,"X","") ->  | H70: =IF(OR('Set Up'!E66="",'Review Sheet'!H69=""),"",'Set Up'!E66) ->  | J70: ans42
B71: =IF(OR('Set Up'!D67="",'Review Sheet'!B70=""),"",'Set Up'!D67) ->  | C71: =IF(HLOOKUP($J71,'BackEnd Data'!$E$1:$AW$115,MATCH(Review!$C$1,'BackEnd Data'!$BA$1:$BA$115,0),0)=C$28,"X","") ->  | D71: =IF(HLOOKUP($J71,'BackEnd Data'!$E$1:$AW$115,MATCH(Review!$C$1,'BackEnd Data'!$BA$1:$BA$115,0),0)=D$28,"X","") ->  | E71: =IF(HLOOKUP($J71,'BackEnd Data'!$E$1:$AW$115,MATCH(Review!$C$1,'BackEnd Data'!$BA$1:$BA$115,0),0)=E$28,"X","") ->  | F71: =IF(HLOOKUP($J71,'BackEnd Data'!$E$1:$AW$115,MATCH(Review!$C$1,'BackEnd Data'!$BA$1:$BA$115,0),0)=F$28,"X","") ->  | G71: =IF(HLOOKUP($J71,'BackEnd Data'!$E$1:$AW$115,MATCH(Review!$C$1,'BackEnd Data'!$BA$1:$BA$115,0),0)=G$28,"X","") ->  | H71: =IF(OR('Set Up'!E67="",'Review Sheet'!H70=""),"",'Set Up'!E67) ->  | J71: ans43
B72: =IF(OR('Set Up'!D68="",'Review Sheet'!B71=""),"",'Set Up'!D68) ->  | C72: =IF(HLOOKUP($J72,'BackEnd Data'!$E$1:$AW$115,MATCH(Review!$C$1,'BackEnd Data'!$BA$1:$BA$115,0),0)=C$28,"X","") ->  | D72: =IF(HLOOKUP($J72,'BackEnd Data'!$E$1:$AW$115,MATCH(Review!$C$1,'BackEnd Data'!$BA$1:$BA$115,0),0)=D$28,"X","") ->  | E72: =IF(HLOOKUP($J72,'BackEnd Data'!$E$1:$AW$115,MATCH(Review!$C$1,'BackEnd Data'!$BA$1:$BA$115,0),0)=E$28,"X","") ->  | F72: =IF(HLOOKUP($J72,'BackEnd Data'!$E$1:$AW$115,MATCH(Review!$C$1,'BackEnd Data'!$BA$1:$BA$115,0),0)=F$28,"X","") ->  | G72: =IF(HLOOKUP($J72,'BackEnd Data'!$E$1:$AW$115,MATCH(Review!$C$1,'BackEnd Data'!$BA$1:$BA$115,0),0)=G$28,"X","") ->  | H72: =IF(OR('Set Up'!E68="",'Review Sheet'!H71=""),"",'Set Up'!E68) ->  | J72: ans44
B73: =IF(OR('Set Up'!D69="",'Review Sheet'!B72=""),"",'Set Up'!D69) ->  | C73: =IF(HLOOKUP($J73,'BackEnd Data'!$E$1:$AW$115,MATCH(Review!$C$1,'BackEnd Data'!$BA$1:$BA$115,0),0)=C$28,"X","") ->  | D73: =IF(HLOOKUP($J73,'BackEnd Data'!$E$1:$AW$115,MATCH(Review!$C$1,'BackEnd Data'!$BA$1:$BA$115,0),0)=D$28,"X","") ->  | E73: =IF(HLOOKUP($J73,'BackEnd Data'!$E$1:$AW$115,MATCH(Review!$C$1,'BackEnd Data'!$BA$1:$BA$115,0),0)=E$28,"X","") ->  | F73: =IF(HLOOKUP($J73,'BackEnd Data'!$E$1:$AW$115,MATCH(Review!$C$1,'BackEnd Data'!$BA$1:$BA$115,0),0)=F$28,"X","") ->  | G73: =IF(HLOOKUP($J73,'BackEnd Data'!$E$1:$AW$115,MATCH(Review!$C$1,'BackEnd Data'!$BA$1:$BA$115,0),0)=G$28,"X","") ->  | H73: =IF(OR('Set Up'!E69="",'Review Sheet'!H72=""),"",'Set Up'!E69) ->  | J73: ans45

Sheet Review Sheet
A1: ÜBERPRÜFUNG HINZUFÜGEN | C1: =COUNTA('BackEnd Data'!A1:A115) -> 20
I3: GESAMTERGEBNIS | K3: =SUMPRODUCT(L21:L25,M21:M25) -> 0
A4: =IFERROR(INDEX('Employee Database'!$C$4:$C$53,MATCH('Review Sheet'!C4,'Employee Database'!D4:D51,0)),"") ->  | B4: Name: | D4: Position: | E4: =IFERROR(VLOOKUP(C4,'Employee Database'!$D$4:$H$51,2,0),"") ->  | F4: Manager: | G4: =IFERROR(VLOOKUP(C4,'Employee Database'!$D$4:$H$51,3,0),"") -> 
B6: Überprüfungsdatum: | C6: 2023-09-25T11:33:53 | D6: Einstellungsdatum: | E6: =IFERROR(VLOOKUP(C4,'Employee Database'!$D$4:$H$51,5,0),"") ->  | F6: Abteilung: | G6: =IFERROR(VLOOKUP(C4,'Employee Database'!$D$4:$H$51,4,0),"") ->  | I6: PERFORMANCE | K6: =VLOOKUP(K3,J21:K25,2,TRUE) -> Deutlich unter den Erwartungen
... 8 more rows

Sheet Mapping (hidden)
B2: Review# | C2: C1
B3: Emp# | C3: A4
B4: ReviewDate | C4: C6
B5: Department/Division | C5: G6 | F5: Poor | G5: Greatly Below Expectations
B6: ans1 | C6: 29 | F6: Unsatisfactory | G6: Below Expectations
B7: ans2 | C7: 30 | F7: Satisfactory | G7: Meet Expectations
B8: ans3 | C8: 31 | F8: Good | G8: Exceed Expectations
B9: ans4 | C9: 32 | F9: Excellent | G9: Truly Outstanding
B10: ans5 | C10: 33
B11: ans6 | C11: 34
B12: ans7 | C12: 35
B13: ans8 | C13: 36
B14: ans9 | C14: 37
B15: ans10 | C15: 38
B16: ans11 | C16: 39
B17: ans12 | C17: 40
B18: ans13 | C18: 41
B19: ans14 | C19: 42
B20: ans15 | C20: 43
B21: ans16 | C21: 44
B22: ans17 | C22: 45
B23: ans18 | C23: 46
B24: ans19 | C24: 47
B25: ans20 | C25: 48
B26: ans21 | C26: 49
B27: ans22 | C27: 50
B28: ans23 | C28: 51
B29: ans24 | C29: 52
B30: ans25 | C30: 53
B31: ans26 | C31: 54
B32: ans27 | C32: 55
B33: ans28 | C33: 56
B34: ans29 | C34: 57
B35: ans30 | C35: 58
B36: ans31 | C36: 59
B37: ans32 | C37: 60
B38: ans33 | C38: 61
B39: ans34 | C39: 62
B40: ans35 | C40: 63
B41: ans36 | C41: 64
B42: ans37 | C42: 65
B43: ans38 | C43: 66
B44: ans39 | C44: 67
B45: ans40 | C45: 68
B46: ans41 | C46: 69
B47: ans42 | C47: 70
B48: ans43 | C48: 71
B49: ans44 | C49: 72
B50: ans45 | C50: 73
B51: OverallScore | C51: K3
B52: Performance | C52: K6
B53: Notes | C53: I18
